{"text_format":"1","workbook":"xlsx","n_sheets":8,"sheets":["Aktiver makroer","Forside","Rediger","Øvrige Krav","Øvrige_Krav_DATA","Faglige kompetencekrav","Fagkompetence_DATA","Versionshistorik"],"not_rendered":{"charts":0,"images":8,"macros":1,"external_links":0,"defined_names":5,"comments":0,"pivot_tables":0},"unopened":[],"bounds":{"document_bytes":16777216,"sheet_cells":100000,"rows_first":2000,"rows_last":500,"rows_between":2000,"halvings":0,"cell_chars":16384,"cell_head_chars":4096},"cells_cut":0,"cells_raw":0,"read":"whole","date_system":"1900"}

{"sheet":"Aktiver makroer","index":0,"n_rows":0,"n_cols":0,"rows_kept":0,"cut":false,"hidden":false,"merged":[]}

{"sheet":"Forside","index":1,"n_rows":36,"n_cols":6,"rows_kept":36,"cut":false,"hidden":true,"merged":[[32,5,32,6],[11,1,11,4],[11,11,11,14],[21,1,21,4],[21,6,21,9],[21,11,21,14]]}
[]
["Opslagskatalog over jernbanesikkerhedsmæssige, tekniske og forretningsmæssige krav"]
[]
[]
[]
[]
[]
[]
[]
[]
[]
[]
[]
[]
[]
[]
[]
[]
[]
[]
[]
[]
[]
[]
[]
[]
[]
[]
[]
[]
[]
[null,"Du er registreret som:",null,null,null,"Niels Erik Bjergaarde (NEBG); nebg"]
[null,"Dokumentet er åbnet:",null,null,null,"2019-10-22T13:35:55"]
[]
[null,"Indholdet i kompetencekravskataloget administreres af Infrastruktur"]
[null,"Al henvendelse sker til Team Jernbanesikkerhed på kompentencedokumentation@bane.dk"]

{"sheet":"Rediger","index":2,"n_rows":36,"n_cols":6,"rows_kept":36,"cut":false,"hidden":true,"merged":[[32,5,32,6]]}
[]
["Opslagskatalog over jernbanesikkerhedsmæssige, tekniske og forretningsmæssige krav"]
[]
[]
[]
[]
[]
[]
[]
[]
[]
[]
[]
[]
[]
[]
[]
[]
[]
[]
[]
[]
[]
[]
[]
[]
[]
[]
[]
[]
[]
[null,"Du er registreret som:",null,null,null,{"$f":"Forside!$F$32","v":"Niels Erik Bjergaarde (NEBG); nebg"}]
[null,"Dokumentet er åbnet:",null,null,null,{"$f":"Forside!F33","v":"2019-10-22T13:35:55"}]
[]
[null,"Indholdet i kompetencekravskataloget administreres af Infrastruktur"]
[null,"Al henvendelse sker til Team Jernbanesikkerhed på kompentencedokumentation@bane.dk"]

{"sheet":"Øvrige Krav","index":3,"n_rows":100,"n_cols":5,"rows_kept":100,"cut":false,"hidden":true,"merged":[]}
["Øvrige Krav",{"$f":"CONCATENATE(A1,\" - \",C6)","v":"Øvrige Krav - (Vælg)"}]
["Øvrige Krav"]
[]
[null,"Gemt/udskrevet af:",{"$f":"Forside!F32","v":"Niels Erik Bjergaarde (NEBG); nebg"},{"$f":"NOW()","v":"2019-10-22T15:28:04.130"}]
[]
[null,"Ydelseskategori","(Vælg)"]
[]
[]
[]
[]
[null,2,3,4]
[null,"Ydelsestype","Kravliste","Links"]
[{"$f":"CONCATENATE($C$6,E13)","v":"(Vælg)1"},{"$f":"IFERROR(IF(VLOOKUP($A13,Øvrige_Krav_DATA!$A:$D,B$11,FALSE)=0,\"\",VLOOKUP($A13,Øvrige_Krav_DATA!$A:$D,B$11,FALSE)),\"\")","v":""},{"$f":"IFERROR(IF(VLOOKUP($A13,Øvrige_Krav_DATA!$A:$D,C$11,FALSE)=0,\"\",VLOOKUP($A13,Øvrige_Krav_DATA!$A:$D,C$11,FALSE)),\"\")","v":""},{"$f":"IFERROR(IF(HYPERLINK(VLOOKUP($A13,Øvrige_Krav_DATA!$A:$D,D$11,FALSE),VLOOKUP($A13,Øvrige_Krav_DATA!$A:$D,D$11,FALSE))=0,\"\",HYPERLINK(VLOOKUP($A13,Øvrige_Krav_DATA!$A:$D,D$11,FALSE),VLOOKUP($A13,Øvrige_Krav_DATA!$A:$D,D$11,FALSE))),\"\")","v":""},1]
[{"$f":"CONCATENATE($C$6,E14)","v":"(Vælg)2"},{"$f":"IFERROR(IF(VLOOKUP($A14,Øvrige_Krav_DATA!$A:$D,B$11,FALSE)=0,\"\",VLOOKUP($A14,Øvrige_Krav_DATA!$A:$D,B$11,FALSE)),\"\")","v":""},{"$f":"IFERROR(IF(VLOOKUP($A14,Øvrige_Krav_DATA!$A:$D,C$11,FALSE)=0,\"\",VLOOKUP($A14,Øvrige_Krav_DATA!$A:$D,C$11,FALSE)),\"\")","v":""},{"$f":"IFERROR(IF(HYPERLINK(VLOOKUP($A14,Øvrige_Krav_DATA!$A:$D,D$11,FALSE),VLOOKUP($A14,Øvrige_Krav_DATA!$A:$D,D$11,FALSE))=0,\"\",HYPERLINK(VLOOKUP($A14,Øvrige_Krav_DATA!$A:$D,D$11,FALSE),VLOOKUP($A14,Øvrige_Krav_DATA!$A:$D,D$11,FALSE))),\"\")","v":""},2]
["(Vælg)3",{"$f":"IFERROR(IF(VLOOKUP($A15,Øvrige_Krav_DATA!$A:$D,B$11,FALSE)=0,\"\",VLOOKUP($A15,Øvrige_Krav_DATA!$A:$D,B$11,FALSE)),\"\")","v":""},{"$f":"IFERROR(IF(VLOOKUP($A15,Øvrige_Krav_DATA!$A:$D,C$11,FALSE)=0,\"\",VLOOKUP($A15,Øvrige_Krav_DATA!$A:$D,C$11,FALSE)),\"\")","v":""},{"$f":"IFERROR(IF(HYPERLINK(VLOOKUP($A15,Øvrige_Krav_DATA!$A:$D,D$11,FALSE),VLOOKUP($A15,Øvrige_Krav_DATA!$A:$D,D$11,FALSE))=0,\"\",HYPERLINK(VLOOKUP($A15,Øvrige_Krav_DATA!$A:$D,D$11,FALSE),VLOOKUP($A15,Øvrige_Krav_DATA!$A:$D,D$11,FALSE))),\"\")","v":""},3]
["(Vælg)4",{"$f":"IFERROR(IF(VLOOKUP($A16,Øvrige_Krav_DATA!$A:$D,B$11,FALSE)=0,\"\",VLOOKUP($A16,Øvrige_Krav_DATA!$A:$D,B$11,FALSE)),\"\")","v":""},{"$f":"IFERROR(IF(VLOOKUP($A16,Øvrige_Krav_DATA!$A:$D,C$11,FALSE)=0,\"\",VLOOKUP($A16,Øvrige_Krav_DATA!$A:$D,C$11,FALSE)),\"\")","v":""},{"$f":"IFERROR(IF(HYPERLINK(VLOOKUP($A16,Øvrige_Krav_DATA!$A:$D,D$11,FALSE),VLOOKUP($A16,Øvrige_Krav_DATA!$A:$D,D$11,FALSE))=0,\"\",HYPERLINK(VLOOKUP($A16,Øvrige_Krav_DATA!$A:$D,D$11,FALSE),VLOOKUP($A16,Øvrige_Krav_DATA!$A:$D,D$11,FALSE))),\"\")","v":""},4]
["(Vælg)5",{"$f":"IFERROR(IF(VLOOKUP($A17,Øvrige_Krav_DATA!$A:$D,B$11,FALSE)=0,\"\",VLOOKUP($A17,Øvrige_Krav_DATA!$A:$D,B$11,FALSE)),\"\")","v":""},{"$f":"IFERROR(IF(VLOOKUP($A17,Øvrige_Krav_DATA!$A:$D,C$11,FALSE)=0,\"\",VLOOKUP($A17,Øvrige_Krav_DATA!$A:$D,C$11,FALSE)),\"\")","v":""},{"$f":"IFERROR(IF(HYPERLINK(VLOOKUP($A17,Øvrige_Krav_DATA!$A:$D,D$11,FALSE),VLOOKUP($A17,Øvrige_Krav_DATA!$A:$D,D$11,FALSE))=0,\"\",HYPERLINK(VLOOKUP($A17,Øvrige_Krav_DATA!$A:$D,D$11,FALSE),VLOOKUP($A17,Øvrige_Krav_DATA!$A:$D,D$11,FALSE))),\"\")","v":""},5]
["(Vælg)6",{"$f":"IFERROR(IF(VLOOKUP($A18,Øvrige_Krav_DATA!$A:$D,B$11,FALSE)=0,\"\",VLOOKUP($A18,Øvrige_Krav_DATA!$A:$D,B$11,FALSE)),\"\")","v":""},{"$f":"IFERROR(IF(VLOOKUP($A18,Øvrige_Krav_DATA!$A:$D,C$11,FALSE)=0,\"\",VLOOKUP($A18,Øvrige_Krav_DATA!$A:$D,C$11,FALSE)),\"\")","v":""},{"$f":"IFERROR(IF(HYPERLINK(VLOOKUP($A18,Øvrige_Krav_DATA!$A:$D,D$11,FALSE),VLOOKUP($A18,Øvrige_Krav_DATA!$A:$D,D$11,FALSE))=0,\"\",HYPERLINK(VLOOKUP($A18,Øvrige_Krav_DATA!$A:$D,D$11,FALSE),VLOOKUP($A18,Øvrige_Krav_DATA!$A:$D,D$11,FALSE))),\"\")","v":""},6]
["(Vælg)7",{"$f":"IFERROR(IF(VLOOKUP($A19,Øvrige_Krav_DATA!$A:$D,B$11,FALSE)=0,\"\",VLOOKUP($A19,Øvrige_Krav_DATA!$A:$D,B$11,FALSE)),\"\")","v":""},{"$f":"IFERROR(IF(VLOOKUP($A19,Øvrige_Krav_DATA!$A:$D,C$11,FALSE)=0,\"\",VLOOKUP($A19,Øvrige_Krav_DATA!$A:$D,C$11,FALSE)),\"\")","v":""},{"$f":"IFERROR(IF(HYPERLINK(VLOOKUP($A19,Øvrige_Krav_DATA!$A:$D,D$11,FALSE),VLOOKUP($A19,Øvrige_Krav_DATA!$A:$D,D$11,FALSE))=0,\"\",HYPERLINK(VLOOKUP($A19,Øvrige_Krav_DATA!$A:$D,D$11,FALSE),VLOOKUP($A19,Øvrige_Krav_DATA!$A:$D,D$11,FALSE))),\"\")","v":""},7]
["(Vælg)8",{"$f":"IFERROR(IF(VLOOKUP($A20,Øvrige_Krav_DATA!$A:$D,B$11,FALSE)=0,\"\",VLOOKUP($A20,Øvrige_Krav_DATA!$A:$D,B$11,FALSE)),\"\")","v":""},{"$f":"IFERROR(IF(VLOOKUP($A20,Øvrige_Krav_DATA!$A:$D,C$11,FALSE)=0,\"\",VLOOKUP($A20,Øvrige_Krav_DATA!$A:$D,C$11,FALSE)),\"\")","v":""},{"$f":"IFERROR(IF(HYPERLINK(VLOOKUP($A20,Øvrige_Krav_DATA!$A:$D,D$11,FALSE),VLOOKUP($A20,Øvrige_Krav_DATA!$A:$D,D$11,FALSE))=0,\"\",HYPERLINK(VLOOKUP($A20,Øvrige_Krav_DATA!$A:$D,D$11,FALSE),VLOOKUP($A20,Øvrige_Krav_DATA!$A:$D,D$11,FALSE))),\"\")","v":""},8]
["(Vælg)9",{"$f":"IFERROR(IF(VLOOKUP($A21,Øvrige_Krav_DATA!$A:$D,B$11,FALSE)=0,\"\",VLOOKUP($A21,Øvrige_Krav_DATA!$A:$D,B$11,FALSE)),\"\")","v":""},{"$f":"IFERROR(IF(VLOOKUP($A21,Øvrige_Krav_DATA!$A:$D,C$11,FALSE)=0,\"\",VLOOKUP($A21,Øvrige_Krav_DATA!$A:$D,C$11,FALSE)),\"\")","v":""},{"$f":"IFERROR(IF(HYPERLINK(VLOOKUP($A21,Øvrige_Krav_DATA!$A:$D,D$11,FALSE),VLOOKUP($A21,Øvrige_Krav_DATA!$A:$D,D$11,FALSE))=0,\"\",HYPERLINK(VLOOKUP($A21,Øvrige_Krav_DATA!$A:$D,D$11,FALSE),VLOOKUP($A21,Øvrige_Krav_DATA!$A:$D,D$11,FALSE))),\"\")","v":""},9]
["(Vælg)10",{"$f":"IFERROR(IF(VLOOKUP($A22,Øvrige_Krav_DATA!$A:$D,B$11,FALSE)=0,\"\",VLOOKUP($A22,Øvrige_Krav_DATA!$A:$D,B$11,FALSE)),\"\")","v":""},{"$f":"IFERROR(IF(VLOOKUP($A22,Øvrige_Krav_DATA!$A:$D,C$11,FALSE)=0,\"\",VLOOKUP($A22,Øvrige_Krav_DATA!$A:$D,C$11,FALSE)),\"\")","v":""},{"$f":"IFERROR(IF(HYPERLINK(VLOOKUP($A22,Øvrige_Krav_DATA!$A:$D,D$11,FALSE),VLOOKUP($A22,Øvrige_Krav_DATA!$A:$D,D$11,FALSE))=0,\"\",HYPERLINK(VLOOKUP($A22,Øvrige_Krav_DATA!$A:$D,D$11,FALSE),VLOOKUP($A22,Øvrige_Krav_DATA!$A:$D,D$11,FALSE))),\"\")","v":""},10]
["(Vælg)11",{"$f":"IFERROR(IF(VLOOKUP($A23,Øvrige_Krav_DATA!$A:$D,B$11,FALSE)=0,\"\",VLOOKUP($A23,Øvrige_Krav_DATA!$A:$D,B$11,FALSE)),\"\")","v":""},{"$f":"IFERROR(IF(VLOOKUP($A23,Øvrige_Krav_DATA!$A:$D,C$11,FALSE)=0,\"\",VLOOKUP($A23,Øvrige_Krav_DATA!$A:$D,C$11,FALSE)),\"\")","v":""},{"$f":"IFERROR(IF(HYPERLINK(VLOOKUP($A23,Øvrige_Krav_DATA!$A:$D,D$11,FALSE),VLOOKUP($A23,Øvrige_Krav_DATA!$A:$D,D$11,FALSE))=0,\"\",HYPERLINK(VLOOKUP($A23,Øvrige_Krav_DATA!$A:$D,D$11,FALSE),VLOOKUP($A23,Øvrige_Krav_DATA!$A:$D,D$11,FALSE))),\"\")","v":""},11]
["(Vælg)12",{"$f":"IFERROR(IF(VLOOKUP($A24,Øvrige_Krav_DATA!$A:$D,B$11,FALSE)=0,\"\",VLOOKUP($A24,Øvrige_Krav_DATA!$A:$D,B$11,FALSE)),\"\")","v":""},{"$f":"IFERROR(IF(VLOOKUP($A24,Øvrige_Krav_DATA!$A:$D,C$11,FALSE)=0,\"\",VLOOKUP($A24,Øvrige_Krav_DATA!$A:$D,C$11,FALSE)),\"\")","v":""},{"$f":"IFERROR(IF(HYPERLINK(VLOOKUP($A24,Øvrige_Krav_DATA!$A:$D,D$11,FALSE),VLOOKUP($A24,Øvrige_Krav_DATA!$A:$D,D$11,FALSE))=0,\"\",HYPERLINK(VLOOKUP($A24,Øvrige_Krav_DATA!$A:$D,D$11,FALSE),VLOOKUP($A24,Øvrige_Krav_DATA!$A:$D,D$11,FALSE))),\"\")","v":""},12]
["(Vælg)13",{"$f":"IFERROR(IF(VLOOKUP($A25,Øvrige_Krav_DATA!$A:$D,B$11,FALSE)=0,\"\",VLOOKUP($A25,Øvrige_Krav_DATA!$A:$D,B$11,FALSE)),\"\")","v":""},{"$f":"IFERROR(IF(VLOOKUP($A25,Øvrige_Krav_DATA!$A:$D,C$11,FALSE)=0,\"\",VLOOKUP($A25,Øvrige_Krav_DATA!$A:$D,C$11,FALSE)),\"\")","v":""},{"$f":"IFERROR(IF(HYPERLINK(VLOOKUP($A25,Øvrige_Krav_DATA!$A:$D,D$11,FALSE),VLOOKUP($A25,Øvrige_Krav_DATA!$A:$D,D$11,FALSE))=0,\"\",HYPERLINK(VLOOKUP($A25,Øvrige_Krav_DATA!$A:$D,D$11,FALSE),VLOOKUP($A25,Øvrige_Krav_DATA!$A:$D,D$11,FALSE))),\"\")","v":""},13]
["(Vælg)14",{"$f":"IFERROR(IF(VLOOKUP($A26,Øvrige_Krav_DATA!$A:$D,B$11,FALSE)=0,\"\",VLOOKUP($A26,Øvrige_Krav_DATA!$A:$D,B$11,FALSE)),\"\")","v":""},{"$f":"IFERROR(IF(VLOOKUP($A26,Øvrige_Krav_DATA!$A:$D,C$11,FALSE)=0,\"\",VLOOKUP($A26,Øvrige_Krav_DATA!$A:$D,C$11,FALSE)),\"\")","v":""},{"$f":"IFERROR(IF(HYPERLINK(VLOOKUP($A26,Øvrige_Krav_DATA!$A:$D,D$11,FALSE),VLOOKUP($A26,Øvrige_Krav_DATA!$A:$D,D$11,FALSE))=0,\"\",HYPERLINK(VLOOKUP($A26,Øvrige_Krav_DATA!$A:$D,D$11,FALSE),VLOOKUP($A26,Øvrige_Krav_DATA!$A:$D,D$11,FALSE))),\"\")","v":""},14]
["(Vælg)15",{"$f":"IFERROR(IF(VLOOKUP($A27,Øvrige_Krav_DATA!$A:$D,B$11,FALSE)=0,\"\",VLOOKUP($A27,Øvrige_Krav_DATA!$A:$D,B$11,FALSE)),\"\")","v":""},{"$f":"IFERROR(IF(VLOOKUP($A27,Øvrige_Krav_DATA!$A:$D,C$11,FALSE)=0,\"\",VLOOKUP($A27,Øvrige_Krav_DATA!$A:$D,C$11,FALSE)),\"\")","v":""},{"$f":"IFERROR(IF(HYPERLINK(VLOOKUP($A27,Øvrige_Krav_DATA!$A:$D,D$11,FALSE),VLOOKUP($A27,Øvrige_Krav_DATA!$A:$D,D$11,FALSE))=0,\"\",HYPERLINK(VLOOKUP($A27,Øvrige_Krav_DATA!$A:$D,D$11,FALSE),VLOOKUP($A27,Øvrige_Krav_DATA!$A:$D,D$11,FALSE))),\"\")","v":""},15]
["(Vælg)16",{"$f":"IFERROR(IF(VLOOKUP($A28,Øvrige_Krav_DATA!$A:$D,B$11,FALSE)=0,\"\",VLOOKUP($A28,Øvrige_Krav_DATA!$A:$D,B$11,FALSE)),\"\")","v":""},{"$f":"IFERROR(IF(VLOOKUP($A28,Øvrige_Krav_DATA!$A:$D,C$11,FALSE)=0,\"\",VLOOKUP($A28,Øvrige_Krav_DATA!$A:$D,C$11,FALSE)),\"\")","v":""},{"$f":"IFERROR(IF(HYPERLINK(VLOOKUP($A28,Øvrige_Krav_DATA!$A:$D,D$11,FALSE),VLOOKUP($A28,Øvrige_Krav_DATA!$A:$D,D$11,FALSE))=0,\"\",HYPERLINK(VLOOKUP($A28,Øvrige_Krav_DATA!$A:$D,D$11,FALSE),VLOOKUP($A28,Øvrige_Krav_DATA!$A:$D,D$11,FALSE))),\"\")","v":""},16]
["(Vælg)17",{"$f":"IFERROR(IF(VLOOKUP($A29,Øvrige_Krav_DATA!$A:$D,B$11,FALSE)=0,\"\",VLOOKUP($A29,Øvrige_Krav_DATA!$A:$D,B$11,FALSE)),\"\")","v":""},{"$f":"IFERROR(IF(VLOOKUP($A29,Øvrige_Krav_DATA!$A:$D,C$11,FALSE)=0,\"\",VLOOKUP($A29,Øvrige_Krav_DATA!$A:$D,C$11,FALSE)),\"\")","v":""},{"$f":"IFERROR(IF(HYPERLINK(VLOOKUP($A29,Øvrige_Krav_DATA!$A:$D,D$11,FALSE),VLOOKUP($A29,Øvrige_Krav_DATA!$A:$D,D$11,FALSE))=0,\"\",HYPERLINK(VLOOKUP($A29,Øvrige_Krav_DATA!$A:$D,D$11,FALSE),VLOOKUP($A29,Øvrige_Krav_DATA!$A:$D,D$11,FALSE))),\"\")","v":""},17]
["(Vælg)18",{"$f":"IFERROR(IF(VLOOKUP($A30,Øvrige_Krav_DATA!$A:$D,B$11,FALSE)=0,\"\",VLOOKUP($A30,Øvrige_Krav_DATA!$A:$D,B$11,FALSE)),\"\")","v":""},{"$f":"IFERROR(IF(VLOOKUP($A30,Øvrige_Krav_DATA!$A:$D,C$11,FALSE)=0,\"\",VLOOKUP($A30,Øvrige_Krav_DATA!$A:$D,C$11,FALSE)),\"\")","v":""},{"$f":"IFERROR(IF(HYPERLINK(VLOOKUP($A30,Øvrige_Krav_DATA!$A:$D,D$11,FALSE),VLOOKUP($A30,Øvrige_Krav_DATA!$A:$D,D$11,FALSE))=0,\"\",HYPERLINK(VLOOKUP($A30,Øvrige_Krav_DATA!$A:$D,D$11,FALSE),VLOOKUP($A30,Øvrige_Krav_DATA!$A:$D,D$11,FALSE))),\"\")","v":""},18]
["(Vælg)19",{"$f":"IFERROR(IF(VLOOKUP($A31,Øvrige_Krav_DATA!$A:$D,B$11,FALSE)=0,\"\",VLOOKUP($A31,Øvrige_Krav_DATA!$A:$D,B$11,FALSE)),\"\")","v":""},{"$f":"IFERROR(IF(VLOOKUP($A31,Øvrige_Krav_DATA!$A:$D,C$11,FALSE)=0,\"\",VLOOKUP($A31,Øvrige_Krav_DATA!$A:$D,C$11,FALSE)),\"\")","v":""},{"$f":"IFERROR(IF(HYPERLINK(VLOOKUP($A31,Øvrige_Krav_DATA!$A:$D,D$11,FALSE),VLOOKUP($A31,Øvrige_Krav_DATA!$A:$D,D$11,FALSE))=0,\"\",HYPERLINK(VLOOKUP($A31,Øvrige_Krav_DATA!$A:$D,D$11,FALSE),VLOOKUP($A31,Øvrige_Krav_DATA!$A:$D,D$11,FALSE))),\"\")","v":""},19]
["(Vælg)20",{"$f":"IFERROR(IF(VLOOKUP($A32,Øvrige_Krav_DATA!$A:$D,B$11,FALSE)=0,\"\",VLOOKUP($A32,Øvrige_Krav_DATA!$A:$D,B$11,FALSE)),\"\")","v":""},{"$f":"IFERROR(IF(VLOOKUP($A32,Øvrige_Krav_DATA!$A:$D,C$11,FALSE)=0,\"\",VLOOKUP($A32,Øvrige_Krav_DATA!$A:$D,C$11,FALSE)),\"\")","v":""},{"$f":"IFERROR(IF(HYPERLINK(VLOOKUP($A32,Øvrige_Krav_DATA!$A:$D,D$11,FALSE),VLOOKUP($A32,Øvrige_Krav_DATA!$A:$D,D$11,FALSE))=0,\"\",HYPERLINK(VLOOKUP($A32,Øvrige_Krav_DATA!$A:$D,D$11,FALSE),VLOOKUP($A32,Øvrige_Krav_DATA!$A:$D,D$11,FALSE))),\"\")","v":""},20]
["(Vælg)21",{"$f":"IFERROR(IF(VLOOKUP($A33,Øvrige_Krav_DATA!$A:$D,B$11,FALSE)=0,\"\",VLOOKUP($A33,Øvrige_Krav_DATA!$A:$D,B$11,FALSE)),\"\")","v":""},{"$f":"IFERROR(IF(VLOOKUP($A33,Øvrige_Krav_DATA!$A:$D,C$11,FALSE)=0,\"\",VLOOKUP($A33,Øvrige_Krav_DATA!$A:$D,C$11,FALSE)),\"\")","v":""},{"$f":"IFERROR(IF(HYPERLINK(VLOOKUP($A33,Øvrige_Krav_DATA!$A:$D,D$11,FALSE),VLOOKUP($A33,Øvrige_Krav_DATA!$A:$D,D$11,FALSE))=0,\"\",HYPERLINK(VLOOKUP($A33,Øvrige_Krav_DATA!$A:$D,D$11,FALSE),VLOOKUP($A33,Øvrige_Krav_DATA!$A:$D,D$11,FALSE))),\"\")","v":""},21]
["(Vælg)22",{"$f":"IFERROR(IF(VLOOKUP($A34,Øvrige_Krav_DATA!$A:$D,B$11,FALSE)=0,\"\",VLOOKUP($A34,Øvrige_Krav_DATA!$A:$D,B$11,FALSE)),\"\")","v":""},{"$f":"IFERROR(IF(VLOOKUP($A34,Øvrige_Krav_DATA!$A:$D,C$11,FALSE)=0,\"\",VLOOKUP($A34,Øvrige_Krav_DATA!$A:$D,C$11,FALSE)),\"\")","v":""},{"$f":"IFERROR(IF(HYPERLINK(VLOOKUP($A34,Øvrige_Krav_DATA!$A:$D,D$11,FALSE),VLOOKUP($A34,Øvrige_Krav_DATA!$A:$D,D$11,FALSE))=0,\"\",HYPERLINK(VLOOKUP($A34,Øvrige_Krav_DATA!$A:$D,D$11,FALSE),VLOOKUP($A34,Øvrige_Krav_DATA!$A:$D,D$11,FALSE))),\"\")","v":""},22]
["(Vælg)23",{"$f":"IFERROR(IF(VLOOKUP($A35,Øvrige_Krav_DATA!$A:$D,B$11,FALSE)=0,\"\",VLOOKUP($A35,Øvrige_Krav_DATA!$A:$D,B$11,FALSE)),\"\")","v":""},{"$f":"IFERROR(IF(VLOOKUP($A35,Øvrige_Krav_DATA!$A:$D,C$11,FALSE)=0,\"\",VLOOKUP($A35,Øvrige_Krav_DATA!$A:$D,C$11,FALSE)),\"\")","v":""},{"$f":"IFERROR(IF(HYPERLINK(VLOOKUP($A35,Øvrige_Krav_DATA!$A:$D,D$11,FALSE),VLOOKUP($A35,Øvrige_Krav_DATA!$A:$D,D$11,FALSE))=0,\"\",HYPERLINK(VLOOKUP($A35,Øvrige_Krav_DATA!$A:$D,D$11,FALSE),VLOOKUP($A35,Øvrige_Krav_DATA!$A:$D,D$11,FALSE))),\"\")","v":""},23]
["(Vælg)24",{"$f":"IFERROR(IF(VLOOKUP($A36,Øvrige_Krav_DATA!$A:$D,B$11,FALSE)=0,\"\",VLOOKUP($A36,Øvrige_Krav_DATA!$A:$D,B$11,FALSE)),\"\")","v":""},{"$f":"IFERROR(IF(VLOOKUP($A36,Øvrige_Krav_DATA!$A:$D,C$11,FALSE)=0,\"\",VLOOKUP($A36,Øvrige_Krav_DATA!$A:$D,C$11,FALSE)),\"\")","v":""},{"$f":"IFERROR(IF(HYPERLINK(VLOOKUP($A36,Øvrige_Krav_DATA!$A:$D,D$11,FALSE),VLOOKUP($A36,Øvrige_Krav_DATA!$A:$D,D$11,FALSE))=0,\"\",HYPERLINK(VLOOKUP($A36,Øvrige_Krav_DATA!$A:$D,D$11,FALSE),VLOOKUP($A36,Øvrige_Krav_DATA!$A:$D,D$11,FALSE))),\"\")","v":""},24]
["(Vælg)25",{"$f":"IFERROR(IF(VLOOKUP($A37,Øvrige_Krav_DATA!$A:$D,B$11,FALSE)=0,\"\",VLOOKUP($A37,Øvrige_Krav_DATA!$A:$D,B$11,FALSE)),\"\")","v":""},{"$f":"IFERROR(IF(VLOOKUP($A37,Øvrige_Krav_DATA!$A:$D,C$11,FALSE)=0,\"\",VLOOKUP($A37,Øvrige_Krav_DATA!$A:$D,C$11,FALSE)),\"\")","v":""},{"$f":"IFERROR(IF(HYPERLINK(VLOOKUP($A37,Øvrige_Krav_DATA!$A:$D,D$11,FALSE),VLOOKUP($A37,Øvrige_Krav_DATA!$A:$D,D$11,FALSE))=0,\"\",HYPERLINK(VLOOKUP($A37,Øvrige_Krav_DATA!$A:$D,D$11,FALSE),VLOOKUP($A37,Øvrige_Krav_DATA!$A:$D,D$11,FALSE))),\"\")","v":""},25]
["(Vælg)26",{"$f":"IFERROR(IF(VLOOKUP($A38,Øvrige_Krav_DATA!$A:$D,B$11,FALSE)=0,\"\",VLOOKUP($A38,Øvrige_Krav_DATA!$A:$D,B$11,FALSE)),\"\")","v":""},{"$f":"IFERROR(IF(VLOOKUP($A38,Øvrige_Krav_DATA!$A:$D,C$11,FALSE)=0,\"\",VLOOKUP($A38,Øvrige_Krav_DATA!$A:$D,C$11,FALSE)),\"\")","v":""},{"$f":"IFERROR(IF(HYPERLINK(VLOOKUP($A38,Øvrige_Krav_DATA!$A:$D,D$11,FALSE),VLOOKUP($A38,Øvrige_Krav_DATA!$A:$D,D$11,FALSE))=0,\"\",HYPERLINK(VLOOKUP($A38,Øvrige_Krav_DATA!$A:$D,D$11,FALSE),VLOOKUP($A38,Øvrige_Krav_DATA!$A:$D,D$11,FALSE))),\"\")","v":""},26]
["(Vælg)27",{"$f":"IFERROR(IF(VLOOKUP($A39,Øvrige_Krav_DATA!$A:$D,B$11,FALSE)=0,\"\",VLOOKUP($A39,Øvrige_Krav_DATA!$A:$D,B$11,FALSE)),\"\")","v":""},{"$f":"IFERROR(IF(VLOOKUP($A39,Øvrige_Krav_DATA!$A:$D,C$11,FALSE)=0,\"\",VLOOKUP($A39,Øvrige_Krav_DATA!$A:$D,C$11,FALSE)),\"\")","v":""},{"$f":"IFERROR(IF(HYPERLINK(VLOOKUP($A39,Øvrige_Krav_DATA!$A:$D,D$11,FALSE),VLOOKUP($A39,Øvrige_Krav_DATA!$A:$D,D$11,FALSE))=0,\"\",HYPERLINK(VLOOKUP($A39,Øvrige_Krav_DATA!$A:$D,D$11,FALSE),VLOOKUP($A39,Øvrige_Krav_DATA!$A:$D,D$11,FALSE))),\"\")","v":""},27]
["(Vælg)28",{"$f":"IFERROR(IF(VLOOKUP($A40,Øvrige_Krav_DATA!$A:$D,B$11,FALSE)=0,\"\",VLOOKUP($A40,Øvrige_Krav_DATA!$A:$D,B$11,FALSE)),\"\")","v":""},{"$f":"IFERROR(IF(VLOOKUP($A40,Øvrige_Krav_DATA!$A:$D,C$11,FALSE)=0,\"\",VLOOKUP($A40,Øvrige_Krav_DATA!$A:$D,C$11,FALSE)),\"\")","v":""},{"$f":"IFERROR(IF(HYPERLINK(VLOOKUP($A40,Øvrige_Krav_DATA!$A:$D,D$11,FALSE),VLOOKUP($A40,Øvrige_Krav_DATA!$A:$D,D$11,FALSE))=0,\"\",HYPERLINK(VLOOKUP($A40,Øvrige_Krav_DATA!$A:$D,D$11,FALSE),VLOOKUP($A40,Øvrige_Krav_DATA!$A:$D,D$11,FALSE))),\"\")","v":""},28]
["(Vælg)29",{"$f":"IFERROR(IF(VLOOKUP($A41,Øvrige_Krav_DATA!$A:$D,B$11,FALSE)=0,\"\",VLOOKUP($A41,Øvrige_Krav_DATA!$A:$D,B$11,FALSE)),\"\")","v":""},{"$f":"IFERROR(IF(VLOOKUP($A41,Øvrige_Krav_DATA!$A:$D,C$11,FALSE)=0,\"\",VLOOKUP($A41,Øvrige_Krav_DATA!$A:$D,C$11,FALSE)),\"\")","v":""},{"$f":"IFERROR(IF(HYPERLINK(VLOOKUP($A41,Øvrige_Krav_DATA!$A:$D,D$11,FALSE),VLOOKUP($A41,Øvrige_Krav_DATA!$A:$D,D$11,FALSE))=0,\"\",HYPERLINK(VLOOKUP($A41,Øvrige_Krav_DATA!$A:$D,D$11,FALSE),VLOOKUP($A41,Øvrige_Krav_DATA!$A:$D,D$11,FALSE))),\"\")","v":""},29]
["(Vælg)30",{"$f":"IFERROR(IF(VLOOKUP($A42,Øvrige_Krav_DATA!$A:$D,B$11,FALSE)=0,\"\",VLOOKUP($A42,Øvrige_Krav_DATA!$A:$D,B$11,FALSE)),\"\")","v":""},{"$f":"IFERROR(IF(VLOOKUP($A42,Øvrige_Krav_DATA!$A:$D,C$11,FALSE)=0,\"\",VLOOKUP($A42,Øvrige_Krav_DATA!$A:$D,C$11,FALSE)),\"\")","v":""},{"$f":"IFERROR(IF(HYPERLINK(VLOOKUP($A42,Øvrige_Krav_DATA!$A:$D,D$11,FALSE),VLOOKUP($A42,Øvrige_Krav_DATA!$A:$D,D$11,FALSE))=0,\"\",HYPERLINK(VLOOKUP($A42,Øvrige_Krav_DATA!$A:$D,D$11,FALSE),VLOOKUP($A42,Øvrige_Krav_DATA!$A:$D,D$11,FALSE))),\"\")","v":""},30]
["(Vælg)31",{"$f":"IFERROR(IF(VLOOKUP($A43,Øvrige_Krav_DATA!$A:$D,B$11,FALSE)=0,\"\",VLOOKUP($A43,Øvrige_Krav_DATA!$A:$D,B$11,FALSE)),\"\")","v":""},{"$f":"IFERROR(IF(VLOOKUP($A43,Øvrige_Krav_DATA!$A:$D,C$11,FALSE)=0,\"\",VLOOKUP($A43,Øvrige_Krav_DATA!$A:$D,C$11,FALSE)),\"\")","v":""},{"$f":"IFERROR(IF(HYPERLINK(VLOOKUP($A43,Øvrige_Krav_DATA!$A:$D,D$11,FALSE),VLOOKUP($A43,Øvrige_Krav_DATA!$A:$D,D$11,FALSE))=0,\"\",HYPERLINK(VLOOKUP($A43,Øvrige_Krav_DATA!$A:$D,D$11,FALSE),VLOOKUP($A43,Øvrige_Krav_DATA!$A:$D,D$11,FALSE))),\"\")","v":""},31]
["(Vælg)32",{"$f":"IFERROR(IF(VLOOKUP($A44,Øvrige_Krav_DATA!$A:$D,B$11,FALSE)=0,\"\",VLOOKUP($A44,Øvrige_Krav_DATA!$A:$D,B$11,FALSE)),\"\")","v":""},{"$f":"IFERROR(IF(VLOOKUP($A44,Øvrige_Krav_DATA!$A:$D,C$11,FALSE)=0,\"\",VLOOKUP($A44,Øvrige_Krav_DATA!$A:$D,C$11,FALSE)),\"\")","v":""},{"$f":"IFERROR(IF(HYPERLINK(VLOOKUP($A44,Øvrige_Krav_DATA!$A:$D,D$11,FALSE),VLOOKUP($A44,Øvrige_Krav_DATA!$A:$D,D$11,FALSE))=0,\"\",HYPERLINK(VLOOKUP($A44,Øvrige_Krav_DATA!$A:$D,D$11,FALSE),VLOOKUP($A44,Øvrige_Krav_DATA!$A:$D,D$11,FALSE))),\"\")","v":""},32]
["(Vælg)33",{"$f":"IFERROR(IF(VLOOKUP($A45,Øvrige_Krav_DATA!$A:$D,B$11,FALSE)=0,\"\",VLOOKUP($A45,Øvrige_Krav_DATA!$A:$D,B$11,FALSE)),\"\")","v":""},{"$f":"IFERROR(IF(VLOOKUP($A45,Øvrige_Krav_DATA!$A:$D,C$11,FALSE)=0,\"\",VLOOKUP($A45,Øvrige_Krav_DATA!$A:$D,C$11,FALSE)),\"\")","v":""},{"$f":"IFERROR(IF(HYPERLINK(VLOOKUP($A45,Øvrige_Krav_DATA!$A:$D,D$11,FALSE),VLOOKUP($A45,Øvrige_Krav_DATA!$A:$D,D$11,FALSE))=0,\"\",HYPERLINK(VLOOKUP($A45,Øvrige_Krav_DATA!$A:$D,D$11,FALSE),VLOOKUP($A45,Øvrige_Krav_DATA!$A:$D,D$11,FALSE))),\"\")","v":""},33]
["(Vælg)34",{"$f":"IFERROR(IF(VLOOKUP($A46,Øvrige_Krav_DATA!$A:$D,B$11,FALSE)=0,\"\",VLOOKUP($A46,Øvrige_Krav_DATA!$A:$D,B$11,FALSE)),\"\")","v":""},{"$f":"IFERROR(IF(VLOOKUP($A46,Øvrige_Krav_DATA!$A:$D,C$11,FALSE)=0,\"\",VLOOKUP($A46,Øvrige_Krav_DATA!$A:$D,C$11,FALSE)),\"\")","v":""},{"$f":"IFERROR(IF(HYPERLINK(VLOOKUP($A46,Øvrige_Krav_DATA!$A:$D,D$11,FALSE),VLOOKUP($A46,Øvrige_Krav_DATA!$A:$D,D$11,FALSE))=0,\"\",HYPERLINK(VLOOKUP($A46,Øvrige_Krav_DATA!$A:$D,D$11,FALSE),VLOOKUP($A46,Øvrige_Krav_DATA!$A:$D,D$11,FALSE))),\"\")","v":""},34]
["(Vælg)35",{"$f":"IFERROR(IF(VLOOKUP($A47,Øvrige_Krav_DATA!$A:$D,B$11,FALSE)=0,\"\",VLOOKUP($A47,Øvrige_Krav_DATA!$A:$D,B$11,FALSE)),\"\")","v":""},{"$f":"IFERROR(IF(VLOOKUP($A47,Øvrige_Krav_DATA!$A:$D,C$11,FALSE)=0,\"\",VLOOKUP($A47,Øvrige_Krav_DATA!$A:$D,C$11,FALSE)),\"\")","v":""},{"$f":"IFERROR(IF(HYPERLINK(VLOOKUP($A47,Øvrige_Krav_DATA!$A:$D,D$11,FALSE),VLOOKUP($A47,Øvrige_Krav_DATA!$A:$D,D$11,FALSE))=0,\"\",HYPERLINK(VLOOKUP($A47,Øvrige_Krav_DATA!$A:$D,D$11,FALSE),VLOOKUP($A47,Øvrige_Krav_DATA!$A:$D,D$11,FALSE))),\"\")","v":""},35]
["(Vælg)36",{"$f":"IFERROR(IF(VLOOKUP($A48,Øvrige_Krav_DATA!$A:$D,B$11,FALSE)=0,\"\",VLOOKUP($A48,Øvrige_Krav_DATA!$A:$D,B$11,FALSE)),\"\")","v":""},{"$f":"IFERROR(IF(VLOOKUP($A48,Øvrige_Krav_DATA!$A:$D,C$11,FALSE)=0,\"\",VLOOKUP($A48,Øvrige_Krav_DATA!$A:$D,C$11,FALSE)),\"\")","v":""},{"$f":"IFERROR(IF(HYPERLINK(VLOOKUP($A48,Øvrige_Krav_DATA!$A:$D,D$11,FALSE),VLOOKUP($A48,Øvrige_Krav_DATA!$A:$D,D$11,FALSE))=0,\"\",HYPERLINK(VLOOKUP($A48,Øvrige_Krav_DATA!$A:$D,D$11,FALSE),VLOOKUP($A48,Øvrige_Krav_DATA!$A:$D,D$11,FALSE))),\"\")","v":""},36]
["(Vælg)37",{"$f":"IFERROR(IF(VLOOKUP($A49,Øvrige_Krav_DATA!$A:$D,B$11,FALSE)=0,\"\",VLOOKUP($A49,Øvrige_Krav_DATA!$A:$D,B$11,FALSE)),\"\")","v":""},{"$f":"IFERROR(IF(VLOOKUP($A49,Øvrige_Krav_DATA!$A:$D,C$11,FALSE)=0,\"\",VLOOKUP($A49,Øvrige_Krav_DATA!$A:$D,C$11,FALSE)),\"\")","v":""},{"$f":"IFERROR(IF(HYPERLINK(VLOOKUP($A49,Øvrige_Krav_DATA!$A:$D,D$11,FALSE),VLOOKUP($A49,Øvrige_Krav_DATA!$A:$D,D$11,FALSE))=0,\"\",HYPERLINK(VLOOKUP($A49,Øvrige_Krav_DATA!$A:$D,D$11,FALSE),VLOOKUP($A49,Øvrige_Krav_DATA!$A:$D,D$11,FALSE))),\"\")","v":""},37]
["(Vælg)38",{"$f":"IFERROR(IF(VLOOKUP($A50,Øvrige_Krav_DATA!$A:$D,B$11,FALSE)=0,\"\",VLOOKUP($A50,Øvrige_Krav_DATA!$A:$D,B$11,FALSE)),\"\")","v":""},{"$f":"IFERROR(IF(VLOOKUP($A50,Øvrige_Krav_DATA!$A:$D,C$11,FALSE)=0,\"\",VLOOKUP($A50,Øvrige_Krav_DATA!$A:$D,C$11,FALSE)),\"\")","v":""},{"$f":"IFERROR(IF(HYPERLINK(VLOOKUP($A50,Øvrige_Krav_DATA!$A:$D,D$11,FALSE),VLOOKUP($A50,Øvrige_Krav_DATA!$A:$D,D$11,FALSE))=0,\"\",HYPERLINK(VLOOKUP($A50,Øvrige_Krav_DATA!$A:$D,D$11,FALSE),VLOOKUP($A50,Øvrige_Krav_DATA!$A:$D,D$11,FALSE))),\"\")","v":""},38]
["(Vælg)39",{"$f":"IFERROR(IF(VLOOKUP($A51,Øvrige_Krav_DATA!$A:$D,B$11,FALSE)=0,\"\",VLOOKUP($A51,Øvrige_Krav_DATA!$A:$D,B$11,FALSE)),\"\")","v":""},{"$f":"IFERROR(IF(VLOOKUP($A51,Øvrige_Krav_DATA!$A:$D,C$11,FALSE)=0,\"\",VLOOKUP($A51,Øvrige_Krav_DATA!$A:$D,C$11,FALSE)),\"\")","v":""},{"$f":"IFERROR(IF(HYPERLINK(VLOOKUP($A51,Øvrige_Krav_DATA!$A:$D,D$11,FALSE),VLOOKUP($A51,Øvrige_Krav_DATA!$A:$D,D$11,FALSE))=0,\"\",HYPERLINK(VLOOKUP($A51,Øvrige_Krav_DATA!$A:$D,D$11,FALSE),VLOOKUP($A51,Øvrige_Krav_DATA!$A:$D,D$11,FALSE))),\"\")","v":""},39]
["(Vælg)40",{"$f":"IFERROR(IF(VLOOKUP($A52,Øvrige_Krav_DATA!$A:$D,B$11,FALSE)=0,\"\",VLOOKUP($A52,Øvrige_Krav_DATA!$A:$D,B$11,FALSE)),\"\")","v":""},{"$f":"IFERROR(IF(VLOOKUP($A52,Øvrige_Krav_DATA!$A:$D,C$11,FALSE)=0,\"\",VLOOKUP($A52,Øvrige_Krav_DATA!$A:$D,C$11,FALSE)),\"\")","v":""},{"$f":"IFERROR(IF(HYPERLINK(VLOOKUP($A52,Øvrige_Krav_DATA!$A:$D,D$11,FALSE),VLOOKUP($A52,Øvrige_Krav_DATA!$A:$D,D$11,FALSE))=0,\"\",HYPERLINK(VLOOKUP($A52,Øvrige_Krav_DATA!$A:$D,D$11,FALSE),VLOOKUP($A52,Øvrige_Krav_DATA!$A:$D,D$11,FALSE))),\"\")","v":""},40]
["(Vælg)41",{"$f":"IFERROR(IF(VLOOKUP($A53,Øvrige_Krav_DATA!$A:$D,B$11,FALSE)=0,\"\",VLOOKUP($A53,Øvrige_Krav_DATA!$A:$D,B$11,FALSE)),\"\")","v":""},{"$f":"IFERROR(IF(VLOOKUP($A53,Øvrige_Krav_DATA!$A:$D,C$11,FALSE)=0,\"\",VLOOKUP($A53,Øvrige_Krav_DATA!$A:$D,C$11,FALSE)),\"\")","v":""},{"$f":"IFERROR(IF(HYPERLINK(VLOOKUP($A53,Øvrige_Krav_DATA!$A:$D,D$11,FALSE),VLOOKUP($A53,Øvrige_Krav_DATA!$A:$D,D$11,FALSE))=0,\"\",HYPERLINK(VLOOKUP($A53,Øvrige_Krav_DATA!$A:$D,D$11,FALSE),VLOOKUP($A53,Øvrige_Krav_DATA!$A:$D,D$11,FALSE))),\"\")","v":""},41]
["(Vælg)42",{"$f":"IFERROR(IF(VLOOKUP($A54,Øvrige_Krav_DATA!$A:$D,B$11,FALSE)=0,\"\",VLOOKUP($A54,Øvrige_Krav_DATA!$A:$D,B$11,FALSE)),\"\")","v":""},{"$f":"IFERROR(IF(VLOOKUP($A54,Øvrige_Krav_DATA!$A:$D,C$11,FALSE)=0,\"\",VLOOKUP($A54,Øvrige_Krav_DATA!$A:$D,C$11,FALSE)),\"\")","v":""},{"$f":"IFERROR(IF(HYPERLINK(VLOOKUP($A54,Øvrige_Krav_DATA!$A:$D,D$11,FALSE),VLOOKUP($A54,Øvrige_Krav_DATA!$A:$D,D$11,FALSE))=0,\"\",HYPERLINK(VLOOKUP($A54,Øvrige_Krav_DATA!$A:$D,D$11,FALSE),VLOOKUP($A54,Øvrige_Krav_DATA!$A:$D,D$11,FALSE))),\"\")","v":""},42]
["(Vælg)43",{"$f":"IFERROR(IF(VLOOKUP($A55,Øvrige_Krav_DATA!$A:$D,B$11,FALSE)=0,\"\",VLOOKUP($A55,Øvrige_Krav_DATA!$A:$D,B$11,FALSE)),\"\")","v":""},{"$f":"IFERROR(IF(VLOOKUP($A55,Øvrige_Krav_DATA!$A:$D,C$11,FALSE)=0,\"\",VLOOKUP($A55,Øvrige_Krav_DATA!$A:$D,C$11,FALSE)),\"\")","v":""},{"$f":"IFERROR(IF(HYPERLINK(VLOOKUP($A55,Øvrige_Krav_DATA!$A:$D,D$11,FALSE),VLOOKUP($A55,Øvrige_Krav_DATA!$A:$D,D$11,FALSE))=0,\"\",HYPERLINK(VLOOKUP($A55,Øvrige_Krav_DATA!$A:$D,D$11,FALSE),VLOOKUP($A55,Øvrige_Krav_DATA!$A:$D,D$11,FALSE))),\"\")","v":""},43]
["(Vælg)44",{"$f":"IFERROR(IF(VLOOKUP($A56,Øvrige_Krav_DATA!$A:$D,B$11,FALSE)=0,\"\",VLOOKUP($A56,Øvrige_Krav_DATA!$A:$D,B$11,FALSE)),\"\")","v":""},{"$f":"IFERROR(IF(VLOOKUP($A56,Øvrige_Krav_DATA!$A:$D,C$11,FALSE)=0,\"\",VLOOKUP($A56,Øvrige_Krav_DATA!$A:$D,C$11,FALSE)),\"\")","v":""},{"$f":"IFERROR(IF(HYPERLINK(VLOOKUP($A56,Øvrige_Krav_DATA!$A:$D,D$11,FALSE),VLOOKUP($A56,Øvrige_Krav_DATA!$A:$D,D$11,FALSE))=0,\"\",HYPERLINK(VLOOKUP($A56,Øvrige_Krav_DATA!$A:$D,D$11,FALSE),VLOOKUP($A56,Øvrige_Krav_DATA!$A:$D,D$11,FALSE))),\"\")","v":""},44]
["(Vælg)45",{"$f":"IFERROR(IF(VLOOKUP($A57,Øvrige_Krav_DATA!$A:$D,B$11,FALSE)=0,\"\",VLOOKUP($A57,Øvrige_Krav_DATA!$A:$D,B$11,FALSE)),\"\")","v":""},{"$f":"IFERROR(IF(VLOOKUP($A57,Øvrige_Krav_DATA!$A:$D,C$11,FALSE)=0,\"\",VLOOKUP($A57,Øvrige_Krav_DATA!$A:$D,C$11,FALSE)),\"\")","v":""},{"$f":"IFERROR(IF(HYPERLINK(VLOOKUP($A57,Øvrige_Krav_DATA!$A:$D,D$11,FALSE),VLOOKUP($A57,Øvrige_Krav_DATA!$A:$D,D$11,FALSE))=0,\"\",HYPERLINK(VLOOKUP($A57,Øvrige_Krav_DATA!$A:$D,D$11,FALSE),VLOOKUP($A57,Øvrige_Krav_DATA!$A:$D,D$11,FALSE))),\"\")","v":""},45]
["(Vælg)46",{"$f":"IFERROR(IF(VLOOKUP($A58,Øvrige_Krav_DATA!$A:$D,B$11,FALSE)=0,\"\",VLOOKUP($A58,Øvrige_Krav_DATA!$A:$D,B$11,FALSE)),\"\")","v":""},{"$f":"IFERROR(IF(VLOOKUP($A58,Øvrige_Krav_DATA!$A:$D,C$11,FALSE)=0,\"\",VLOOKUP($A58,Øvrige_Krav_DATA!$A:$D,C$11,FALSE)),\"\")","v":""},{"$f":"IFERROR(IF(HYPERLINK(VLOOKUP($A58,Øvrige_Krav_DATA!$A:$D,D$11,FALSE),VLOOKUP($A58,Øvrige_Krav_DATA!$A:$D,D$11,FALSE))=0,\"\",HYPERLINK(VLOOKUP($A58,Øvrige_Krav_DATA!$A:$D,D$11,FALSE),VLOOKUP($A58,Øvrige_Krav_DATA!$A:$D,D$11,FALSE))),\"\")","v":""},46]
["(Vælg)47",{"$f":"IFERROR(IF(VLOOKUP($A59,Øvrige_Krav_DATA!$A:$D,B$11,FALSE)=0,\"\",VLOOKUP($A59,Øvrige_Krav_DATA!$A:$D,B$11,FALSE)),\"\")","v":""},{"$f":"IFERROR(IF(VLOOKUP($A59,Øvrige_Krav_DATA!$A:$D,C$11,FALSE)=0,\"\",VLOOKUP($A59,Øvrige_Krav_DATA!$A:$D,C$11,FALSE)),\"\")","v":""},{"$f":"IFERROR(IF(HYPERLINK(VLOOKUP($A59,Øvrige_Krav_DATA!$A:$D,D$11,FALSE),VLOOKUP($A59,Øvrige_Krav_DATA!$A:$D,D$11,FALSE))=0,\"\",HYPERLINK(VLOOKUP($A59,Øvrige_Krav_DATA!$A:$D,D$11,FALSE),VLOOKUP($A59,Øvrige_Krav_DATA!$A:$D,D$11,FALSE))),\"\")","v":""},47]
["(Vælg)48",{"$f":"IFERROR(IF(VLOOKUP($A60,Øvrige_Krav_DATA!$A:$D,B$11,FALSE)=0,\"\",VLOOKUP($A60,Øvrige_Krav_DATA!$A:$D,B$11,FALSE)),\"\")","v":""},{"$f":"IFERROR(IF(VLOOKUP($A60,Øvrige_Krav_DATA!$A:$D,C$11,FALSE)=0,\"\",VLOOKUP($A60,Øvrige_Krav_DATA!$A:$D,C$11,FALSE)),\"\")","v":""},{"$f":"IFERROR(IF(HYPERLINK(VLOOKUP($A60,Øvrige_Krav_DATA!$A:$D,D$11,FALSE),VLOOKUP($A60,Øvrige_Krav_DATA!$A:$D,D$11,FALSE))=0,\"\",HYPERLINK(VLOOKUP($A60,Øvrige_Krav_DATA!$A:$D,D$11,FALSE),VLOOKUP($A60,Øvrige_Krav_DATA!$A:$D,D$11,FALSE))),\"\")","v":""},48]
["(Vælg)49",{"$f":"IFERROR(IF(VLOOKUP($A61,Øvrige_Krav_DATA!$A:$D,B$11,FALSE)=0,\"\",VLOOKUP($A61,Øvrige_Krav_DATA!$A:$D,B$11,FALSE)),\"\")","v":""},{"$f":"IFERROR(IF(VLOOKUP($A61,Øvrige_Krav_DATA!$A:$D,C$11,FALSE)=0,\"\",VLOOKUP($A61,Øvrige_Krav_DATA!$A:$D,C$11,FALSE)),\"\")","v":""},{"$f":"IFERROR(IF(HYPERLINK(VLOOKUP($A61,Øvrige_Krav_DATA!$A:$D,D$11,FALSE),VLOOKUP($A61,Øvrige_Krav_DATA!$A:$D,D$11,FALSE))=0,\"\",HYPERLINK(VLOOKUP($A61,Øvrige_Krav_DATA!$A:$D,D$11,FALSE),VLOOKUP($A61,Øvrige_Krav_DATA!$A:$D,D$11,FALSE))),\"\")","v":""},49]
["(Vælg)50",{"$f":"IFERROR(IF(VLOOKUP($A62,Øvrige_Krav_DATA!$A:$D,B$11,FALSE)=0,\"\",VLOOKUP($A62,Øvrige_Krav_DATA!$A:$D,B$11,FALSE)),\"\")","v":""},{"$f":"IFERROR(IF(VLOOKUP($A62,Øvrige_Krav_DATA!$A:$D,C$11,FALSE)=0,\"\",VLOOKUP($A62,Øvrige_Krav_DATA!$A:$D,C$11,FALSE)),\"\")","v":""},{"$f":"IFERROR(IF(HYPERLINK(VLOOKUP($A62,Øvrige_Krav_DATA!$A:$D,D$11,FALSE),VLOOKUP($A62,Øvrige_Krav_DATA!$A:$D,D$11,FALSE))=0,\"\",HYPERLINK(VLOOKUP($A62,Øvrige_Krav_DATA!$A:$D,D$11,FALSE),VLOOKUP($A62,Øvrige_Krav_DATA!$A:$D,D$11,FALSE))),\"\")","v":""},50]
["(Vælg)51",{"$f":"IFERROR(IF(VLOOKUP($A63,Øvrige_Krav_DATA!$A:$D,B$11,FALSE)=0,\"\",VLOOKUP($A63,Øvrige_Krav_DATA!$A:$D,B$11,FALSE)),\"\")","v":""},{"$f":"IFERROR(IF(VLOOKUP($A63,Øvrige_Krav_DATA!$A:$D,C$11,FALSE)=0,\"\",VLOOKUP($A63,Øvrige_Krav_DATA!$A:$D,C$11,FALSE)),\"\")","v":""},{"$f":"IFERROR(IF(HYPERLINK(VLOOKUP($A63,Øvrige_Krav_DATA!$A:$D,D$11,FALSE),VLOOKUP($A63,Øvrige_Krav_DATA!$A:$D,D$11,FALSE))=0,\"\",HYPERLINK(VLOOKUP($A63,Øvrige_Krav_DATA!$A:$D,D$11,FALSE),VLOOKUP($A63,Øvrige_Krav_DATA!$A:$D,D$11,FALSE))),\"\")","v":""},51]
["(Vælg)52",{"$f":"IFERROR(IF(VLOOKUP($A64,Øvrige_Krav_DATA!$A:$D,B$11,FALSE)=0,\"\",VLOOKUP($A64,Øvrige_Krav_DATA!$A:$D,B$11,FALSE)),\"\")","v":""},{"$f":"IFERROR(IF(VLOOKUP($A64,Øvrige_Krav_DATA!$A:$D,C$11,FALSE)=0,\"\",VLOOKUP($A64,Øvrige_Krav_DATA!$A:$D,C$11,FALSE)),\"\")","v":""},{"$f":"IFERROR(IF(HYPERLINK(VLOOKUP($A64,Øvrige_Krav_DATA!$A:$D,D$11,FALSE),VLOOKUP($A64,Øvrige_Krav_DATA!$A:$D,D$11,FALSE))=0,\"\",HYPERLINK(VLOOKUP($A64,Øvrige_Krav_DATA!$A:$D,D$11,FALSE),VLOOKUP($A64,Øvrige_Krav_DATA!$A:$D,D$11,FALSE))),\"\")","v":""},52]
["(Vælg)53",{"$f":"IFERROR(IF(VLOOKUP($A65,Øvrige_Krav_DATA!$A:$D,B$11,FALSE)=0,\"\",VLOOKUP($A65,Øvrige_Krav_DATA!$A:$D,B$11,FALSE)),\"\")","v":""},{"$f":"IFERROR(IF(VLOOKUP($A65,Øvrige_Krav_DATA!$A:$D,C$11,FALSE)=0,\"\",VLOOKUP($A65,Øvrige_Krav_DATA!$A:$D,C$11,FALSE)),\"\")","v":""},{"$f":"IFERROR(IF(HYPERLINK(VLOOKUP($A65,Øvrige_Krav_DATA!$A:$D,D$11,FALSE),VLOOKUP($A65,Øvrige_Krav_DATA!$A:$D,D$11,FALSE))=0,\"\",HYPERLINK(VLOOKUP($A65,Øvrige_Krav_DATA!$A:$D,D$11,FALSE),VLOOKUP($A65,Øvrige_Krav_DATA!$A:$D,D$11,FALSE))),\"\")","v":""},53]
["(Vælg)54",{"$f":"IFERROR(IF(VLOOKUP($A66,Øvrige_Krav_DATA!$A:$D,B$11,FALSE)=0,\"\",VLOOKUP($A66,Øvrige_Krav_DATA!$A:$D,B$11,FALSE)),\"\")","v":""},{"$f":"IFERROR(IF(VLOOKUP($A66,Øvrige_Krav_DATA!$A:$D,C$11,FALSE)=0,\"\",VLOOKUP($A66,Øvrige_Krav_DATA!$A:$D,C$11,FALSE)),\"\")","v":""},{"$f":"IFERROR(IF(HYPERLINK(VLOOKUP($A66,Øvrige_Krav_DATA!$A:$D,D$11,FALSE),VLOOKUP($A66,Øvrige_Krav_DATA!$A:$D,D$11,FALSE))=0,\"\",HYPERLINK(VLOOKUP($A66,Øvrige_Krav_DATA!$A:$D,D$11,FALSE),VLOOKUP($A66,Øvrige_Krav_DATA!$A:$D,D$11,FALSE))),\"\")","v":""},54]
["(Vælg)55",{"$f":"IFERROR(IF(VLOOKUP($A67,Øvrige_Krav_DATA!$A:$D,B$11,FALSE)=0,\"\",VLOOKUP($A67,Øvrige_Krav_DATA!$A:$D,B$11,FALSE)),\"\")","v":""},{"$f":"IFERROR(IF(VLOOKUP($A67,Øvrige_Krav_DATA!$A:$D,C$11,FALSE)=0,\"\",VLOOKUP($A67,Øvrige_Krav_DATA!$A:$D,C$11,FALSE)),\"\")","v":""},{"$f":"IFERROR(IF(HYPERLINK(VLOOKUP($A67,Øvrige_Krav_DATA!$A:$D,D$11,FALSE),VLOOKUP($A67,Øvrige_Krav_DATA!$A:$D,D$11,FALSE))=0,\"\",HYPERLINK(VLOOKUP($A67,Øvrige_Krav_DATA!$A:$D,D$11,FALSE),VLOOKUP($A67,Øvrige_Krav_DATA!$A:$D,D$11,FALSE))),\"\")","v":""},55]
["(Vælg)56",{"$f":"IFERROR(IF(VLOOKUP($A68,Øvrige_Krav_DATA!$A:$D,B$11,FALSE)=0,\"\",VLOOKUP($A68,Øvrige_Krav_DATA!$A:$D,B$11,FALSE)),\"\")","v":""},{"$f":"IFERROR(IF(VLOOKUP($A68,Øvrige_Krav_DATA!$A:$D,C$11,FALSE)=0,\"\",VLOOKUP($A68,Øvrige_Krav_DATA!$A:$D,C$11,FALSE)),\"\")","v":""},{"$f":"IFERROR(IF(HYPERLINK(VLOOKUP($A68,Øvrige_Krav_DATA!$A:$D,D$11,FALSE),VLOOKUP($A68,Øvrige_Krav_DATA!$A:$D,D$11,FALSE))=0,\"\",HYPERLINK(VLOOKUP($A68,Øvrige_Krav_DATA!$A:$D,D$11,FALSE),VLOOKUP($A68,Øvrige_Krav_DATA!$A:$D,D$11,FALSE))),\"\")","v":""},56]
["(Vælg)57",{"$f":"IFERROR(IF(VLOOKUP($A69,Øvrige_Krav_DATA!$A:$D,B$11,FALSE)=0,\"\",VLOOKUP($A69,Øvrige_Krav_DATA!$A:$D,B$11,FALSE)),\"\")","v":""},{"$f":"IFERROR(IF(VLOOKUP($A69,Øvrige_Krav_DATA!$A:$D,C$11,FALSE)=0,\"\",VLOOKUP($A69,Øvrige_Krav_DATA!$A:$D,C$11,FALSE)),\"\")","v":""},{"$f":"IFERROR(IF(HYPERLINK(VLOOKUP($A69,Øvrige_Krav_DATA!$A:$D,D$11,FALSE),VLOOKUP($A69,Øvrige_Krav_DATA!$A:$D,D$11,FALSE))=0,\"\",HYPERLINK(VLOOKUP($A69,Øvrige_Krav_DATA!$A:$D,D$11,FALSE),VLOOKUP($A69,Øvrige_Krav_DATA!$A:$D,D$11,FALSE))),\"\")","v":""},57]
["(Vælg)58",{"$f":"IFERROR(IF(VLOOKUP($A70,Øvrige_Krav_DATA!$A:$D,B$11,FALSE)=0,\"\",VLOOKUP($A70,Øvrige_Krav_DATA!$A:$D,B$11,FALSE)),\"\")","v":""},{"$f":"IFERROR(IF(VLOOKUP($A70,Øvrige_Krav_DATA!$A:$D,C$11,FALSE)=0,\"\",VLOOKUP($A70,Øvrige_Krav_DATA!$A:$D,C$11,FALSE)),\"\")","v":""},{"$f":"IFERROR(IF(HYPERLINK(VLOOKUP($A70,Øvrige_Krav_DATA!$A:$D,D$11,FALSE),VLOOKUP($A70,Øvrige_Krav_DATA!$A:$D,D$11,FALSE))=0,\"\",HYPERLINK(VLOOKUP($A70,Øvrige_Krav_DATA!$A:$D,D$11,FALSE),VLOOKUP($A70,Øvrige_Krav_DATA!$A:$D,D$11,FALSE))),\"\")","v":""},58]
["(Vælg)59",{"$f":"IFERROR(IF(VLOOKUP($A71,Øvrige_Krav_DATA!$A:$D,B$11,FALSE)=0,\"\",VLOOKUP($A71,Øvrige_Krav_DATA!$A:$D,B$11,FALSE)),\"\")","v":""},{"$f":"IFERROR(IF(VLOOKUP($A71,Øvrige_Krav_DATA!$A:$D,C$11,FALSE)=0,\"\",VLOOKUP($A71,Øvrige_Krav_DATA!$A:$D,C$11,FALSE)),\"\")","v":""},{"$f":"IFERROR(IF(HYPERLINK(VLOOKUP($A71,Øvrige_Krav_DATA!$A:$D,D$11,FALSE),VLOOKUP($A71,Øvrige_Krav_DATA!$A:$D,D$11,FALSE))=0,\"\",HYPERLINK(VLOOKUP($A71,Øvrige_Krav_DATA!$A:$D,D$11,FALSE),VLOOKUP($A71,Øvrige_Krav_DATA!$A:$D,D$11,FALSE))),\"\")","v":""},59]
["(Vælg)60",{"$f":"IFERROR(IF(VLOOKUP($A72,Øvrige_Krav_DATA!$A:$D,B$11,FALSE)=0,\"\",VLOOKUP($A72,Øvrige_Krav_DATA!$A:$D,B$11,FALSE)),\"\")","v":""},{"$f":"IFERROR(IF(VLOOKUP($A72,Øvrige_Krav_DATA!$A:$D,C$11,FALSE)=0,\"\",VLOOKUP($A72,Øvrige_Krav_DATA!$A:$D,C$11,FALSE)),\"\")","v":""},{"$f":"IFERROR(IF(HYPERLINK(VLOOKUP($A72,Øvrige_Krav_DATA!$A:$D,D$11,FALSE),VLOOKUP($A72,Øvrige_Krav_DATA!$A:$D,D$11,FALSE))=0,\"\",HYPERLINK(VLOOKUP($A72,Øvrige_Krav_DATA!$A:$D,D$11,FALSE),VLOOKUP($A72,Øvrige_Krav_DATA!$A:$D,D$11,FALSE))),\"\")","v":""},60]
["(Vælg)61",{"$f":"IFERROR(IF(VLOOKUP($A73,Øvrige_Krav_DATA!$A:$D,B$11,FALSE)=0,\"\",VLOOKUP($A73,Øvrige_Krav_DATA!$A:$D,B$11,FALSE)),\"\")","v":""},{"$f":"IFERROR(IF(VLOOKUP($A73,Øvrige_Krav_DATA!$A:$D,C$11,FALSE)=0,\"\",VLOOKUP($A73,Øvrige_Krav_DATA!$A:$D,C$11,FALSE)),\"\")","v":""},{"$f":"IFERROR(IF(HYPERLINK(VLOOKUP($A73,Øvrige_Krav_DATA!$A:$D,D$11,FALSE),VLOOKUP($A73,Øvrige_Krav_DATA!$A:$D,D$11,FALSE))=0,\"\",HYPERLINK(VLOOKUP($A73,Øvrige_Krav_DATA!$A:$D,D$11,FALSE),VLOOKUP($A73,Øvrige_Krav_DATA!$A:$D,D$11,FALSE))),\"\")","v":""},61]
["(Vælg)62",{"$f":"IFERROR(IF(VLOOKUP($A74,Øvrige_Krav_DATA!$A:$D,B$11,FALSE)=0,\"\",VLOOKUP($A74,Øvrige_Krav_DATA!$A:$D,B$11,FALSE)),\"\")","v":""},{"$f":"IFERROR(IF(VLOOKUP($A74,Øvrige_Krav_DATA!$A:$D,C$11,FALSE)=0,\"\",VLOOKUP($A74,Øvrige_Krav_DATA!$A:$D,C$11,FALSE)),\"\")","v":""},{"$f":"IFERROR(IF(HYPERLINK(VLOOKUP($A74,Øvrige_Krav_DATA!$A:$D,D$11,FALSE),VLOOKUP($A74,Øvrige_Krav_DATA!$A:$D,D$11,FALSE))=0,\"\",HYPERLINK(VLOOKUP($A74,Øvrige_Krav_DATA!$A:$D,D$11,FALSE),VLOOKUP($A74,Øvrige_Krav_DATA!$A:$D,D$11,FALSE))),\"\")","v":""},62]
["(Vælg)63",{"$f":"IFERROR(IF(VLOOKUP($A75,Øvrige_Krav_DATA!$A:$D,B$11,FALSE)=0,\"\",VLOOKUP($A75,Øvrige_Krav_DATA!$A:$D,B$11,FALSE)),\"\")","v":""},{"$f":"IFERROR(IF(VLOOKUP($A75,Øvrige_Krav_DATA!$A:$D,C$11,FALSE)=0,\"\",VLOOKUP($A75,Øvrige_Krav_DATA!$A:$D,C$11,FALSE)),\"\")","v":""},{"$f":"IFERROR(IF(HYPERLINK(VLOOKUP($A75,Øvrige_Krav_DATA!$A:$D,D$11,FALSE),VLOOKUP($A75,Øvrige_Krav_DATA!$A:$D,D$11,FALSE))=0,\"\",HYPERLINK(VLOOKUP($A75,Øvrige_Krav_DATA!$A:$D,D$11,FALSE),VLOOKUP($A75,Øvrige_Krav_DATA!$A:$D,D$11,FALSE))),\"\")","v":""},63]
["(Vælg)64",{"$f":"IFERROR(IF(VLOOKUP($A76,Øvrige_Krav_DATA!$A:$D,B$11,FALSE)=0,\"\",VLOOKUP($A76,Øvrige_Krav_DATA!$A:$D,B$11,FALSE)),\"\")","v":""},{"$f":"IFERROR(IF(VLOOKUP($A76,Øvrige_Krav_DATA!$A:$D,C$11,FALSE)=0,\"\",VLOOKUP($A76,Øvrige_Krav_DATA!$A:$D,C$11,FALSE)),\"\")","v":""},{"$f":"IFERROR(IF(HYPERLINK(VLOOKUP($A76,Øvrige_Krav_DATA!$A:$D,D$11,FALSE),VLOOKUP($A76,Øvrige_Krav_DATA!$A:$D,D$11,FALSE))=0,\"\",HYPERLINK(VLOOKUP($A76,Øvrige_Krav_DATA!$A:$D,D$11,FALSE),VLOOKUP($A76,Øvrige_Krav_DATA!$A:$D,D$11,FALSE))),\"\")","v":""},64]
["(Vælg)65",{"$f":"IFERROR(IF(VLOOKUP($A77,Øvrige_Krav_DATA!$A:$D,B$11,FALSE)=0,\"\",VLOOKUP($A77,Øvrige_Krav_DATA!$A:$D,B$11,FALSE)),\"\")","v":""},{"$f":"IFERROR(IF(VLOOKUP($A77,Øvrige_Krav_DATA!$A:$D,C$11,FALSE)=0,\"\",VLOOKUP($A77,Øvrige_Krav_DATA!$A:$D,C$11,FALSE)),\"\")","v":""},{"$f":"IFERROR(IF(HYPERLINK(VLOOKUP($A77,Øvrige_Krav_DATA!$A:$D,D$11,FALSE),VLOOKUP($A77,Øvrige_Krav_DATA!$A:$D,D$11,FALSE))=0,\"\",HYPERLINK(VLOOKUP($A77,Øvrige_Krav_DATA!$A:$D,D$11,FALSE),VLOOKUP($A77,Øvrige_Krav_DATA!$A:$D,D$11,FALSE))),\"\")","v":""},65]
[{"$f":"CONCATENATE($C$6,E78)","v":"(Vælg)66"},{"$f":"IFERROR(IF(VLOOKUP($A78,Øvrige_Krav_DATA!$A:$D,B$11,FALSE)=0,\"\",VLOOKUP($A78,Øvrige_Krav_DATA!$A:$D,B$11,FALSE)),\"\")","v":""},{"$f":"IFERROR(IF(VLOOKUP($A78,Øvrige_Krav_DATA!$A:$D,C$11,FALSE)=0,\"\",VLOOKUP($A78,Øvrige_Krav_DATA!$A:$D,C$11,FALSE)),\"\")","v":""},{"$f":"IFERROR(IF(HYPERLINK(VLOOKUP($A78,Øvrige_Krav_DATA!$A:$D,D$11,FALSE),VLOOKUP($A78,Øvrige_Krav_DATA!$A:$D,D$11,FALSE))=0,\"\",HYPERLINK(VLOOKUP($A78,Øvrige_Krav_DATA!$A:$D,D$11,FALSE),VLOOKUP($A78,Øvrige_Krav_DATA!$A:$D,D$11,FALSE))),\"\")","v":""},66]
["(Vælg)67",{"$f":"IFERROR(IF(VLOOKUP($A79,Øvrige_Krav_DATA!$A:$D,B$11,FALSE)=0,\"\",VLOOKUP($A79,Øvrige_Krav_DATA!$A:$D,B$11,FALSE)),\"\")","v":""},{"$f":"IFERROR(IF(VLOOKUP($A79,Øvrige_Krav_DATA!$A:$D,C$11,FALSE)=0,\"\",VLOOKUP($A79,Øvrige_Krav_DATA!$A:$D,C$11,FALSE)),\"\")","v":""},{"$f":"IFERROR(IF(HYPERLINK(VLOOKUP($A79,Øvrige_Krav_DATA!$A:$D,D$11,FALSE),VLOOKUP($A79,Øvrige_Krav_DATA!$A:$D,D$11,FALSE))=0,\"\",HYPERLINK(VLOOKUP($A79,Øvrige_Krav_DATA!$A:$D,D$11,FALSE),VLOOKUP($A79,Øvrige_Krav_DATA!$A:$D,D$11,FALSE))),\"\")","v":""},67]
["(Vælg)68",{"$f":"IFERROR(IF(VLOOKUP($A80,Øvrige_Krav_DATA!$A:$D,B$11,FALSE)=0,\"\",VLOOKUP($A80,Øvrige_Krav_DATA!$A:$D,B$11,FALSE)),\"\")","v":""},{"$f":"IFERROR(IF(VLOOKUP($A80,Øvrige_Krav_DATA!$A:$D,C$11,FALSE)=0,\"\",VLOOKUP($A80,Øvrige_Krav_DATA!$A:$D,C$11,FALSE)),\"\")","v":""},{"$f":"IFERROR(IF(HYPERLINK(VLOOKUP($A80,Øvrige_Krav_DATA!$A:$D,D$11,FALSE),VLOOKUP($A80,Øvrige_Krav_DATA!$A:$D,D$11,FALSE))=0,\"\",HYPERLINK(VLOOKUP($A80,Øvrige_Krav_DATA!$A:$D,D$11,FALSE),VLOOKUP($A80,Øvrige_Krav_DATA!$A:$D,D$11,FALSE))),\"\")","v":""},68]
["(Vælg)69",{"$f":"IFERROR(IF(VLOOKUP($A81,Øvrige_Krav_DATA!$A:$D,B$11,FALSE)=0,\"\",VLOOKUP($A81,Øvrige_Krav_DATA!$A:$D,B$11,FALSE)),\"\")","v":""},{"$f":"IFERROR(IF(VLOOKUP($A81,Øvrige_Krav_DATA!$A:$D,C$11,FALSE)=0,\"\",VLOOKUP($A81,Øvrige_Krav_DATA!$A:$D,C$11,FALSE)),\"\")","v":""},{"$f":"IFERROR(IF(HYPERLINK(VLOOKUP($A81,Øvrige_Krav_DATA!$A:$D,D$11,FALSE),VLOOKUP($A81,Øvrige_Krav_DATA!$A:$D,D$11,FALSE))=0,\"\",HYPERLINK(VLOOKUP($A81,Øvrige_Krav_DATA!$A:$D,D$11,FALSE),VLOOKUP($A81,Øvrige_Krav_DATA!$A:$D,D$11,FALSE))),\"\")","v":""},69]
["(Vælg)70",{"$f":"IFERROR(IF(VLOOKUP($A82,Øvrige_Krav_DATA!$A:$D,B$11,FALSE)=0,\"\",VLOOKUP($A82,Øvrige_Krav_DATA!$A:$D,B$11,FALSE)),\"\")","v":""},{"$f":"IFERROR(IF(VLOOKUP($A82,Øvrige_Krav_DATA!$A:$D,C$11,FALSE)=0,\"\",VLOOKUP($A82,Øvrige_Krav_DATA!$A:$D,C$11,FALSE)),\"\")","v":""},{"$f":"IFERROR(IF(HYPERLINK(VLOOKUP($A82,Øvrige_Krav_DATA!$A:$D,D$11,FALSE),VLOOKUP($A82,Øvrige_Krav_DATA!$A:$D,D$11,FALSE))=0,\"\",HYPERLINK(VLOOKUP($A82,Øvrige_Krav_DATA!$A:$D,D$11,FALSE),VLOOKUP($A82,Øvrige_Krav_DATA!$A:$D,D$11,FALSE))),\"\")","v":""},70]
["(Vælg)71",{"$f":"IFERROR(IF(VLOOKUP($A83,Øvrige_Krav_DATA!$A:$D,B$11,FALSE)=0,\"\",VLOOKUP($A83,Øvrige_Krav_DATA!$A:$D,B$11,FALSE)),\"\")","v":""},{"$f":"IFERROR(IF(VLOOKUP($A83,Øvrige_Krav_DATA!$A:$D,C$11,FALSE)=0,\"\",VLOOKUP($A83,Øvrige_Krav_DATA!$A:$D,C$11,FALSE)),\"\")","v":""},{"$f":"IFERROR(IF(HYPERLINK(VLOOKUP($A83,Øvrige_Krav_DATA!$A:$D,D$11,FALSE),VLOOKUP($A83,Øvrige_Krav_DATA!$A:$D,D$11,FALSE))=0,\"\",HYPERLINK(VLOOKUP($A83,Øvrige_Krav_DATA!$A:$D,D$11,FALSE),VLOOKUP($A83,Øvrige_Krav_DATA!$A:$D,D$11,FALSE))),\"\")","v":""},71]
["(Vælg)72",{"$f":"IFERROR(IF(VLOOKUP($A84,Øvrige_Krav_DATA!$A:$D,B$11,FALSE)=0,\"\",VLOOKUP($A84,Øvrige_Krav_DATA!$A:$D,B$11,FALSE)),\"\")","v":""},{"$f":"IFERROR(IF(VLOOKUP($A84,Øvrige_Krav_DATA!$A:$D,C$11,FALSE)=0,\"\",VLOOKUP($A84,Øvrige_Krav_DATA!$A:$D,C$11,FALSE)),\"\")","v":""},{"$f":"IFERROR(IF(HYPERLINK(VLOOKUP($A84,Øvrige_Krav_DATA!$A:$D,D$11,FALSE),VLOOKUP($A84,Øvrige_Krav_DATA!$A:$D,D$11,FALSE))=0,\"\",HYPERLINK(VLOOKUP($A84,Øvrige_Krav_DATA!$A:$D,D$11,FALSE),VLOOKUP($A84,Øvrige_Krav_DATA!$A:$D,D$11,FALSE))),\"\")","v":""},72]
["(Vælg)73",{"$f":"IFERROR(IF(VLOOKUP($A85,Øvrige_Krav_DATA!$A:$D,B$11,FALSE)=0,\"\",VLOOKUP($A85,Øvrige_Krav_DATA!$A:$D,B$11,FALSE)),\"\")","v":""},{"$f":"IFERROR(IF(VLOOKUP($A85,Øvrige_Krav_DATA!$A:$D,C$11,FALSE)=0,\"\",VLOOKUP($A85,Øvrige_Krav_DATA!$A:$D,C$11,FALSE)),\"\")","v":""},{"$f":"IFERROR(IF(HYPERLINK(VLOOKUP($A85,Øvrige_Krav_DATA!$A:$D,D$11,FALSE),VLOOKUP($A85,Øvrige_Krav_DATA!$A:$D,D$11,FALSE))=0,\"\",HYPERLINK(VLOOKUP($A85,Øvrige_Krav_DATA!$A:$D,D$11,FALSE),VLOOKUP($A85,Øvrige_Krav_DATA!$A:$D,D$11,FALSE))),\"\")","v":""},73]
["(Vælg)74",{"$f":"IFERROR(IF(VLOOKUP($A86,Øvrige_Krav_DATA!$A:$D,B$11,FALSE)=0,\"\",VLOOKUP($A86,Øvrige_Krav_DATA!$A:$D,B$11,FALSE)),\"\")","v":""},{"$f":"IFERROR(IF(VLOOKUP($A86,Øvrige_Krav_DATA!$A:$D,C$11,FALSE)=0,\"\",VLOOKUP($A86,Øvrige_Krav_DATA!$A:$D,C$11,FALSE)),\"\")","v":""},{"$f":"IFERROR(IF(HYPERLINK(VLOOKUP($A86,Øvrige_Krav_DATA!$A:$D,D$11,FALSE),VLOOKUP($A86,Øvrige_Krav_DATA!$A:$D,D$11,FALSE))=0,\"\",HYPERLINK(VLOOKUP($A86,Øvrige_Krav_DATA!$A:$D,D$11,FALSE),VLOOKUP($A86,Øvrige_Krav_DATA!$A:$D,D$11,FALSE))),\"\")","v":""},74]
["(Vælg)75",{"$f":"IFERROR(IF(VLOOKUP($A87,Øvrige_Krav_DATA!$A:$D,B$11,FALSE)=0,\"\",VLOOKUP($A87,Øvrige_Krav_DATA!$A:$D,B$11,FALSE)),\"\")","v":""},{"$f":"IFERROR(IF(VLOOKUP($A87,Øvrige_Krav_DATA!$A:$D,C$11,FALSE)=0,\"\",VLOOKUP($A87,Øvrige_Krav_DATA!$A:$D,C$11,FALSE)),\"\")","v":""},{"$f":"IFERROR(IF(HYPERLINK(VLOOKUP($A87,Øvrige_Krav_DATA!$A:$D,D$11,FALSE),VLOOKUP($A87,Øvrige_Krav_DATA!$A:$D,D$11,FALSE))=0,\"\",HYPERLINK(VLOOKUP($A87,Øvrige_Krav_DATA!$A:$D,D$11,FALSE),VLOOKUP($A87,Øvrige_Krav_DATA!$A:$D,D$11,FALSE))),\"\")","v":""},75]
["(Vælg)76",{"$f":"IFERROR(IF(VLOOKUP($A88,Øvrige_Krav_DATA!$A:$D,B$11,FALSE)=0,\"\",VLOOKUP($A88,Øvrige_Krav_DATA!$A:$D,B$11,FALSE)),\"\")","v":""},{"$f":"IFERROR(IF(VLOOKUP($A88,Øvrige_Krav_DATA!$A:$D,C$11,FALSE)=0,\"\",VLOOKUP($A88,Øvrige_Krav_DATA!$A:$D,C$11,FALSE)),\"\")","v":""},{"$f":"IFERROR(IF(HYPERLINK(VLOOKUP($A88,Øvrige_Krav_DATA!$A:$D,D$11,FALSE),VLOOKUP($A88,Øvrige_Krav_DATA!$A:$D,D$11,FALSE))=0,\"\",HYPERLINK(VLOOKUP($A88,Øvrige_Krav_DATA!$A:$D,D$11,FALSE),VLOOKUP($A88,Øvrige_Krav_DATA!$A:$D,D$11,FALSE))),\"\")","v":""},76]
["(Vælg)77",{"$f":"IFERROR(IF(VLOOKUP($A89,Øvrige_Krav_DATA!$A:$D,B$11,FALSE)=0,\"\",VLOOKUP($A89,Øvrige_Krav_DATA!$A:$D,B$11,FALSE)),\"\")","v":""},{"$f":"IFERROR(IF(VLOOKUP($A89,Øvrige_Krav_DATA!$A:$D,C$11,FALSE)=0,\"\",VLOOKUP($A89,Øvrige_Krav_DATA!$A:$D,C$11,FALSE)),\"\")","v":""},{"$f":"IFERROR(IF(HYPERLINK(VLOOKUP($A89,Øvrige_Krav_DATA!$A:$D,D$11,FALSE),VLOOKUP($A89,Øvrige_Krav_DATA!$A:$D,D$11,FALSE))=0,\"\",HYPERLINK(VLOOKUP($A89,Øvrige_Krav_DATA!$A:$D,D$11,FALSE),VLOOKUP($A89,Øvrige_Krav_DATA!$A:$D,D$11,FALSE))),\"\")","v":""},77]
["(Vælg)78",{"$f":"IFERROR(IF(VLOOKUP($A90,Øvrige_Krav_DATA!$A:$D,B$11,FALSE)=0,\"\",VLOOKUP($A90,Øvrige_Krav_DATA!$A:$D,B$11,FALSE)),\"\")","v":""},{"$f":"IFERROR(IF(VLOOKUP($A90,Øvrige_Krav_DATA!$A:$D,C$11,FALSE)=0,\"\",VLOOKUP($A90,Øvrige_Krav_DATA!$A:$D,C$11,FALSE)),\"\")","v":""},{"$f":"IFERROR(IF(HYPERLINK(VLOOKUP($A90,Øvrige_Krav_DATA!$A:$D,D$11,FALSE),VLOOKUP($A90,Øvrige_Krav_DATA!$A:$D,D$11,FALSE))=0,\"\",HYPERLINK(VLOOKUP($A90,Øvrige_Krav_DATA!$A:$D,D$11,FALSE),VLOOKUP($A90,Øvrige_Krav_DATA!$A:$D,D$11,FALSE))),\"\")","v":""},78]
["(Vælg)79",{"$f":"IFERROR(IF(VLOOKUP($A91,Øvrige_Krav_DATA!$A:$D,B$11,FALSE)=0,\"\",VLOOKUP($A91,Øvrige_Krav_DATA!$A:$D,B$11,FALSE)),\"\")","v":""},{"$f":"IFERROR(IF(VLOOKUP($A91,Øvrige_Krav_DATA!$A:$D,C$11,FALSE)=0,\"\",VLOOKUP($A91,Øvrige_Krav_DATA!$A:$D,C$11,FALSE)),\"\")","v":""},{"$f":"IFERROR(IF(HYPERLINK(VLOOKUP($A91,Øvrige_Krav_DATA!$A:$D,D$11,FALSE),VLOOKUP($A91,Øvrige_Krav_DATA!$A:$D,D$11,FALSE))=0,\"\",HYPERLINK(VLOOKUP($A91,Øvrige_Krav_DATA!$A:$D,D$11,FALSE),VLOOKUP($A91,Øvrige_Krav_DATA!$A:$D,D$11,FALSE))),\"\")","v":""},79]
["(Vælg)80",{"$f":"IFERROR(IF(VLOOKUP($A92,Øvrige_Krav_DATA!$A:$D,B$11,FALSE)=0,\"\",VLOOKUP($A92,Øvrige_Krav_DATA!$A:$D,B$11,FALSE)),\"\")","v":""},{"$f":"IFERROR(IF(VLOOKUP($A92,Øvrige_Krav_DATA!$A:$D,C$11,FALSE)=0,\"\",VLOOKUP($A92,Øvrige_Krav_DATA!$A:$D,C$11,FALSE)),\"\")","v":""},{"$f":"IFERROR(IF(HYPERLINK(VLOOKUP($A92,Øvrige_Krav_DATA!$A:$D,D$11,FALSE),VLOOKUP($A92,Øvrige_Krav_DATA!$A:$D,D$11,FALSE))=0,\"\",HYPERLINK(VLOOKUP($A92,Øvrige_Krav_DATA!$A:$D,D$11,FALSE),VLOOKUP($A92,Øvrige_Krav_DATA!$A:$D,D$11,FALSE))),\"\")","v":""},80]
["(Vælg)81",{"$f":"IFERROR(IF(VLOOKUP($A93,Øvrige_Krav_DATA!$A:$D,B$11,FALSE)=0,\"\",VLOOKUP($A93,Øvrige_Krav_DATA!$A:$D,B$11,FALSE)),\"\")","v":""},{"$f":"IFERROR(IF(VLOOKUP($A93,Øvrige_Krav_DATA!$A:$D,C$11,FALSE)=0,\"\",VLOOKUP($A93,Øvrige_Krav_DATA!$A:$D,C$11,FALSE)),\"\")","v":""},{"$f":"IFERROR(IF(HYPERLINK(VLOOKUP($A93,Øvrige_Krav_DATA!$A:$D,D$11,FALSE),VLOOKUP($A93,Øvrige_Krav_DATA!$A:$D,D$11,FALSE))=0,\"\",HYPERLINK(VLOOKUP($A93,Øvrige_Krav_DATA!$A:$D,D$11,FALSE),VLOOKUP($A93,Øvrige_Krav_DATA!$A:$D,D$11,FALSE))),\"\")","v":""},81]
["(Vælg)82",{"$f":"IFERROR(IF(VLOOKUP($A94,Øvrige_Krav_DATA!$A:$D,B$11,FALSE)=0,\"\",VLOOKUP($A94,Øvrige_Krav_DATA!$A:$D,B$11,FALSE)),\"\")","v":""},{"$f":"IFERROR(IF(VLOOKUP($A94,Øvrige_Krav_DATA!$A:$D,C$11,FALSE)=0,\"\",VLOOKUP($A94,Øvrige_Krav_DATA!$A:$D,C$11,FALSE)),\"\")","v":""},{"$f":"IFERROR(IF(HYPERLINK(VLOOKUP($A94,Øvrige_Krav_DATA!$A:$D,D$11,FALSE),VLOOKUP($A94,Øvrige_Krav_DATA!$A:$D,D$11,FALSE))=0,\"\",HYPERLINK(VLOOKUP($A94,Øvrige_Krav_DATA!$A:$D,D$11,FALSE),VLOOKUP($A94,Øvrige_Krav_DATA!$A:$D,D$11,FALSE))),\"\")","v":""},82]
["(Vælg)83",{"$f":"IFERROR(IF(VLOOKUP($A95,Øvrige_Krav_DATA!$A:$D,B$11,FALSE)=0,\"\",VLOOKUP($A95,Øvrige_Krav_DATA!$A:$D,B$11,FALSE)),\"\")","v":""},{"$f":"IFERROR(IF(VLOOKUP($A95,Øvrige_Krav_DATA!$A:$D,C$11,FALSE)=0,\"\",VLOOKUP($A95,Øvrige_Krav_DATA!$A:$D,C$11,FALSE)),\"\")","v":""},{"$f":"IFERROR(IF(HYPERLINK(VLOOKUP($A95,Øvrige_Krav_DATA!$A:$D,D$11,FALSE),VLOOKUP($A95,Øvrige_Krav_DATA!$A:$D,D$11,FALSE))=0,\"\",HYPERLINK(VLOOKUP($A95,Øvrige_Krav_DATA!$A:$D,D$11,FALSE),VLOOKUP($A95,Øvrige_Krav_DATA!$A:$D,D$11,FALSE))),\"\")","v":""},83]
["(Vælg)84",{"$f":"IFERROR(IF(VLOOKUP($A96,Øvrige_Krav_DATA!$A:$D,B$11,FALSE)=0,\"\",VLOOKUP($A96,Øvrige_Krav_DATA!$A:$D,B$11,FALSE)),\"\")","v":""},{"$f":"IFERROR(IF(VLOOKUP($A96,Øvrige_Krav_DATA!$A:$D,C$11,FALSE)=0,\"\",VLOOKUP($A96,Øvrige_Krav_DATA!$A:$D,C$11,FALSE)),\"\")","v":""},{"$f":"IFERROR(IF(HYPERLINK(VLOOKUP($A96,Øvrige_Krav_DATA!$A:$D,D$11,FALSE),VLOOKUP($A96,Øvrige_Krav_DATA!$A:$D,D$11,FALSE))=0,\"\",HYPERLINK(VLOOKUP($A96,Øvrige_Krav_DATA!$A:$D,D$11,FALSE),VLOOKUP($A96,Øvrige_Krav_DATA!$A:$D,D$11,FALSE))),\"\")","v":""},84]
["(Vælg)85",{"$f":"IFERROR(IF(VLOOKUP($A97,Øvrige_Krav_DATA!$A:$D,B$11,FALSE)=0,\"\",VLOOKUP($A97,Øvrige_Krav_DATA!$A:$D,B$11,FALSE)),\"\")","v":""},{"$f":"IFERROR(IF(VLOOKUP($A97,Øvrige_Krav_DATA!$A:$D,C$11,FALSE)=0,\"\",VLOOKUP($A97,Øvrige_Krav_DATA!$A:$D,C$11,FALSE)),\"\")","v":""},{"$f":"IFERROR(IF(HYPERLINK(VLOOKUP($A97,Øvrige_Krav_DATA!$A:$D,D$11,FALSE),VLOOKUP($A97,Øvrige_Krav_DATA!$A:$D,D$11,FALSE))=0,\"\",HYPERLINK(VLOOKUP($A97,Øvrige_Krav_DATA!$A:$D,D$11,FALSE),VLOOKUP($A97,Øvrige_Krav_DATA!$A:$D,D$11,FALSE))),\"\")","v":""},85]
["(Vælg)86",{"$f":"IFERROR(IF(VLOOKUP($A98,Øvrige_Krav_DATA!$A:$D,B$11,FALSE)=0,\"\",VLOOKUP($A98,Øvrige_Krav_DATA!$A:$D,B$11,FALSE)),\"\")","v":""},{"$f":"IFERROR(IF(VLOOKUP($A98,Øvrige_Krav_DATA!$A:$D,C$11,FALSE)=0,\"\",VLOOKUP($A98,Øvrige_Krav_DATA!$A:$D,C$11,FALSE)),\"\")","v":""},{"$f":"IFERROR(IF(HYPERLINK(VLOOKUP($A98,Øvrige_Krav_DATA!$A:$D,D$11,FALSE),VLOOKUP($A98,Øvrige_Krav_DATA!$A:$D,D$11,FALSE))=0,\"\",HYPERLINK(VLOOKUP($A98,Øvrige_Krav_DATA!$A:$D,D$11,FALSE),VLOOKUP($A98,Øvrige_Krav_DATA!$A:$D,D$11,FALSE))),\"\")","v":""},86]
["(Vælg)87",{"$f":"IFERROR(IF(VLOOKUP($A99,Øvrige_Krav_DATA!$A:$D,B$11,FALSE)=0,\"\",VLOOKUP($A99,Øvrige_Krav_DATA!$A:$D,B$11,FALSE)),\"\")","v":""},{"$f":"IFERROR(IF(VLOOKUP($A99,Øvrige_Krav_DATA!$A:$D,C$11,FALSE)=0,\"\",VLOOKUP($A99,Øvrige_Krav_DATA!$A:$D,C$11,FALSE)),\"\")","v":""},{"$f":"IFERROR(IF(HYPERLINK(VLOOKUP($A99,Øvrige_Krav_DATA!$A:$D,D$11,FALSE),VLOOKUP($A99,Øvrige_Krav_DATA!$A:$D,D$11,FALSE))=0,\"\",HYPERLINK(VLOOKUP($A99,Øvrige_Krav_DATA!$A:$D,D$11,FALSE),VLOOKUP($A99,Øvrige_Krav_DATA!$A:$D,D$11,FALSE))),\"\")","v":""},87]
["(Vælg)88",{"$f":"IFERROR(IF(VLOOKUP($A100,Øvrige_Krav_DATA!$A:$D,B$11,FALSE)=0,\"\",VLOOKUP($A100,Øvrige_Krav_DATA!$A:$D,B$11,FALSE)),\"\")","v":""},{"$f":"IFERROR(IF(VLOOKUP($A100,Øvrige_Krav_DATA!$A:$D,C$11,FALSE)=0,\"\",VLOOKUP($A100,Øvrige_Krav_DATA!$A:$D,C$11,FALSE)),\"\")","v":""},{"$f":"IFERROR(IF(HYPERLINK(VLOOKUP($A100,Øvrige_Krav_DATA!$A:$D,D$11,FALSE),VLOOKUP($A100,Øvrige_Krav_DATA!$A:$D,D$11,FALSE))=0,\"\",HYPERLINK(VLOOKUP($A100,Øvrige_Krav_DATA!$A:$D,D$11,FALSE),VLOOKUP($A100,Øvrige_Krav_DATA!$A:$D,D$11,FALSE))),\"\")","v":""},88]

{"sheet":"Øvrige_Krav_DATA","index":4,"n_rows":207,"n_cols":8,"rows_kept":207,"cut":false,"hidden":true,"merged":[]}
[null,null,null,null,null,null,null,"Dropdown - Øvrige Krav"]
[null,null,null,null,null,null,null,"(Vælg)"]
[null,null,null,null,null,null,null,"Faglige ydelser"]
[null,null,null,null,null,null,null,"Generelle krav om jernbanesikkerhed"]
[null,null,null,null,null,null,null,"Godkendelser og tilladelser"]
[null,null,null,null,null,null,null,"Jernbanesikkerhedsplaner"]
[null,null,null,null,null,null,null,"Krav om arbejdsmiljø"]
[null,null,null,null,null,null,null,"Krav om kontrakter og arbejdsvilkår"]
[null,null,null,null,null,null,null,"Krav om miljø"]
[null,null,null,null,null,null,null,"Kørsel"]
[null,null,null,null,null,null,null,"Rullende materiel"]
[null,null,null,null,null,null,null,"Sikkerhedsreglement (SR 75)"]
["Ydelseskategori","Ydelsestype","Kravliste","Links",null,null,null,"Togklargøring"]
["Godkendelser og tilladelser1","Gravetilladelse","Ansøgning om gravetilladelse","http://www.bane.dk/visArtikel.asp?artikelID=500 "]
["Godkendelser og tilladelser2",null,"Ansøgning om certificering ifm. opgravningsfri ledningsetablering","http://www.bane.dk/visArtikel.asp?artikelID=14011 "]
["Godkendelser og tilladelser3","Ibrugtagning af sikring og fjernstyring","Krav om en ibrugtagningsansvarlig af nye eller ændrede sikringsanlæg","http://www.bane.dk/visArtikel.asp?artikelID=19431 "]
["Godkendelser og tilladelser4","Godkendelse af bane/vej køretøjer","Banenorm BN2-74-1","http://www.bane.dk/db/filarkiv/5213/BN2-74-1.pdf "]
["Godkendelser og tilladelser5","Godkendelse af arbejdsmiljøkoordinator","Arbejdsmiljøuddannelse for koordinatorer af sikkerheds- og sundhedsarbejdet på bygge- og anlægspladser\nAT-vejledning F.2.3, marts 2006","https://arbejdstilsynet.dk/da/regler/at-vejledninger/a/f-2-3-arbejdsmiljoudd-for-koordinatorer "]
["Godkendelser og tilladelser6","Godkendelse af jernbanesikkerhedsplaner","Ansøgningsblanketter og vejledninger","http://www.bane.dk/visArtikel.asp?artikelID=23964&soegningID=675347&soegeord=jernbanesikkerhedsplaner "]
[]
[]
[]
[]
[]
[]
["Krav om arbejdsmiljø1","Krav om et sikkert og sundt arbejdsmiljø","Bekendtgørelse 1072 af 7/9/2010 af lov om arbejdsmiljø","https://www.retsinformation.dk/Forms/R0710.aspx?id=133159 "]
["Krav om arbejdsmiljø2","Krav om sikre og arbejdsmiljøvenlige maskiner","Europa-Parlamentets og Rådets direktiv 2006/42/EF af 17/5/2006 (Maskindirektivet )","http://www.ds.dk/da/standardisering/ce-maerkning/produktgrupper/maskiner "]
["Krav om arbejdsmiljø3","Krav til bygherrens pligter ved bygge- og anlægsarbejde","Bekendtgørelse 117 af 5/2/2013 om bygherrens pligter","https://www.retsinformation.dk/Forms/R0710.aspx?id=145005"]
["Krav om arbejdsmiljø4",null,"Bekendtgørelse 1516 af 14/12/2006 om bygge- og anlægsarbejde","https://www.retsinformation.dk/Forms/R0710.aspx?id=134806 "]
["Krav om arbejdsmiljø5","Krav til arbejdsgivers pligter ved bygge- og anlægsarbejde","Bekendtgørelse 1181 af 15/10/2010 om samarbejde om sikkerhed og sundhed","https://www.retsinformation.dk/Forms/R0710.aspx?id=133285"]
["Krav om arbejdsmiljø6","Krav om sikkerhedsbeklædning",null,"http://www.bane.dk/visArtikel.asp?artikelID=20504 "]
[]
[]
[]
[]
[]
[]
["Krav om miljø1","Virksomheders ansvar og pligter ifm. miljøbeskyttelse","Bekendtgørelse 1189 af 27/9/2016 af lov om miljøbeskyttelse","https://www.retsinformation.dk/Forms/R0710.aspx?id=184047 "]
["Krav om miljø2","BDK miljøkrav til entreprenører","GAB Miljø for private entreprenører ved anlægsarbejde"]
["Krav om miljø3","Anmeldelse til kommunerne af midlertidige bygge- & anlægsaktiviteter","Bekendtgørelse 467 af 23/5/2016 om miljøregulering af visse aktiviteter","https://www.retsinformation.dk/Forms/R0710.aspx?id=180164 "]
["Krav om miljø4","Retningslinjer om støj fra jernbaner og støj fra virksomheder","Vejledning om støj og vibrationer fra jernbaner 1/1997 ","http://www2.mst.dk/Udgiv/publikationer/1997/87-7810-696-6/pdf/87-7810-696-6.pdf"]
["Krav om miljø5",null,"Tillæg til vejledning 1/1997: Støj og vibrationer fra jernbaner fra juli 2007 (togstøj) ","http://mst.dk/media/mst/66271/tillaeg_til_togstoejvejledning_end.pdf "]
["Krav om miljø6",null,"Vejledning om ekstern støj fra virksomheder 5/1984","http://www2.mst.dk/Udgiv/publikationer/1984/87-503-5287-4/pdf/87-503-5287-4.pdf "]
["Krav om miljø7",null,"Supplement til vejledning om ekstern støj fra virksomheder 3/1996","http://www2.mst.dk/Udgiv/publikationer/1996/87-7810-626-5/pdf/87-7810-626-5.pdf "]
["Krav om miljø8","Jordforureningsloven ","Bekendtgørelse 1190 af 27/9/2016 af lov om forurenet jord","https://www.retsinformation.dk/Forms/R0710.aspx?id=184068 "]
["Krav om miljø9","Krav til virksomheders frasortering, opbevaring og bortskaffelse af affald","Bekendtgørelse 1309 af 18/12/2010 om affald","https://www.retsinformation.dk/Forms/R0710.aspx?id=144826"]
["Krav om miljø10",null,"Bekendtgørelse 132 af 6/2/2014 om overførsel af affald og overførsel af brugt elektrisk og elektronisk udstyr ","https://www.retsinformation.dk/Forms/R0710.aspx?id=161677"]
[]
[]
[]
[]
[]
[]
["Krav om kontrakter og arbejdsvilkår1","Direktivet for varer, tjenesteydelser, bygge- og anlægsopgaver over tærskelværdien for EU-udbud på forsyningsområderne\n(Forsyningsvirksomhedsdirektivet)","Bekendtgørelse 1624 af 15/12/2010 om fremgangsmåderne ved indgåelse af kontrakter inden for vand- og energiforsyning, samt transport samt posttjenester","https://www.retsinformation.dk/Forms/R0710.aspx?id=175817 "]
["Krav om kontrakter og arbejdsvilkår2","Direktivet for varer, tjenesteydelser, bygge- og anlægsopgaver over tærskelværdien for EU-udbud udenfor forsyningsområderne","Lov 1564 af 15/12/2015 Udbudsloven","https://www.retsinformation.dk/forms/r0710.aspx?id=175507"]
["Krav om kontrakter og arbejdsvilkår3","Aftaledokument om bygherrens og entreprenørens rettigheder og pligter","AB 92 – Almindelige betingelser for arbejder og leverancer i bygge- og anlægsvirksomhed. \nBet 4040 af 10/12/1992","https://www.retsinformation.dk/Forms/R0710.aspx?id=54914"]
["Krav om kontrakter og arbejdsvilkår4",null,"ABT 93 - Almindelige betingelser for Totalentreprise.  \nCir 25226 af 22/12/1993","https://www.retsinformation.dk/Forms/R0710.aspx?id=4238"]
["Krav om kontrakter og arbejdsvilkår5","Aftaledokument for teknisk rådgivning og bistand","ABR 89 – Almindelige bestemmelser for teknisk rådgivning og bistand. \nBst 4015 af 31/3/1990","https://www.retsinformation.dk/Forms/R0710.aspx?id=54917"]
["Krav om kontrakter og arbejdsvilkår6","Betalingsbetingelser","Leverandørportal, selfbilling","http://www.bane.dk/visArtikel.asp?artikelID=22259"]
["Krav om kontrakter og arbejdsvilkår7","Arbejdsklausuler i offentlige kontrakter","Banedanmark - Bilag til indgåelse af entreprisekontrakter – Social Ansvarlighed (CSR) og udvalgte fokusområder","http://www.bane.dk/db/filarkiv/16781/KravtilCSR.pdf"]
["Krav om kontrakter og arbejdsvilkår8",null,"ILO Konvention 94","http://bm.dk/da/Beskaeftigelsesomraadet/Arbejdsret/Internationalt%20samarbejde/ILO.aspx"]
["Krav om kontrakter og arbejdsvilkår9","Anmeldelse i RUT (Registret for Udenlandske Tjenesteydere).","Banedanmark - Bilag til indgåelse af entreprisekontrakter – Social Ansvarlighed (CSR) og udvalgte fokusområder","http://www.bane.dk/db/filarkiv/16781/KravtilCSR.pdf"]
["Krav om kontrakter og arbejdsvilkår10",null,"Registret for Udenlandske Tjenesteydere","https://indberet.virk.dk/myndigheder/stat/ERST/Registrering_af_udenlandske_tjenesteydere_RUT__Registration_of_Foreign_Services_RUT"]
["Krav om kontrakter og arbejdsvilkår11","Tilgængeligheden af relevante praktikpladser","Banedanmark - Bilag til indgåelse af entreprisekontrakter – Social Ansvarlighed (CSR) og udvalgte fokusområder","http://www.bane.dk/db/filarkiv/16781/KravtilCSR.pdf"]
["Krav om kontrakter og arbejdsvilkår12",null,"Bekendtgørelse 1077 af 8/7/2016 af lov om erhvervsuddannelser","https://www.retsinformation.dk/Forms/R0710.aspx?id=183489"]
["Krav om kontrakter og arbejdsvilkår13","Europæisk Konvention om International Transport af Farligt Gods ad Vej (ADR)","Banedanmark - Bilag til indgåelse af entreprisekontrakter – Social Ansvarlighed (CSR) og udvalgte fokusområder","http://www.bane.dk/db/filarkiv/16781/KravtilCSR.pdf"]
["Krav om kontrakter og arbejdsvilkår14",null,"Bekendtgørelse 1223 af 30/10/2015 om vejtransport af farligt gods, samt bilag 1: Europæisk Konvention om International Transport af Farligt Gods ad Vej (ADR)","https://www.retsinformation.dk/forms/R0710.aspx?id=173721"]
["Krav om kontrakter og arbejdsvilkår15","Reglement for National og International Befordring af Farligt Gods med Jernbane (RID)","Banedanmark - Bilag til indgåelse af entreprisekontrakter – Social Ansvarlighed (CSR) og udvalgte fokusområder","http://www.bane.dk/db/filarkiv/16781/KravtilCSR.pdf"]
["Krav om kontrakter og arbejdsvilkår16",null,"Bekendtgørelse 541 af 12/6/2012 om anvendelse af RID i national transport og transport af farligt gods i håndbagage m.v. (fastsætter bestemmelser om Reglement for National og International Befordring af Farligt Gods med Jernbane (RID))","https://www.retsinformation.dk/Forms/R0710.aspx?id=142003"]
["Krav om kontrakter og arbejdsvilkår17","Overholdelse af grundlæggende menneskerettigheder","Banedanmark - Bilag til indgåelse af entreprisekontrakter – Social Ansvarlighed (CSR) og udvalgte fokusområder","http://www.bane.dk/db/filarkiv/16781/KravtilCSR.pdf"]
["Krav om kontrakter og arbejdsvilkår18",null,"Bekendtgørelse 750 af 19/10/1998 af lov om Den Europæiske Menneskerettighedskonvention","https://www.retsinformation.dk/Forms/R0710.aspx?id=12"]
["Krav om kontrakter og arbejdsvilkår19","Arbejdstagerrettigheder","Banedanmark - Bilag til indgåelse af entreprisekontrakter – Social Ansvarlighed (CSR) og udvalgte fokusområder","http://www.bane.dk/db/filarkiv/16781/KravtilCSR.pdf"]
["Krav om kontrakter og arbejdsvilkår20",null,"ILO Konvention nr. 1 og 30, ILO Konvention nr. 29 og 105, ILO Konvention nr. 138 og 182\nILO Konvention nr. 87, 98 og 135, ILO Konvention nr. 26 og 131, ILO Konvention nr. 155","http://bm.dk/da/Beskaeftigelsesomraadet/Arbejdsret/Internationalt%20samarbejde/ILO.aspx"]
["Krav om kontrakter og arbejdsvilkår21",null,"FN's Menneskerettighedserklæring artikel 23, stk. 3\nFN's Menneskerettighedserklæring artikel 24                   ","http://www.ohchr.org/EN/UDHR/Documents/UDHR_Translations/dns.pdf"]
["Krav om kontrakter og arbejdsvilkår22","Anti-Korruption","Banedanmark - Bilag til indgåelse af entreprisekontrakter – Social Ansvarlighed (CSR) og udvalgte fokusområder","http://www.bane.dk/db/filarkiv/16781/KravtilCSR.pdf"]
["Krav om kontrakter og arbejdsvilkår23",null,"Artikel 3 i Rådets retsakt af 26. maj 1997 (om bekæmpelse af bestikkelse, der involverer tjenestemænd)","http://eur-lex.europa.eu/legal-content/DA/ALL/?uri=CELEX%3A32003F0568&print=true "]
["Krav om kontrakter og arbejdsvilkår24",null,"Erklæring om udelukkelsesgrunde/Declaration concerning exclusion from giving tender","https://publications.europa.eu/da/publication-detail/-/publication/a96ea44d-fcf2-48dc-9255-88ae4914e8b9/language-da"]
["Krav om kontrakter og arbejdsvilkår25",null,null,"http://www.bane.dk/visArtikel.asp?artikelID=6416&soegningID=675126&soegeord=erklæring "]
[]
[]
[]
[]
[]
[]
["Generelle krav om jernbanesikkerhed1","Sikkerhedsgodkendelse af jernbaneinfrastrukturforvaltere","Indberetning af sikkerhedshændelse","http://www.bane.dk/visArtikel.asp?artikelID=4640"]
["Generelle krav om jernbanesikkerhed2",null,"Indberetningsskema til synergi","http://www.bane.dk/visArtikelBredest.asp?artikelID=4745 "]
["Generelle krav om jernbanesikkerhed3",null,"Oversigt over hændelser der skal registreres i synergi","http://www.bane.dk/hentmedie.asp?filID=17776"]
["Generelle krav om jernbanesikkerhed4",null,"Bekendtgørelse 13 af 4/1/2007 om sikkerhedsgodkendelse af jernbaneinfrastrukturforvaltere","https://www.retsinformation.dk/Forms/R0710.aspx?id=22618"]
["Generelle krav om jernbanesikkerhed5",null,"Retningslinjer for godkendelse af entreprenører, der leverer jernbanesikkerhedsmæssige ydelser til Banedanmark","http://www.bane.dk/visArtikel.asp?artikelID=6048"]
["Generelle krav om jernbanesikkerhed6",null,"Bekendtgørelse  13 § 2, stk. 3","https://www.retsinformation.dk/Forms/R0710.aspx?id=22618 "]
["Generelle krav om jernbanesikkerhed7",null,null,"http://www.bane.dk/visArtikel.asp?artikelID=6048"]
["Generelle krav om jernbanesikkerhed8",null,"Bekendtgørelse  13 § 3, stk. 2","https://www.retsinformation.dk/Forms/R0710.aspx?id=22618 "]
["Generelle krav om jernbanesikkerhed9",null,null,"http://www.bane.dk/visArtikel.asp?artikelID=6048"]
["Generelle krav om jernbanesikkerhed10",null,"Bekendtgørelse 13 § 3, stk. 4","https://www.retsinformation.dk/Forms/R0710.aspx?id=22618 "]
["Generelle krav om jernbanesikkerhed11",null,null,"http://www.bane.dk/visArtikel.asp?artikelID=6048"]
["Generelle krav om jernbanesikkerhed12",null,"Bekendtgørelse 13 § 3, stk. 7","https://www.retsinformation.dk/Forms/R0710.aspx?id=22618 "]
["Generelle krav om jernbanesikkerhed13",null,null,"http://www.bane.dk/visArtikel.asp?artikelID=6048"]
["Generelle krav om jernbanesikkerhed14",null,"Bekendtgørelse 13 § 3, stk. 8","https://www.retsinformation.dk/Forms/R0710.aspx?id=22618 "]
["Generelle krav om jernbanesikkerhed15",null,null,"http://www.bane.dk/visArtikel.asp?artikelID=6048"]
["Generelle krav om jernbanesikkerhed16","Helbredskrav på jernbaneområdet","Bekendtgørelse 986 af 11/10/2011 om helbredskrav på jernbaneområdet, med ændringer i bekendtgørelse 892 af 7/7/2015","https://www.retsinformation.dk/forms/R0710.aspx?id=138696  "]
["Generelle krav om jernbanesikkerhed17",null,null,"https://www.retsinformation.dk/Forms/R0710.aspx?id=173279 "]
["Generelle krav om jernbanesikkerhed18","Sikkerhedscertificering af entreprenørvirksomheder på jernbaneområdet","Bekendtgørelse 626 af 15/6/2012 om sikkerhedscertificering af entreprenørvirksomheder på jernbaneområdet, med ændringer i bekendtgørelse 863 af 7/7/2015","https://www.retsinformation.dk/Forms/R0710.aspx?id=140858 "]
["Generelle krav om jernbanesikkerhed19",null,null,"https://www.retsinformation.dk/Forms/R0710.aspx?id=173264 "]
["Generelle krav om jernbanesikkerhed20","Udåndingsprøver ","Lov 686 af 27/5/2015 om jernbane § 68","https://www.retsinformation.dk/Forms/R0710.aspx?id=170457 "]
["Generelle krav om jernbanesikkerhed21",null,"Bekendtgørelse 276 af 25/3/2010 om udåndingsprøver efter lov om ","https://www.retsinformation.dk/Forms/R0710.aspx?id=130958 "]
["Generelle krav om jernbanesikkerhed22","Jernbaneloven","Lov 686 af 27/5/2015 Jernbaneloven  § 10","www.retsinformation.dk/Forms/R0710.aspx?id=170457 "]
["Generelle krav om jernbanesikkerhed23",null,"Lov 686 af 27/5/2015 Jernbaneloven § 15","www.retsinformation.dk/Forms/R0710.aspx?id=170457"]
["Generelle krav om jernbanesikkerhed24",null,"Lov 686 af 27/5/2015 Jernbaneloven § 24, stk. 1","www.retsinformation.dk/Forms/R0710.aspx?id=170457"]
["Generelle krav om jernbanesikkerhed25",null,"Lov 686 af 27/5/2015 Jernbaneloven  § 24, stk. 2","www.retsinformation.dk/Forms/R0710.aspx?id=170457"]
["Generelle krav om jernbanesikkerhed26",null,"Lov 686 af 27/5/2015 Jernbaneloven § 43","www.retsinformation.dk/Forms/R0710.aspx?id=170457"]
["Generelle krav om jernbanesikkerhed27",null,"Lov 686 af 27/5/2015 Jernbaneloven § 46","www.retsinformation.dk/Forms/R0710.aspx?id=170457"]
["Generelle krav om jernbanesikkerhed28",null,"Lov 686 af 27/5/2015 Jernbaneloven  § 69","www.retsinformation.dk/Forms/R0710.aspx?id=170457"]
[]
[]
[]
[]
[]
[]
["Sikkerhedsreglement (SR 75)1","SR arbejdsleder 1","SR1 kursus, EUSR, logbog, helbredsgodkendelse","http://www.bane.dk/visArtikel.asp?artikelID=3946"]
["Sikkerhedsreglement (SR 75)2",null,"Bekendtgørelse 986 af 11/10/2011 om helbredskrav på jernbaneområdet, med ændringer i bekendtgørelse 892 af 7/7/2015","https://www.retsinformation.dk/forms/R0710.aspx?id=138696"]
["Sikkerhedsreglement (SR 75)3",null,null,"https://www.retsinformation.dk/Forms/R0710.aspx?id=173279"]
["Sikkerhedsreglement (SR 75)4","SR arbejdsleder 2","SR2 kursus, EUSR, logbog, helbredsgodkendelse","http://www.bane.dk/visArtikel.asp?artikelID=3946"]
["Sikkerhedsreglement (SR 75)5"]
["Sikkerhedsreglement (SR 75)6",null,"Bekendtgørelse 986 af 11/10/2011 om helbredskrav på jernbaneområdet, med ændringer i bekendtgørelse 892 af 7/7/2015","https://www.retsinformation.dk/forms/R0710.aspx?id=138696 https://www.retsinformation.dk/Forms/R0710.aspx?id=173279"]
["Sikkerhedsreglement (SR 75)7","SR arbejdsleder 2 sikring","SR2 sikring kursus, sikringsmontør kursus /sikringstekniker kursus, EUSR, logbog, helbredsgodkendelse","http://www.bane.dk/visArtikel.asp?artikelID=3946"]
["Sikkerhedsreglement (SR 75)8"]
["Sikkerhedsreglement (SR 75)9",null,"Bekendtgørelse 986 af 11/10/2011 om helbredskrav på jernbaneområdet, med ændringer i bekendtgørelse 892 af 7/7/2015","https://www.retsinformation.dk/forms/R0710.aspx?id=138696"]
["Sikkerhedsreglement (SR 75)10",null,null,"https://www.retsinformation.dk/Forms/R0710.aspx?id=173279"]
["Sikkerhedsreglement (SR 75)11"]
["Sikkerhedsreglement (SR 75)12","Vagtpost","Vagtpost kursus, logbog, helbredsgodkendelse","http://www.bane.dk/visArtikel.asp?artikelID=3946"]
["Sikkerhedsreglement (SR 75)13"]
["Sikkerhedsreglement (SR 75)14",null,"Bekendtgørelse 986 af 11/10/2011 om helbredskrav på jernbaneområdet, med ændringer i bekendtgørelse 892 af 7/7/2015","https://www.retsinformation.dk/forms/R0710.aspx?id=138696"]
["Sikkerhedsreglement (SR 75)15",null,null,"https://www.retsinformation.dk/Forms/R0710.aspx?id=173279"]
[]
[]
[]
[]
[]
[]
["Kørsel1","Rangerleder","EUSR, logbog, helbredsgodkendelse","http://www.bane.dk/visArtikel.asp?artikelID=3946"]
["Kørsel2",null,"Bekendtgørelse 986 af 11/10/2011 om helbredskrav på jernbaneområdet, med ændringer i bekendtgørelse 892 af 7/7/2015","https://www.retsinformation.dk/forms/R0710.aspx?id=138696 \n"]
["Kørsel3",null,null,"https://www.retsinformation.dk/Forms/R0710.aspx?id=173279"]
["Kørsel4","Maskinfører","Maskinførerkursus, EUSR, logbog, helbredsgodkendelse","http://www.bane.dk/visArtikel.asp?artikelID=3946"]
["Kørsel5",null,"Bekendtgørelse 986 af 11/10/2011 om helbredskrav på jernbaneområdet, med ændringer i bekendtgørelse 892 af 7/7/2015","https://www.retsinformation.dk/forms/R0710.aspx?id=138696  "]
["Kørsel6",null,null,"https://www.retsinformation.dk/Forms/R0710.aspx?id=173279"]
["Kørsel7","Ledsager (lods)"," EUSR, logbog, helbredsgodkendelse","http://www.bane.dk/visArtikel.asp?artikelID=3946  "]
["Kørsel8",null,"Bekendtgørelse 986 af 11/10/2011 om helbredskrav på jernbaneområdet, med ændringer i bekendtgørelse 892 af 7/7/2015","https://www.retsinformation.dk/forms/R0710.aspx?id=138696"]
["Kørsel9",null,null,"https://www.retsinformation.dk/Forms/R0710.aspx?id=173279"]
["Kørsel10","Lokomotivfører A","Certificering af lokomotivfører, der fører trækkraftenheder på det danske jernbanet. (opfylder også krav 5)","http://www.bane.dk/visArtikel.asp?artikelID=15679"]
["Kørsel11",null,"Bekendtgørelse 985 af 11/10/2011 om certificering af lokomotivførere, med senere ændringer","https://www.retsinformation.dk/Forms/R0710.aspx?id=138693"]
["Kørsel12",null,"Sikkerhedsklassificerede funktioner må kun udføres af personer, som har opnået helbredsgodkendelse af Trafikstyrelsen. (opfylder også krav 5)","https://www.retsinformation.dk/forms/R0710.aspx?id=138696"]
["Kørsel13",null,"Bekendtgørelse 986 af 11/10/2011 om helbredskrav på jernbaneområdet, med ændringer i bekendtgørelse 892 af 7/7/2015","https://www.retsinformation.dk/Forms/R0710.aspx?id=173279"]
["Kørsel14","Lokomotivfører B","Certificering af lokomotivfører, der fører trækkraftenheder på det danske jernbanet. (opfylder også krav 5)"]
["Kørsel15",null,"Bekendtgørelse 985 af 11/10/2011 om certificering af lokomotivførere, med senere ændringer","https://www.retsinformation.dk/Forms/R0710.aspx?id=138693"]
["Kørsel16",null,"Sikkerhedsklassificerede funktioner må kun udføres af personer, som har opnået helbredsgodkendelse af Trafikstyrelsen. (opfylder også krav 5)"]
["Kørsel17",null,"Bekendtgørelse 986 af 11/10/2011 om helbredskrav på jernbaneområdet, med ændringer i bekendtgørelse 892 af 7/7/2015","https://www.retsinformation.dk/forms/R0710.aspx?id=138696"]
[]
[]
[]
[]
[]
[]
["Togklargøring1","Togklargøring","Togklargøringskursus","http://www.bane.dk/visArtikel.asp?artikelID=3946"]
[]
[]
[]
[]
[]
[]
["Jernbanesikkerhedsplaner1","Jernbanesikkerhedsplaner","SR1, SR2, SR2 sikring","http://www.bane.dk/visArtikel.asp?artikelID=3946"]
["Jernbanesikkerhedsplaner2","Jernbanesikkerhedsplaner (SR 2 adm)","SR2 administrativ","http://www.bane.dk/visArtikel.asp?artikelID=3946"]
[]
[]
[]
[]
[]
[]
["Rullende materiel1","Sikkerhedsgodkendelse af jernbaneinfrastrukturforvaltere","Bekendtgørelse  13 § 3, stk. 6","https://www.retsinformation.dk/Forms/R0710.aspx?id=22618 "]
["Rullende materiel2",null,"Retningslinjer for godkendelse af entreprenører, der leverer jernbanesikkerhedsmæssige ydelser til Banedanmark","http://www.bane.dk/visArtikel.asp?artikelID=6048"]
["Rullende materiel3","Godkendelse af køretøjer på jernbaneområdet","Bekendtgørelse  653 af 8/5/2015 om godkendelse af køretøjer på jernbaneområdet, med ændringer i bekendtgørelse 859 af 7/7/2015","https://www.retsinformation.dk/Forms/R0710.aspx?id=170061"]
["Rullende materiel4","Registrering af køretøjer på jernbaneområdet","Bekendtgørelse 1071 af 23/11/2011 om registrering af køretøjer på jernbaneområdet, med ændringer i bekendtgørelse 1384 af 9/12/2013","https://www.retsinformation.dk/Forms/R0710.aspx?id=139206"]
["Rullende materiel5","Tekniske krav til arbejdskøretøjer på jernbanenettet","Bekendtgørelse  542 af 12/6/2012 om tekniske krav til arbejdskøretøjer på jernbanenettet","https://www.retsinformation.dk/Forms/R0710.aspx?id=142253 "]
["Rullende materiel6","Kørsel på jernbaneinfrastruktur med togkontrol","Bekendtgørelse 11275 af 30/11/2015 om kørsel på infrastruktur med togkontrol BJ 5-4-2015","https://www.retsinformation.dk/forms/R0710.aspx?id=176000 "]
[]
[]
[]
[]
[]
[]
["Faglige ydelser1","Sporteknisk",null,"http://www.bane.dk/visArtikel.asp?artikelID=22740"]
["Faglige ydelser2",null,null,"http://www.bane.dk/visBanenormer.asp?artikelID=6639"]
["Faglige ydelser3","Sikringsteknisk",null,"http://www.bane.dk/visArtikel.asp?artikelID=22740"]
["Faglige ydelser4",null,null,"http://www.bane.dk/visBanenormer.asp?artikelID=6639"]
["Faglige ydelser5","Svejserteknisk",null,"http://www.bane.dk/visArtikel.asp?artikelID=22740"]
["Faglige ydelser6",null,null,"http://www.bane.dk/visBanenormer.asp?artikelID=6639"]
["Faglige ydelser7","Kørestrømteknisk",null,"http://www.bane.dk/visArtikel.asp?artikelID=22740"]
["Faglige ydelser8",null,null,"http://www.bane.dk/visBanenormer.asp?artikelID=6639"]
["Faglige ydelser9","Forst",null,"http://www.bane.dk/visArtikel.asp?artikelID=22740"]
["Faglige ydelser10",null,null,"http://www.bane.dk/visBanenormer.asp?artikelID=6639"]
["Faglige ydelser11","Måleteknisk",null,"http://www.bane.dk/visArtikel.asp?artikelID=22740"]
["Faglige ydelser12",null,null,"http://www.bane.dk/visBanenormer.asp?artikelID=6639"]
["Faglige ydelser13","Stærkstrøm",null,"http://www.bane.dk/visArtikel.asp?artikelID=22740"]
["Faglige ydelser14",null,null,"http://www.bane.dk/visBanenormer.asp?artikelID=6639"]
["Faglige ydelser15","Værkstedsydelser (rullende materiel)",null,"http://www.bane.dk/visArtikel.asp?artikelID=22740"]
["Faglige ydelser16",null,null,"http://www.bane.dk/visBanenormer.asp?artikelID=6639"]
["Faglige ydelser17","Signal",null,"http://www.bane.dk/visArtikel.asp?artikelID=22740"]
["Faglige ydelser18",null,null,"http://www.bane.dk/visBanenormer.asp?artikelID=6639"]

{"sheet":"Faglige kompetencekrav","index":5,"n_rows":8,"n_cols":5,"rows_kept":8,"cut":false,"hidden":true,"merged":[[6,2,6,4],[7,2,7,4],[5,2,5,4]]}
[null,{"$f":"CONCATENATE(\"Fagkompetencer \",C6,\" - \",IF(C8=\"\",C7,C8))","v":"Fagkompetencer (Vælg) - "}]
[{"$f":"\"Krav til fagkompetencer\"&IF(C6<>\"(Vælg)\",\" - \"&C6,)","v":"Krav til fagkompetencer"}]
[]
[null,"Gemt/udskrevet af:",{"$f":"Forside!F32","v":"Niels Erik Bjergaarde (NEBG); nebg"},null,{"$f":"NOW()","v":"2019-10-22T15:28:04.130"}]
[]
[null,"Fag","(Vælg)"]
[null,"Anlægselement"]
[null,"Anlægselementtype/opgave"]

{"sheet":"Fagkompetence_DATA","index":6,"n_rows":201,"n_cols":36,"rows_kept":201,"cut":false,"hidden":true,"merged":[]}
[]
[]
[]
[]
[]
[]
[]
[]
[null,0,1,2,3,4,5,6,7,8,9,10,null,null,"Opsætning",null,null,null,null,null,null,null,null,null,null,null,null,null,null,null,null,null,null,null,"Valglister (Må ikke redigeres)"]
[null,"Valgmenuer",null,null,"Nærmere beskrivelse:","Kompetencekrav","Kompetencekrav","Kompetencekrav","Kompetencekrav","Kompetencekrav",null,null,null,null,"Fag","(Vælg)","Forst","Sikring","Broer & bygninger","Kørestrøm","Stærkstrøm","Spor",null,null,null,null,null,null,null,null,null,null,null,null,"anlægselement","opgave/type"]
[null,"Fag","Anlægselement","Anlægselementtype/opgavetype","Opgavetype","Virksomheds krav","Grunduddannelse","Kurser","Certificering","Erfaring","Krav vedrører","Ansvar",null,null,"Benytter kolonner",null,"1,3,4,5,6,8,9,10","1,2,5,6,9,10","1,2,5,6,8,9,10","1,5,6,9,10","1,2,4,5,6,7,8,9,10","1,2,6,7,8,9,10",null,null,null,null,null,null,null,null,null,null,null,null,"(Vælg)","(Vælg)"]
[null,"Broer & bygninger","Broer_og_støttekonstruktioner","Særeftersyn (bro)",null,null,"Ingeniør med speciale i bærende konstruktioner og / eller broer samt evt. geoteknik.\n\n","VEJ-EU: Eftersyn af bygværker\nDykkerundersøgelser kræves certifikat som erhvervsdykker.",null,"Alt efter opgaven skal det bevises at de \"rigtige\" kompetencer er til stede hos teamet der skal løse opgaven.",null,null,null,null,null,null,null,null,null,null,null,null,null,null,null,null,null,null,null,null,null,null,null,null,"Fjernstyringscentral","Sicas S5"]
[null,"Broer & bygninger","Perron","Særeftersyn (perron)",null,null,"Ingeniør med speciale i bærende konstruktioner og / eller broer samt evt. geoteknik.\n\n","VEJ-EU: Eftersyn af bygværker\nDykkerundersøgelser kræves certifikat som erhvervsdykker.",null,"Alt efter opgaven skal det bevises at de \"rigtige\" kompetencer er til stede hos teamet der skal løse opgaven.",null,null,null,null,null,null,null,null,null,null,null,null,null,null,null,null,null,null,null,null,null,null,null,null,"Stationssikringsanlæg","1990_stat"]
[null,"Broer & bygninger","Store_broer","Særeftersyn (stor bro)",null,null,"Ingeniør med speciale i bærende konstruktioner og / eller broer samt evt. geoteknik.\n\n","VEJ-EU: Eftersyn af bygværker\nDykkerundersøgelser kræves certifikat som erhvervsdykker.",null,"Alt efter opgaven skal det bevises at de \"rigtige\" kompetencer er til stede hos teamet der skal løse opgaven.",null,null,null,null,null,null,null,null,null,null,null,null,null,null,null,null,null,null,null,null,null,null,null,null,"HKT_anlæg"]
[null,"Broer & bygninger","Broer_og_støttekonstruktioner","Generaleftersyn (bro)",null,null,"Ingeniør med speciale i bærende konstruktioner og / eller broer samt evt. geoteknik.\n","VEJ-EU: Eftersyn af bygværker",null,"Godt kendskab til brovedligehold og reperationsmetoder som kræves for at kunne deltage på kurset \"Eftersyn af bygværker\n\nSpecifikke krav om supplerende erfaring kan forekomme fx. erfaring med nittede stålbroer.",null,null,null,null,null,null,null,null,null,null,null,null,null,null,null,null,null,null,null,null,null,null,null,null,"Stationssikringsanlæg_varslingsanlæg"]
[null,"Broer & bygninger","Perron","Generaleftersyn (perron)",null,null,"Ingeniør med speciale i bærende konstruktioner og / eller broer samt evt. geoteknik.\n\n\n","VEJ-EU: Eftersyn af bygværker",null,"Godt kendskab til brovedligehold som kræves for at kunne deltage på kurset \"Eftersyn af bygværker\".",null,null,null,null,null,null,null,null,null,null,null,null,null,null,null,null,null,null,null,null,null,null,null,null,"SPSK_omstillingsanlæg"]
[null,"Sikring","Fjernstyringscentral","TCTC",null,null,"Sikringstekniker","Tonefjernstyring\n\nFKI_SKI Spor_sikring (ved elektrificerede strækning)",null,null,"Fagarbejdslederen","At arbejdet udføres i henhold til gældende normer og regler\n\nDet tekniske ansvar for arbejdet på arbejdsstedet\n\nSelvstændigt bedømme om jernbaneanlægget opfylder kravene i gældende normer og regler og kan idriftsættes efter indgreb",null,null,null,null,null,null,null,null,null,null,null,null,null,null,null,null,null,null,null,null,null,null,"Sporskiftedrev"]
[null,"Sikring","Stationssikringsanlæg","Sicas S5",null,null,"Sikringstekniker","Stationssikringsanlæg Sicas S5\n\nFKI_SKI Spor_sikring (ved elektrificerede strækning)",null,null,"Fagarbejdslederen","At arbejdet udføres i henhold til gældende normer og regler\n\nDet tekniske ansvar for arbejdet på arbejdsstedet\n\nSelvstændigt bedømme om jernbaneanlægget opfylder kravene i gældende normer og regler og kan idriftsættes efter indgreb",null,null,null,null,null,null,null,null,null,null,null,null,null,null,null,null,null,null,null,null,null,null,"Kabelanlæg"]
[null,"Sikring","HKT_anlæg","HKT-anlæg",null,null,"Sikringstekniker","Stationssikringsanlæg og linjeblok 69\n\nStationssikringsanlæg type 1964\n\nFKI_SKI Spor_sikring (ved elektrificerede strækning)",null,null,"Fagarbejdslederen","At arbejdet udføres i henhold til gældende normer og regler\n\nDet tekniske ansvar for arbejdet på arbejdsstedet\n\nSelvstændigt bedømme om jernbaneanlægget opfylder kravene i gældende normer og regler og kan idriftsættes efter indgreb",null,null,null,null,null,null,null,null,null,null,null,null,null,null,null,null,null,null,null,null,null,null,"Linieblokanlæg"]
[null,"Sikring","Stationssikringsanlæg","1990_stat",null,null,"Sikringstekniker","Stationssikringsanlæg 1990\n\nFKI_SKI Spor_sikring (ved elektrificerede strækning)",null,null,"Fagarbejdslederen","At arbejdet udføres i henhold til gældende normer og regler\n\nDet tekniske ansvar for arbejdet på arbejdsstedet\n\nSelvstændigt bedømme om jernbaneanlægget opfylder kravene i gældende normer og regler og kan idriftsættes efter indgreb",null,null,null,null,null,null,null,null,null,null,null,null,null,null,null,null,null,null,null,null,null,null,"Togdetektering"]
[null,"Sikring","Stationssikringsanlæg_varslingsanlæg","1977_varsl",null,null,"Sikringstekniker","Stationssikringsanlæg 1977\n\nFKI_SKI Spor_sikring (ved elektrificerede strækning)",null,null,"Fagarbejdslederen","At arbejdet udføres i henhold til gældende normer og regler\n\nDet tekniske ansvar for arbejdet på arbejdsstedet\n\nSelvstændigt bedømme om jernbaneanlægget opfylder kravene i gældende normer og regler og kan idriftsættes efter indgreb",null,null,null,null,null,null,null,null,null,null,null,null,null,null,null,null,null,null,null,null,null,null,"FST"]
[null,"Sikring","Stationssikringsanlæg_varslingsanlæg","1972_varsl",null,null,"Sikringstekniker","Stationssikringsanlæg 1972\n\nFKI_SKI Spor_sikring (ved elektrificerede strækning)",null,null,"Fagarbejdslederen","At arbejdet udføres i henhold til gældende normer og regler\n\nDet tekniske ansvar for arbejdet på arbejdsstedet\n\nSelvstændigt bedømme om jernbaneanlægget opfylder kravene i gældende normer og regler og kan idriftsættes efter indgreb",null,null,null,null,null,null,null,null,null,null,null,null,null,null,null,null,null,null,null,null,null,null,"Centraldel"]
[null,"Sikring","Stationssikringsanlæg_varslingsanlæg","1969_varsl",null,null,"Sikringstekniker","Stationssikringsanlæg 1969\n\nFKI_SKI Spor_sikring (ved elektrificerede strækning)",null,null,"Fagarbejdslederen","At arbejdet udføres i henhold til gældende normer og regler\n\nDet tekniske ansvar for arbejdet på arbejdsstedet\n\nSelvstændigt bedømme om jernbaneanlægget opfylder kravene i gældende normer og regler og kan idriftsættes efter indgreb",null,null,null,null,null,null,null,null,null,null,null,null,null,null,null,null,null,null,null,null,null,null,"Fast_ mærke"]
[null,"Sikring","Stationssikringsanlæg_varslingsanlæg","1964_varsl",null,null,"Sikringstekniker","Stationssikringsanlæg 1964\n\nFKI_SKI Spor_sikring (ved elektrificerede strækning)",null,null,"Fagarbejdslederen","At arbejdet udføres i henhold til gældende normer og regler\n\nDet tekniske ansvar for arbejdet på arbejdsstedet\n\nSelvstændigt bedømme om jernbaneanlægget opfylder kravene i gældende normer og regler og kan idriftsættes efter indgreb",null,null,null,null,null,null,null,null,null,null,null,null,null,null,null,null,null,null,null,null,null,null,"Hytter_skabe"]
[null,"Sikring","Stationssikringsanlæg_varslingsanlæg","1246_varsl",null,null,"Sikringstekniker","Stationssikringsanlæg 1246 \n\nFKI_SKI Spor_sikring (ved elektrificerede strækning)",null,null,"Fagarbejdslederen","At arbejdet udføres i henhold til gældende normer og regler\n\nDet tekniske ansvar for arbejdet på arbejdsstedet\n\nSelvstændigt bedømme om jernbaneanlægget opfylder kravene i gældende normer og regler og kan idriftsættes efter indgreb",null,null,null,null,null,null,null,null,null,null,null,null,null,null,null,null,null,null,null,null,null,null,"STL_Overvågning"]
[null,"Sikring","SPSK_omstillingsanlæg","SPSK omstillingsanlæg",null,null,"Sikringstekniker","SPSK omstillingsanlæg\n\nFKI_SKI Spor_sikring (ved elektrificerede strækning)",null,null,"Fagarbejdslederen","At arbejdet udføres i henhold til gældende normer og regler\n\nDet tekniske ansvar for arbejdet på arbejdsstedet\n\nSelvstændigt bedømme om jernbaneanlægget opfylder kravene i gældende normer og regler og kan idriftsættes efter indgreb",null,null,null,null,null,null,null,null,null,null,null,null,null,null,null,null,null,null,null,null,null,null,"Jordfejlmelder"]
[null,"Spor","Skinne","Boring i skinne",null,"Kurser:\nKursus bevis \nErfarings godkendelse af BDK Svejseinstruktør el BDK Svejseansvarlig:\nBilag 4 i Banedanmarks instruktion i svejsearbejde: Tilladelse til aluminotermisk svejsearbejde",null,"Sporteknik 1\n\nSporteknik 2\n\nSkæring, boring og slibning\n\nFKI/SKI Spor_sikring (ved Elektrificerede strækninger)","Banedanmark Svejseansvarlig eller svejseinstruktør gennemgår kurser, certificeringer og erfaring inden svejseren løser de enkelte opgaver.\n\nVed vedligehold opbevares dokumentationen af dette hos den svejseansvarlige i Teknisk Drift\n","Boring i skinne","Svejser / Fagarbejdsleder","At arbejdet udføres i henhold til gældende normer og regler\n\nDet tekniske ansvar for arbejdet på arbejdsstedet\n\nSelvstændigt bedømme om jernbaneanlægget opfylder kravene i gældende normer og regler og kan idriftsættes efter indgreb",null,null,null,null,null,null,null,null,null,null,null,null,null,null,null,null,null,null,null,null,null,null,"Fjernstyringsunderst"]
[null,"Spor","Skinne","Skæring i forbindelse med aluminotermisk svejsning",null,"Kurser:\nKursus bevis \nErfarings godkendelse af BDK Svejseinstruktør el BDK Svejseansvarlig:\nBilag 4 i Banedanmarks instruktion i svejsearbejde: Tilladelse til aluminotermisk svejsearbejde",null,"Sporteknik 1\n\nSporteknik 2\n\nSkæring, borring og slibning\n\nFKI/SKI Spor_sikring (ved EL strejkninger)","Banedanmark Svejseansvarlig eller svejseinstruktør gennemgår kurser, certificeringer og erfaring inden svejseren løser de enkelte opgaver.\n\nVed vedligehold opbevares dokumentationen af dette hos den svejseansvarlige i Teknisk Drift\n","Skæring i forbindelse med alutermisk svejsning og isolerklæbestød","Svejser / Fagarbejdsleder","At arbejdet udføres i henhold til gældende normer og regler\n\nDet tekniske ansvar for arbejdet på arbejdsstedet\n\nSelvstændigt bedømme om jernbaneanlægget opfylder kravene i gældende normer og regler og kan idriftsættes efter indgreb",null,null,null,null,null,null,null,null,null,null,null,null,null,null,null,null,null,null,null,null,null,null,"Overkørselsanlæg"]
[null,"Spor","Tungeparti","½ tungeparti - Slibning af sporskiftekomponenter",null,"Kurser:\nKursus bevis, certificering \n\nErfarings godkendelse af BDK Svejseinstruktør el BDK Svejseansvarlig:\nBilag 4 i Banedanmarks instruktion i svejsearbejde: Tilladelse til aluminotermisk svejsearbejde",null,"Sporteknik 1\n\nSporteknik 2\n\nSkæring, borring og slibning\n\nAluminotermisk svejsning\n\nSpændingsudligning og indgreb \n\nFKI/SKI Spor_sikring (ved Elektrificerede strækninger)\n","Alumiteknisk svejsning; Banedanmark Svejseansvarlig eller svejseinstruktør gennemgår kurser, certificeringer og erfaring inden svejseren løser de enkelte opgaver.\n\nVed vedligehold opbevares dokumentationen af dette hos den svejseansvarlige i Teknisk Drift","Slibning af sporskiftekomponenter","Svejser / Fagarbejdsleder","At arbejdet udføres i henhold til gældende normer og regler\n\nDet tekniske ansvar for arbejdet på arbejdsstedet\n\nSelvstændigt bedømme om jernbaneanlægget opfylder kravene i gældende normer og regler og kan idriftsættes efter indgreb",null,null,null,null,null,null,null,null,null,null,null,null,null,null,null,null,null,null,null,null,null,null,"ATC_anlæg"]
[null,"Spor","Skinne","Indgreb i langskinne",null,"Kurser:\nKursus bevis, certificering \nErfarings godkendelse af BDK Svejseinstruktør el BDK Svejseansvarlig:\nBilag 4 i Banedanmarks instruktion i svejsearbejde: Tilladelse til aluminotermisk svejsearbejde",null,"Sporteknik 1\n\nSporteknik 2\n\nSkæring, borring og slibning\n\nAluminotermisk svejsning\n\nSpændingsudligning og indgreb \n\nFKI/SKI Spor_sikring (ved Elektrificerede strækning)\n","Aluminotermisk svejsning; Spændingsudligning og indgreb; Banedanmark Svejseansvarlig eller svejseinstruktør gennemgår kurser, certificeringer og erfaring inden svejseren løser de enkelte opgaver. \n\nKompetencekravet er stillet i BN1-66-2 (Juli 2013) Langskinnespor, spændingsudligning og indgreb i spændingsudlignet spor.","Indgreb i langskinner\n\nAluminotermisk svejsning (nye skinner / brugelige ældre skinner)","Svejser / Fagarbejdsleder","At arbejdet udføres i henhold til gældende normer og regler\n\nDet tekniske ansvar for arbejdet på arbejdsstedet\n\nSelvstændigt bedømme om jernbaneanlægget opfylder kravene i gældende normer og regler og kan idriftsættes efter indgreb",null,null,null,null,null,null,null,null,null,null,null,null,null,null,null,null,null,null,null,null,null,null,"Akseltæller"]
[null,"Spor","Skinne","Spændingsudligning/slutsvejsning",null,"Kurser:\nKursus bevis, certificering \nErfarings godkendelse af BDK Svejseinstruktør el BDK Svejseansvarlig:\nBilag 4 i Banedanmarks instruktion i svejsearbejde: Tilladelse til aluminotermisk svejsearbejde",null,"Sporteknik 1\n\nSporteknik 2\n\nSkæring, borring og slibning\n\nAluminotermisk svejsning\n\nSpændingsudligning og indgreb \n\nFKI/SKI Spor_sikring (ved Elektrificerede strækninger)\n","Aluminotermisk svejsning; Spændingsudligning og indgreb; Banedanmark Svejseansvarlig eller svejseinstruktør gennemgår kurser, certificeringer og erfaring inden svejseren løser de enkelte opgaver. \n\nKompetencekravet er stillet i BN1-66-2 (Juli 2013) Langskinnespor, spændingsudligning og indgreb i spændingsudlignet spor.","Spændingsudligning med og uden ruller\n\nSpændingsudligning op mod et fastpunkt\n\nAluminotermisk svejsning (nye skinner / brugelige ældre skinner)\n","Svejser / Fagarbejdsleder","At arbejdet udføres i henhold til gældende normer og regler\n\nDet tekniske ansvar for arbejdet på arbejdsstedet\n\nSelvstændigt bedømme om jernbaneanlægget opfylder kravene i gældende normer og regler og kan idriftsættes efter indgreb"]
[null,"Spor","Tungeparti","Afslibning efter tungeslidmål",null,"Kurser:\nKursus bevis, certificering \nErarings godkendelse af BDK Svejseinstruktør el BDK Svejseansvarlig:\nBilag 4 i Banedanmarks instruktion i svejsearbejde: Tilladelse til aluminotermisk svejsearbejde",null,"Sporteknik 1\n\nSporteknik 2\n\nSkæring, borring og slibning\n\nAluminotermisk svejsning\n\nPålægssvejsning\n\nFKI/SKI Spor_sikring (ved Elektrificeret strækning)","Pålægssvejsning; Aluminotermisk Svejsning;                     Banedanmark Svejseansvarlig eller svejseinstruktør gennemgår kurser, certificeringer og erfaring inden svejseren løser de enkelte opgaver.\n\nVed vedligehold opbevares dokumentationen af dette hos den svejseansvarlige i Teknisk Drift\"","Afslibning efter tungeslidmål\n\nAfslibning af grater/næb o.l\n\nSlibning ved angstlask","Svejser / Fagarbejdsleder","At arbejdet udføres i henhold til gældende normer og regler\n\nDet tekniske ansvar for arbejdet på arbejdsstedet\n\nSelvstændigt bedømme om jernbaneanlægget opfylder kravene i gældende normer og regler og kan idriftsættes efter indgreb"]
[null,"Spor","Krydsning","Pålægssvejsning og reprofilering af krydsninger",null,"Kurser:\nKursus bevis, certificering \nErfarings godkendelse af BDK Svejseinstruktør el BDK Svejseansvarlig:\nBilag 4 i Banedanmarks instruktion i svejsearbejde: Tilladelse til aluminotermisk svejsearbejde",null,"Sporteknik 1\n\nSporteknik 2\n\nSkæring, borring og slibning\n\nAluminotermisk svejsning\n\nPålægssvejsning\n\nFKI/SKI Spor_sikring (ved Elektrificeret strækning)","Pålægssvejsning; Aluminotermisk Svejsning;                     Banedanmark Svejseansvarlig eller svejseinstruktør gennemgår kurser, certificeringer og erfaring inden svejseren løser de enkelte opgaver.\n\nVed vedligehold opbevares dokumentationen af dette h","Pålægssvejsning og reprofilering af krydsninger","Svejser / Fagarbejdsleder","At arbejdet udføres i henhold til gældende normer og regler\n\nDet tekniske ansvar for arbejdet på arbejdsstedet\n\nSelvstændigt bedømme om jernbaneanlægget opfylder kravene i gældende normer og regler og kan idriftsættes efter indgreb"]
[null,"Spor","Tungeparti","Pålægssvejsning og reprofilering af sideskinne",null,"Kurser:\nKursus bevis, certificering \nErfarings godkendelse af BDK Svejseinstruktør el BDK Svejseansvarlig:\nBilag 4 i Banedanmarks instruktion i svejsearbejde: Tilladelse til aluminotermisk svejsearbejde",null,"Sporteknik 1\n\nSporteknik 2\n\nSkæring, borring og slibning\n\nAluminotermisk svejsning\n\nPålægssvejsning\n\nFKI/SKI Spor_sikring (ved Elektrificeret strækning)","Pålægssvejsning\nAluminotermisk Svejsning;              Banedanmark Svejseansvarlig eller svejseinstruktør gennemgår kurser, certificeringer og erfaring inden svejseren løser de enkelte opgaver.\n\nVed vedligehold opbevares dokumentationen af dette hos den ","Pålægssvejsning og reprofilering af sideskinne\n\nDispensationssvejsning af tunger","Svejser / Fagarbejdsleder","At arbejdet udføres i henhold til gældende normer og regler\n\nDet tekniske ansvar for arbejdet på arbejdsstedet\n\nSelvstændigt bedømme om jernbaneanlægget opfylder kravene i gældende normer og regler og kan idriftsættes efter indgreb"]
[null,"Spor","Skinne","Pålægssvejsning og reprofilering af skinne",null,"Kurser:\nKursus bevis, certificering \nErfarings godkendelse af BDK Svejseinstruktør el BDK Svejseansvarlig:\nBilag 4 i Banedanmarks instruktion i svejsearbejde: Tilladelse til aluminotermisk svejsearbejde",null,"Sporteknik 1\n\nSporteknik 2\n\nSkæring, borring og slibning\n\nAluminotermisk svejsning\n\nPålægssvejsning\n\nFKI/SKI Spor_sikring (ved Elektrificeret strækning)","Pålægssvejsning\nAluminotermisk Svejsning;              Banedanmark Svejseansvarlig eller svejseinstruktør gennemgår kurser, certificeringer og erfaring inden svejseren løser de enkelte opgaver.\n\nVed vedligehold opbevares dokumentationen af dette hos den ","Pålægssvejsning og reprofilering af skinne","Svejser / Fagarbejdsleder","At arbejdet udføres i henhold til gældende normer og regler\n\nDet tekniske ansvar for arbejdet på arbejdsstedet\n\nSelvstændigt bedømme om jernbaneanlægget opfylder kravene i gældende normer og regler og kan idriftsættes efter indgreb"]
[null,"Spor","Tvangsskinne","Pålægssvejsning og reprofilering af tvangsskinner",null,"Kurser:\nKursus bevis, certificering \nErfarings godkendelse af BDK Svejseinstruktør el BDK Svejseansvarlig:\nBilag 4 i Banedanmarks instruktion i svejsearbejde: Tilladelse til aluminotermisk svejsearbejde",null,"Sporteknik 1\n\nSporteknik 2\n\nSkæring, borring og slibning\n\nAluminotermisk svejsning\n\nPålægssvejsning\n\nFKI/SKI Spor_sikring (ved Elektrificeret strækning)","Pålægssvejsning\nAluminotermisk Svejsning;              Banedanmark Svejseansvarlig eller svejseinstruktør gennemgår kurser, certificeringer og erfaring inden svejseren løser de enkelte opgaver.\n\nVed vedligehold opbevares dokumentationen af dette hos den ","Pålægssvejsning og reprofilering af tvangsskinner","Svejser / Fagarbejdsleder","At arbejdet udføres i henhold til gældende normer og regler\n\nDet tekniske ansvar for arbejdet på arbejdsstedet\n\nSelvstændigt bedømme om jernbaneanlægget opfylder kravene i gældende normer og regler og kan idriftsættes efter indgreb"]
[null,"Spor","Krydsning","Regulering iht. relevante sporskiftemål og sporriller",null,"Kurser:\nKursus bevis, certificering \nErfarings godkendelse af BDK Svejseinstruktør el BDK Svejseansvarlig:\nBilag 4 i Banedanmarks instruktion i svejsearbejde: Tilladelse til aluminotermisk svejsearbejde",null,"Sporteknik 1\n\nSporteknik 2\n\nSkæring, borring og slibning\n\nAluminotermisk svejsning\n\nPålægssvejsning\n\nFKI/SKI Spor_sikring (ved Elektrificeret strækning)","Pålægssvejsning\nAluminotermisk Svejsning;              Banedanmark Svejseansvarlig eller svejseinstruktør gennemgår kurser, certificeringer og erfaring inden svejseren løser de enkelte opgaver.\n\nVed vedligehold opbevares dokumentationen af dette hos den ","Regulering iht. relevante sporskiftemålog sporriller","Svejser / Fagarbejdsleder","At arbejdet udføres i henhold til gældende normer og regler\n\nDet tekniske ansvar for arbejdet på arbejdsstedet\n\nSelvstændigt bedømme om jernbaneanlægget opfylder kravene i gældende normer og regler og kan idriftsættes efter indgreb"]
[null,"Spor","Tvangsskinne","Regulering iht. relevante sporskiftemål og sporriller, herunder montering af indskudsplade",null,"Kurser:\nKursus bevis, certificering \nErfarings godkendelse af BDK Svejseinstruktør el BDK Svejseansvarlig:\nBilag 4 i Banedanmarks instruktion i svejsearbejde: Tilladelse til aluminotermisk svejsearbejde",null,"Sporteknik 1\n\nSporteknik 2\n\nSkæring, borring og slibning\n\nAluminotermisk svejsning\n\nPålægssvejsning\n\nFKI/SKI Spor_sikring (ved Elektrificeret strækning)","Pålægssvejsning\nAluminotermisk Svejsning;              Banedanmark Svejseansvarlig eller svejseinstruktør gennemgår kurser, certificeringer og erfaring inden svejseren løser de enkelte opgaver.\n\nVed vedligehold opbevares dokumentationen af dette hos den ","Regulering iht. relevante sporskiftemål og sporriller, herunder montering af indskudsplade","Svejser / Fagarbejdsleder","At arbejdet udføres i henhold til gældende normer og regler\n\nDet tekniske ansvar for arbejdet på arbejdsstedet\n\nSelvstændigt bedømme om jernbaneanlægget opfylder kravene i gældende normer og regler og kan idriftsættes efter indgreb"]
[null,"Spor","Krydsning","Stødopretning",null,"Kurser:\nKursus bevis, certificering \nErfarings godkendelse af BDK Svejseinstruktør el BDK Svejseansvarlig:\nBilag 4 i Banedanmarks instruktion i svejsearbejde: Tilladelse til aluminotermisk svejsearbejde",null,"Sporteknik 1\n\nSporteknik 2\n\nSkæring, borring og slibning\n\nAluminotermisk svejsning\n\nPålægssvejsning\n\nFKI/SKI Spor_sikring (ved Elektrificeret strækning)","Pålægssvejsning\nAluminotermisk Svejsning;              Banedanmark Svejseansvarlig eller svejseinstruktør gennemgår kurser, certificeringer og erfaring inden svejseren løser de enkelte opgaver.\n\nVed vedligehold opbevares dokumentationen af dette hos den ","Stødopretning","Svejser / Fagarbejdsleder","At arbejdet udføres i henhold til gældende normer og regler\n\nDet tekniske ansvar for arbejdet på arbejdsstedet\n\nSelvstændigt bedømme om jernbaneanlægget opfylder kravene i gældende normer og regler og kan idriftsættes efter indgreb"]
[null,"Spor","Isolerklæbestød","Svejsning i forbindelse med isolerklæbestød (bygge og vedligehold)",null,"Kurser:\nKursus bevis, certificering \nErfarings godkendelse af BDK Svejseinstruktør el BDK Svejseansvarlig:\nBilag 4 i Banedanmarks instruktion i svejsearbejde: Tilladelse til aluminotermisk svejsearbejde",null,"Sporteknik 1\n\nSporteknik 2\n\nSkæring, borring og slibning\n\nAluminotermisk svejsning\n\nIsolerklæbestød\n\nFKI/SKI Spor_sikring (ved Elektrificeret strækning)","Aluminotermisk Svejsning;              Banedanmark Svejseansvarlig eller svejseinstruktør gennemgår kurser, certificeringer og erfaring inden svejseren løser de enkelte opgaver.","Bygge og vedligeholde isolerklæbestød","Svejser / Fagarbejdsleder","At arbejdet udføres i henhold til gældende normer og regler\n\nDet tekniske ansvar for arbejdet på arbejdsstedet\n\nSelvstændigt bedømme om jernbaneanlægget opfylder kravene i gældende normer og regler og kan idriftsættes efter indgreb"]
[null,"Spor","Tungeparti","½ tungeparti - Svejsning ved udveksling af større jerndele i sporskifter",null,"Kurser:\nKursus bevis, certificering \nErfarings godkendelse af BDK Svejseinstruktør el BDK Svejseansvarlig:\nBilag 4 i Banedanmarks instruktion i svejsearbejde: Tilladelse til aluminotermisk svejsearbejde",null,"Sporteknik 1\n\nSporteknik 2\n\nSkæring, borring og slibning\n\nAluminotermisk svejsning\n\nFKI/SKI Spor_sikring (ved Elektrificeret strækning)","Aluminotermisk Svejsning;              Banedanmark Svejseansvarlig eller svejseinstruktør gennemgår kurser, certificeringer og erfaring inden svejseren løser de enkelte opgaver.","Udveksling af større jerndele i sporskifter ","Svejser / Fagarbejdsleder","At arbejdet udføres i henhold til gældende normer og regler\n\nDet tekniske ansvar for arbejdet på arbejdsstedet\n\nSelvstændigt bedømme om jernbaneanlægget opfylder kravene i gældende normer og regler og kan idriftsættes efter indgreb"]
[null,"Spor","Skinne","Bred aluminotermisk svejsning",null,"Kurser:\nKursus bevis, certificering \nErfarings godkendelse af BDK Svejseinstruktør el BDK Svejseansvarlig:\nBilag 4 i Banedanmarks instruktion i svejsearbejde: Tilladelse til aluminotermisk svejsearbejde",null,"Sporteknik 1\n\nSporteknik 2\n\nSkæring, borring og slibning\n\nAluminotermisk svejsning\n\nFKI/SKI Spor_sikring (ved Elektrificeret strækning)","Aluminotermisk Svejsning;              Banedanmark Svejseansvarlig eller svejseinstruktør gennemgår kurser, certificeringer og erfaring inden svejseren løser de enkelte opgaver.","Aluminotermisk svejsning (nye skinner / brugelige ældre skinner)\n\nBred aluminoteknisk svejsning","Svejser / Fagarbejdsleder","At arbejdet udføres i henhold til gældende normer og regler\n\nDet tekniske ansvar for arbejdet på arbejdsstedet\n\nSelvstændigt bedømme om jernbaneanlægget opfylder kravene i gældende normer og regler og kan idriftsættes efter indgreb"]
[null,"Spor","Skinne","Aluminotermisk svejsning",null,"Kurser:\nKursus bevis, certificering \nErfarings godkendelse af BDK Svejseinstruktør el BDK Svejseansvarlig:\nBilag 4 i Banedanmarks instruktion i svejsearbejde: Tilladelse til aluminotermisk svejsearbejde",null,"Sporteknik 1\n\nSporteknik 2\n\nSkæring, borring og slibning\n\nAluminotermisk svejsning\n\nFKI/SKI Spor_sikring (ved Elektrificerede strækning)","Aluminotermisk Svejsning;              Banedanmark Svejseansvarlig eller svejseinstruktør gennemgår kurser, certificeringer og erfaring inden svejseren løser de enkelte opgaver.","Aluminotermisk svejsning (nye skinner / brugelige ældre skinner)","Svejser / Fagarbejdsleder","At arbejdet udføres i henhold til gældende normer og regler\n\nDet tekniske ansvar for arbejdet på arbejdsstedet\n\nSelvstændigt bedømme om jernbaneanlægget opfylder kravene i gældende normer og regler og kan idriftsættes efter indgreb"]
[null,"Spor","Tungeparti","Koldretning af tunger",null,"Kursus:\n- Certificering\n\nOpdatering / Erfaring:\n - CV",null,"Sporteknik 1\n\nSporteknik 2\n\nKold- og varmeretning\n\nFKI/SKI Spor_sikring (ved Elektrificeret strækning)",null,"Kolderetning af tunger","Svejser / Fagarbejdsleder","At arbejdet udføres i henhold til gældende normer og regler\n\nDet tekniske ansvar for arbejdet på arbejdsstedet\n\nSelvstændigt bedømme om jernbaneanlægget opfylder kravene i gældende normer og regler og kan idriftsættes efter indgreb"]
[null,"Spor","Skinne","Varmretning af svejsning",null,"Kursus:\n- Certificering\n\nOpdatering / Erfaring:\n - CV",null,"Sporteknik 1\n\nSporteknik 2\n\nKold- og varmeretning\n\nFKI/SKI Spor_sikring (ved Elektrificeret strækning)",null,"Varmretning af svejsning","Svejser / Fagarbejdsleder","At arbejdet udføres i henhold til gældende normer og regler\n\nDet tekniske ansvar for arbejdet på arbejdsstedet\n\nSelvstændigt bedømme om jernbaneanlægget opfylder kravene i gældende normer og regler og kan idriftsættes efter indgreb"]
[null,"Spor","Ballast","Ballastsupplering og profilering",null,"Kursus:\n- Certificering\n\nOpdatering / Erfaring:\n - CV",null,"Sporteknik 1\n\nSporteknik 2\n\nFKI/SKI Spor_sikring (ved Elektrificeret strækninger)",null,"Har gennemført en lignende opgave tidligere (sidemandsoplæring)\n\nNormkendskab (BN1-6)","Fagarbejdslederen","At arbejdet udføres i henhold til gældende normer og regler\n\nDet tekniske ansvar for arbejdet på arbejdsstedet\n\nSelvstændigt bedømme om jernbaneanlægget opfylder kravene i gældende normer og regler og kan idriftsættes efter indgreb"]
[null,"Spor","Overkørsel","Belægningsarbejde i overkørsler",null,"Kursus:\n- Certificering\n\nOpdatering / Erfaring:\n - CV",null,"Sporteknik 1\n\nSporteknik 2\n\nFKI/SKI Spor_sikring (ved Elektrificeret strækninger)",null,"Har gennemført en lignende opgave tidligere (sidemandsoplæring)\n\nNormkendskab (Fritrum)","Fagarbejdslederen","At arbejdet udføres i henhold til gældende normer og regler\n\nDet tekniske ansvar for arbejdet på arbejdsstedet\n\nSelvstændigt bedømme om jernbaneanlægget opfylder kravene i gældende normer og regler og kan idriftsættes efter indgreb"]
[null,"Spor","Skinne","Bygning af Sporramme",null,"Kursus:\n- Certificering\n\nOpdatering / Erfaring:\n - CV",null,"Sporteknik 1\n\nSporteknik 2\n\nFKI/SKI Spor_sikring (ved Elektrificeret strækninger)",null,"Har gennemført en lignende opgave tidligere (sidemandsoplæring)\n\nNormkendskab","Fagarbejdslederen","At arbejdet udføres i henhold til gældende normer og regler\n\nDet tekniske ansvar for arbejdet på arbejdsstedet\n\nSelvstændigt bedømme om jernbaneanlægget opfylder kravene i gældende normer og regler og kan idriftsættes efter indgreb"]
[null,"Spor","Sporskifte","Bygning af Sporskifter",null,"Kursus:\n- Certificering\n\nOpdatering / Erfaring:\n - CV",null,"Sporteknik 1\n\nSporteknik 2\n\nFKI/SKI Spor_sikring (ved Elektrificeret strækninger)",null,"Har gennemført en lignende opgave tidligere (sidemandsoplæring)\n\nNormkendskab (BN2-15)","Fagarbejdslederen","At arbejdet udføres i henhold til gældende normer og regler\n\nDet tekniske ansvar for arbejdet på arbejdsstedet\n\nSelvstændigt bedømme om jernbaneanlægget opfylder kravene i gældende normer og regler og kan idriftsættes efter indgreb"]
[null,"Spor","Befæstelse","Efterspænding af spor",null,"Kursus:\n- Certificering\n\nOpdatering / Erfaring:\n - CV",null,"Sporteknik 1\n\nSporteknik 2\n\nFKI/SKI Spor_sikring (ved Elektrificeret strækninger)",null,"Har gennemført en lignende opgave tidligere (sidemandsoplæring)\n\nNormkendskab (Langskinneregler)","Fagarbejdslederen","At arbejdet udføres i henhold til gældende normer og regler\n\nDet tekniske ansvar for arbejdet på arbejdsstedet\n\nSelvstændigt bedømme om jernbaneanlægget opfylder kravene i gældende normer og regler og kan idriftsættes efter indgreb"]
[null,"Spor","Befæstelse","Efterspænding af spor og sporskifter",null,"Kursus:\n- Certificering\n\nOpdatering / Erfaring:\n - CV",null,"Sporteknik 1\n\nSporteknik 2\n\nFKI/SKI Spor_sikring (ved Elektrificeret strækninger)",null,"Har gennemført en lignende opgave tidligere (sidemandsoplæring)\n\nNormkendskab (Langskinneregler og BN2-15)","Fagarbejdslederen","At arbejdet udføres i henhold til gældende normer og regler\n\nDet tekniske ansvar for arbejdet på arbejdsstedet\n\nSelvstændigt bedømme om jernbaneanlægget opfylder kravene i gældende normer og regler og kan idriftsættes efter indgreb"]
[null,"Spor","Isolerklæbestød","Justering og slibning af stød",null,"Kursus:\n- Certificering\n\nOpdatering / Erfaring:\n - CV",null,"Sporteknik 1\n\nSporteknik 2\n\nFKI/SKI Spor_sikring (ved Elektrificeret strækninger)",null,"Har gennemført en lignende opgave tidligere (sidemandsoplæring)\n\nNormkendskab (BN1-38 og sporregler af 1987)","Fagarbejdslederen","At arbejdet udføres i henhold til gældende normer og regler\n\nDet tekniske ansvar for arbejdet på arbejdsstedet\n\nSelvstændigt bedømme om jernbaneanlægget opfylder kravene i gældende normer og regler og kan idriftsættes efter indgreb"]
[null,"Spor","Spor","Maskinel udbedring af sporbeliggenhedsfejl",null,"Kursus:\n- Certificering\n\nOpdatering / Erfaring:\n - CV",null,"Sporteknik 1\n\nSporteknik 2\n\nFKI/SKI Spor_sikring (ved Elektrificeret strækninger)",null,"Har gennemført en lignende opgave tidligere (sidemandsoplæring)\n\nNormkendskab (BN1-6, BN1-38, BN1-49)","Fagarbejdslederen","At arbejdet udføres i henhold til gældende normer og regler\n\nDet tekniske ansvar for arbejdet på arbejdsstedet\n\nSelvstændigt bedømme om jernbaneanlægget opfylder kravene i gældende normer og regler og kan idriftsættes efter indgreb"]
[null,"Spor","Skinne","Måling af skinneslid",null,"Kursus:\n- Certificering\n\nOpdatering / Erfaring:\n - CV",null,"Sporteknik 1\n\nSporteknik 2\n\nFKI/SKI Spor_sikring (ved Elektrificeret strækninger)",null,"Normkendskab (BN3-200 og BN1-107)","Fagarbejdslederen","At arbejdet udføres i henhold til gældende normer og regler\n\nDet tekniske ansvar for arbejdet på arbejdsstedet\n\nSelvstændigt bedømme om jernbaneanlægget opfylder kravene i gældende normer og regler og kan idriftsættes efter indgreb"]
[null,"Spor","Skinne","Sporvideregluering",null,"Kursus:\n- Certificering\n\nOpdatering / Erfaring:\n - CV",null,"Sporteknik 1\n\nSporteknik 2\n\nFKI/SKI Spor_sikring (ved Elektrificeret strækninger)",null,"Har gennemført en lignende opgave tidligere (sidemandsoplæring)\n\nNormkendskab (BN2-15, BN1-38 og sporregler af 1959)","Fagarbejdslederen","At arbejdet udføres i henhold til gældende normer og regler\n\nDet tekniske ansvar for arbejdet på arbejdsstedet\n\nSelvstændigt bedømme om jernbaneanlægget opfylder kravene i gældende normer og regler og kan idriftsættes efter indgreb"]
[null,"Spor","Skinne","Udbedring af skinnebrud",null,"Kursus:\n- Certificering\n\nOpdatering / Erfaring:\n - CV",null,"Sporteknik 1\n\nSporteknik 2\n\nFKI/SKI Spor_sikring (ved Elektrificeret strækninger)",null,"Har gennemført en lignende opgave tidligere (sidemandsoplæring)\n\nNormkendskab (BN1-107)","Fagarbejdslederen","At arbejdet udføres i henhold til gældende normer og regler\n\nDet tekniske ansvar for arbejdet på arbejdsstedet\n\nSelvstændigt bedømme om jernbaneanlægget opfylder kravene i gældende normer og regler og kan idriftsættes efter indgreb"]
[null,"Spor","Skinne","Udbedring af solkurver",null,"Kursus:\n- Certificering\n\nOpdatering / Erfaring:\n - CV",null,"Sporteknik 1\n\nSporteknik 2\n\nFKI/SKI Spor_sikring (ved Elektrificeret strækninger)",null,"Har gennemført en lignende opgave tidligere (sidemandsoplæring)\n\nNormkendskab (BN1-66, BN1-6 og Sporregler af 1987)","Fagarbejdslederen","At arbejdet udføres i henhold til gældende normer og regler\n\nDet tekniske ansvar for arbejdet på arbejdsstedet\n\nSelvstændigt bedømme om jernbaneanlægget opfylder kravene i gældende normer og regler og kan idriftsættes efter indgreb"]
[null,"Spor","Tungeparti","Udveksling af jerndele i sporskifter (Inkluderer ikke svejseopgaver)",null,"Kursus:\n- Certificering\n\nOpdatering / Erfaring:\n - CV",null,"Sporteknik 1\n\nSporteknik 2\n\nFKI/SKI Spor_sikring (ved Elektrificeret strækninger)",null,"Har gennemført en lignende opgave tidligere (sidemandsoplæring)\n\nNormkendskab (BN1-14 og BN2-15)","Fagarbejdslederen","At arbejdet udføres i henhold til gældende normer og regler\n\nDet tekniske ansvar for arbejdet på arbejdsstedet\n\nSelvstændigt bedømme om jernbaneanlægget opfylder kravene i gældende normer og regler og kan idriftsættes efter indgreb"]
[null,"Spor","Skinne","Udveksling af Skinner (inkluderer ikke svejseopgaver)",null,"Kursus:\n- Certificering\n\nOpdatering / Erfaring:\n - CV",null,"Sporteknik 1\n\nSporteknik 2\n\nFKI/SKI Spor_sikring (ved Elektrificeret strækninger)",null,"Har gennemført en lignende opgave tidligere (sidemandsoplæring)\n\nNormkendskab (BN1-107 og BN2-201)","Fagarbejdslederen","At arbejdet udføres i henhold til gældende normer og regler\n\nDet tekniske ansvar for arbejdet på arbejdsstedet\n\nSelvstændigt bedømme om jernbaneanlægget opfylder kravene i gældende normer og regler og kan idriftsættes efter indgreb"]
[null,"Spor","Sveller","Udveksling af Sveller",null,"Kursus:\n- Certificering\n\nOpdatering / Erfaring:\n - CV",null,"Sporteknik 1\n\nSporteknik 2\n\nFKI/SKI Spor_sikring (ved Elektrificeret strækninger)",null,"Har gennemført en lignende opgave tidligere (sidemandsoplæring)\n\nNormkendskab (BN1-38 og Sporregler 1959 og 1987 )","Fagarbejdslederen","At arbejdet udføres i henhold til gældende normer og regler\n\nDet tekniske ansvar for arbejdet på arbejdsstedet\n\nSelvstændigt bedømme om jernbaneanlægget opfylder kravene i gældende normer og regler og kan idriftsættes efter indgreb"]
[null,"Spor","Sporskifte","Vedligeholdelse af rhombelåse",null,"Kursus:\n- Certificering\n\nOpdatering / Erfaring:\n - CV",null,"Sporteknik 1\n\nSporteknik 2\n\nFKI/SKI Spor_sikring (ved Elektrificeret strækninger)",null,"Har gennemført en lignende opgave tidligere (sidemandsoplæring)\n\nNormkendskab (VN100-110R7010, BN1-14 og EN100-03R3494)","Fagarbejdslederen","At arbejdet udføres i henhold til gældende normer og regler\n\nDet tekniske ansvar for arbejdet på arbejdsstedet\n\nSelvstændigt bedømme om jernbaneanlægget opfylder kravene i gældende normer og regler og kan idriftsættes efter indgreb"]
[null,"Spor","Spor","Arbejde med uroligt spor",null,"Kursus:\n- Certificering\n\nOpdatering / Erfaring:\n - CV",null,"Sporteknik 1\n\nSporteknik 2\n\nFKI/SKI Spor_sikring (ved Elektrificeret strækning)",null,"Har gennemført en lignende opgave tidligere (sidemandsoplæring)\n\nNormkendskab (BN1-6, BN1-177 og BN1-6)","Fagarbejdslederen","At arbejdet udføres i henhold til gældende normer og regler\n\nDet tekniske ansvar for arbejdet på arbejdsstedet\n\nSelvstændigt bedømme om jernbaneanlægget opfylder kravene i gældende normer og regler og kan idriftsættes efter indgreb"]
[null,"Spor","Spor","Manuel justering af spor",null,"Kursus:\n- Certificering\n\nOpdatering / Erfaring:\n - CV",null,"Sporteknik 1\n\nSporteknik 2",null,"Normkendskab (BN1-38)","Fagarbejdslederen","At arbejdet udføres i henhold til gældende normer og regler\n\nDet tekniske ansvar for arbejdet på arbejdsstedet\n\nSelvstændigt bedømme om jernbaneanlægget opfylder kravene i gældende normer og regler og kan idriftsættes efter indgreb"]
[null,"Spor","Spor","Overvågning af sporets beliggenhed ved udførsel af arbejder omkring spor i drift, der kan påvirke sporets beliggenhed",null,"Kursus:\n- Certificering\n\nOpdatering / Erfaring:\n - CV",null,"Sporteknik 1\n\nSporteknik 2",null,"Normkendskab (BN1-38)","Fagarbejdslederen","At arbejdet udføres i henhold til gældende normer og regler\n\nDet tekniske ansvar for arbejdet på arbejdsstedet\n\nSelvstændigt bedømme om jernbaneanlægget opfylder kravene i gældende normer og regler og kan idriftsættes efter indgreb"]
[null,"Spor","Sporstopper","Arbejde / eftersyn med sporstopper",null,"Kursus:\n- Certificering\n - Kursusbevis\n\nOpdatering / Erfaring:\n - CV",null,"Sporteknik 1\n\nFKI/SKI Spor_sikring (ved Elektrificeret strækninger)",null,"Har gennemført en lignende opgave tidkigere (sidemandsoplæring)\nNormkendskab (BN1-95)","Fagarbejdslederen","At arbejdet udføres i henhold til gældende normer og regler\n\nDet tekniske ansvar for arbejdet på arbejdsstedet\n\nSelvstændigt bedømme om jernbaneanlægget opfylder kravene i gældende normer og regler og kan idriftsættes efter indgreb"]
[null,"Spor","Isolerklæbestød","Eftersyn af isoleret stød",null,"Kursus:\n- Certificering\n\nOpdatering / Erfaring:\n - CV",null,"Sporteknik 1\n\nFKI/SKI Spor_sikring (ved Elektrificerede strækninger)",null,"Har gennemført en lignende opgave tidligere (sidemandsoplæring)\nNormkendskab (Sporregler 1987)","Fagarbejdslederen","At arbejdet udføres i henhold til gældende normer og regler\n\nDet tekniske ansvar for arbejdet på arbejdsstedet\n\nSelvstændigt bedømme om jernbaneanlægget opfylder kravene i gældende normer og regler og kan idriftsættes efter indgreb"]
[null,"Spor","Sporskifte","Kontrolmåling af sporskifter",null,"Kursus:\n- Certificering;                            \n\nOpdatering / Erfaring:\n - CV",null,"Sporteknik 1\n\nFKI/SKI Spor_sikring (ved Elektrificerede strækninger)",null,"Har gennemført en lignende opgave tidligere (sidemandsoplæring)\nNormkendskab (BN1-14 og BN2-15)","Fagarbejdslederen","At arbejdet udføres i henhold til gældende normer og regler\n\nDet tekniske ansvar for arbejdet på arbejdsstedet\n\nSelvstændigt bedømme om jernbaneanlægget opfylder kravene i gældende normer og regler og kan idriftsættes efter indgreb"]
[null,"Spor","Skinne","Linjesyn",null,"Kursus:\n- Certificering\n\nOpdatering / Erfaring:\n - CV",null,"Sporteknik 1\n\nFKI/SKI Spor_sikring (ved Elektrificeret strækninger)",null,"Har gennemført en lignende opgave tidligere (sidemandsoplæring); Normkendskab (BN1-177)","Fagarbejdslederen","At arbejdet udføres i henhold til gældende normer og regler\n\nDet tekniske ansvar for arbejdet på arbejdsstedet\n\nSelvstændigt bedømme om jernbaneanlægget opfylder kravene i gældende normer og regler og kan idriftsættes efter indgreb"]
[null,"Spor","Skinne","Varmesyn",null,"Kursus:\n- Certificering\n - Kursusbevis\n\nOpdatering / Erfaring:\n - CV",null,"Sporteknik 1\n\nFKI/SKI Spor_sikring (ved Elektrificeret strækninger)",null,"Har gennemført en lignende opgave tidligere (sidemandsoplæring); Normkendskab (BN1-66)","Fagarbejdslederen","At arbejdet udføres i henhold til gældende normer og regler\n\nDet tekniske ansvar for arbejdet på arbejdsstedet\n\nSelvstændigt bedømme om jernbaneanlægget opfylder kravene i gældende normer og regler og kan idriftsættes efter indgreb"]
[null,"Spor","Belægning","Eftersyn af overkørsel og overgang",null,"Kursus:\n- Certificering\n - Kursusbevis\n\nOpdatering / Erfaring:\n - CV",null,"Sporteknik 1\n\nFKI/SKI Spor_sikring (ved Elektrificeret strejkninger)",null,"Har gennemført en lignende opgave tidligere (sidemandsoplæring)","Fagarbejdslederen","At arbejdet udføres i henhold til gældende normer og regler\n\nDet tekniske ansvar for arbejdet på arbejdsstedet\n\nSelvstændigt bedømme om jernbaneanlægget opfylder kravene i gældende normer og regler og kan idriftsættes efter indgreb"]
[null,"Spor","Skinneudtræk","Eftersyn af skinneudtræk på broer",null,"Kursus:\n- Certificering\n- Kursusbevis\n\nOpdatering / Erfaring:\n - CV",null,"Sporteknik 1\n\nFKI/SKI Spor_sikring (ved Elektrificeret strejkninger)",null,"Har gennemført en lignende opgave tidligere (sidemandsoplæring)","Fagarbejdslederen","At arbejdet udføres i henhold til gældende normer og regler\n\nDet tekniske ansvar for arbejdet på arbejdsstedet\n\nSelvstændigt bedømme om jernbaneanlægget opfylder kravene i gældende normer og regler og kan idriftsættes efter indgreb"]
[null,"Spor","Sporskifte","Eftersyn af Sporskifter",null,"Kursus:\n- Certificering\n\nOpdatering / Erfaring:\n - CV                                                                      Vedligehold af kompetence: En praktisk gennemgang med den fagansvarlige hvert andet år.",null,"Sporteknik 1\n\nFKI/SKI Spor_sikring (ved Elektrificerede strækninger)",null,"Har gennemført en lignende opgave tidligere (sidemandsoplæring)","Fagarbejdslederen","At arbejdet udføres i henhold til gældende normer og regler\n\nDet tekniske ansvar for arbejdet på arbejdsstedet\n\nSelvstændigt bedømme om jernbaneanlægget opfylder kravene i gældende normer og regler og kan idriftsættes efter indgreb"]
[null,"Spor","Spor","Eddy Current måling",null,"Kursus:\n- Certificering\n\nOpdatering / Erfaring:\n - CV",null,"dC Fjernstyring\n\nFKI_SKI Spor_sikring (ved elektrificerede strækning)",null,"Normkendskab (BN1-66)","Fagarbejdslederen","At arbejdet udføres i henhold til gældende normer og regler\n\nDet tekniske ansvar for arbejdet på arbejdsstedet\n\nSelvstændigt bedømme om jernbaneanlægget opfylder kravene i gældende normer og regler og kan idriftsættes efter indgreb"]
[null,"Spor","Spor","Ultralydsscanning med håndtrolje og håndholdt ultralydsscanner",null,"Kursus:\n- Certificering\n\nOpdatering / Erfaring:\n - CV",null,"Sportek1\n\nSportek2\n\nForce ultralydskursus",null,"Normkendskab (BN1-66)","Fagarbejdslederen","At arbejdet udføres i henhold til gældende normer og regler\n\nDet tekniske ansvar for arbejdet på arbejdsstedet\n\nSelvstændigt bedømme om jernbaneanlægget opfylder kravene i gældende normer og regler og kan idriftsættes efter indgreb"]
[null,"Sikring","Sporskiftedrev","1994_spsk",null,null,"Sikringstekniker","Sporskifttype 1994\n\nFKI_SKI Spor_sikring (ved elektrificerede strækning)",null,null,"Fagarbejdslederen","At arbejdet udføres i henhold til gældende normer og regler\n\nDet tekniske ansvar for arbejdet på arbejdsstedet\n\nSelvstændigt bedømme om jernbaneanlægget opfylder kravene i gældende normer og regler og kan idriftsættes efter indgreb"]
[null,"Sikring","Sporskiftedrev","1926_spsk",null,null,"Sikringstekniker","Sporskiftedrev 1926 (udbydes ikke)\n\nFKI_SKI Spor_sikring (ved elektrificerede strækning)",null,null,"Fagarbejdslederen","At arbejdet udføres i henhold til gældende normer og regler\n\nDet tekniske ansvar for arbejdet på arbejdsstedet\n\nSelvstændigt bedømme om jernbaneanlægget opfylder kravene i gældende normer og regler og kan idriftsættes efter indgreb"]
[null,"Sikring","Kabelanlæg","Kabelanlæg",null,null,"Sikringstekniker","Splidsning\n\nFKI_SKI Spor_sikring (ved elektrificerede strækning)",null,null,"Fagarbejdslederen","At arbejdet udføres i henhold til gældende normer og regler\n\nDet tekniske ansvar for arbejdet på arbejdsstedet\n\nSelvstændigt bedømme om jernbaneanlægget opfylder kravene i gældende normer og regler og kan idriftsættes efter indgreb"]
[null,"Broer & bygninger","Vognvægte","Periodisk eftersyn - Elektrisk (vognvægt)",null,null,"Faglært elektriker","Specialkurser i eftersyn og vedligehold af vognvægte",null,"Erfaring fra arbejde med lignende anlæg"]
[null,"Broer & bygninger","Vognvægte","Periodisk eftersyn - Mekanisk (vognvægt)",null,null,"Faglært smed","Specialkurser i eftersyn og vedligehold af vognvægte",null,"Erfaring fra arbejde med lignende anlæg"]
[null,"Sikring","Fjernstyringscentral","RCTC",null,null,"Sikringstekniker","Relæfjernstyring\n\nFKI_SKI Spor_sikring (ved elektrificerede strækning)",null,null,"Fagarbejdslederen","At arbejdet udføres i henhold til gældende normer og regler\n\nDet tekniske ansvar for arbejdet på arbejdsstedet\n\nSelvstændigt bedømme om jernbaneanlægget opfylder kravene i gældende normer og regler og kan idriftsættes efter indgreb"]
[null,"Forst","Hegn - Tekniske hegn",null,"Udskiftning, reparation, opmåling, mindre nyanlæg",null,null,"Relevante montørkurser for leverandørens produkter",null,"Erfaring med opsætning og vedligehold af leverandøren produkter","Fagarbejdslederen","At arbejdet udføres i henhold til gældende normer og regler\n\nDet tekniske ansvar for arbejdet på arbejdsstedet\n\nSelvstændigt bedømme om jernbaneanlægget opfylder kravene i gældende normer og regler og kan idriftsættes efter indgreb"]
[null,"Broer & bygninger","Klap_Bro","Periodisk eftersyn - Elektrisk (klap)",null,null,"Faglært elektriker / autoriseret installatør","Nødstrømsanlæg: Specialkursus",null,"Erfaring med lignende og helst aktuelt anlæg. Er det sidste ikke tilfældet skal BDK brofoged overvåge arbejdet."]
[null,"Forst","Afvanding - Åben og lukket afvandingssystem, dræn, rør, brønde ",null,"Vedligehold, reprofilering af grøfter, kotemåling, datasset-håndtering, mindre anlægsopgaver","Autoriseret kloakmester \n\n","Kloakmester","kurser i datahåndtering GPS koter, kotemåling.",null,"Erfaring med vedligehold og mindre anlægsopgaver.","Fagarbejdslederen","At arbejdet udføres i henhold til gældende normer og regler\n\nDet tekniske ansvar for arbejdet på arbejdsstedet\n\nSelvstændigt bedømme om jernbaneanlægget opfylder kravene i gældende normer og regler og kan idriftsættes efter indgreb"]
[null,"Forst","Skråninger - Bevoksninger på skråninger",null,"Skovning, kulturpleje, bevoksningspleje, nyanlæg. Mindre jordarbejder",null,"Fagarbejdsleder: Eksamineret skov og landsskabsingeniør\n\nUdførende: EUD skovbruger med tilvalg af topkapning og fældning af vanskelige træer","Grønne fagkurser (for opgaven relevant)\n\nFKI/SKI Spor_sikring (ved Elektrificerede strækninger)",null,"Erfaring med pleje, vedligehold og mindre anlægsopgaver"]
[null,"Forst","Fremføringsprofil - Fritrumsprofil. Bevoksningsfri zone omkring jernbanenettet",null,"Rydning, fældning af bevoksning",null,"Fagarbejdsleder: Eksamineret skov og landsskabsingeniør\n\nUdførende: EUD skovbruger med tilvalg af topkapning og fældning af vanskelige træer\n\nUdførende: Maskinfører","Grønne fagkurser (for opgaven relevant)\n\nFKI/SKI Spor_sikring (ved Elektrificerede strækninger)",null,"Erfaring med pleje, vedligehold og mindre anlægsopgaver"]
[null,"Forst","Teknikprofil - Bevoksningsfri zone omkring banens tekniske anlæg",null,"Rydning, fældning af bevoksning",null,"Fagarbejdsleder: Eksamineret skov og landsskabsingeniør\n\nUdførende: EUD skovbruger med tilvalg af topkapning og fældning af vanskelige træer","Grønne fagkurser (for opgaven relevant)\n\nFKI/SKI Spor_sikring (ved Elektrificerede strækninger)",null,"Erfaring med pleje, vedligehold og mindre anlægsopgaver"]
[null,"Forst","Usikrede overkørsler - Bevoksningsfri zone omkring usikrede overkørselsanlæg",null,"Rydning, fældning af bevoksning i oversigtsarealer. Mindre vedligehold af anlæg",null,"Fagarbejdsleder: Eksamineret skov og landsskabsingeniør\n\nUdførende: EUD skovbruger med tilvalg af topkapning og fældning af vanskelige træer","Grønne fagkurser (for opgaven relevant)\n\nFKI/SKI Spor_sikring (ved Elektrificerede strækninger)",null,"Erfaring med pleje, vedligehold og mindre anlægsopgaver"]
[null,"Forst","Bevoksede ekstensiv - Bevoksninger, skove, overdrev",null,"Skovning, kulturpleje, bevoksningspleje, nyanlæg",null,"Fagarbejdsleder: Eksamineret skov og landsskabsingeniør\n\nUdførende: EUD skovbruger med tilvalg af topkapning og fældning af vanskelige træer","Grønne fagkurser (for opgaven relevant)",null,"Erfaring med pleje, vedligehold og mindre anlægsopgaver"]
[null,"Sikring","Linieblokanlæg","FELB_linie",null,null,"Sikringstekniker","Grundkursus FELB\n\nFELB Efteruddannelse\n\nFKI_SKI Spor_sikring (ved elektrificerede strækning)",null,null,"Fagarbejdslederen","At arbejdet udføres i henhold til gældende normer og regler\n\nDet tekniske ansvar for arbejdet på arbejdsstedet\n\nSelvstændigt bedømme om jernbaneanlægget opfylder kravene i gældende normer og regler og kan idriftsættes efter indgreb"]
[null,"Sikring","Togdetektering","FTGS",null,null,"Sikringstekniker","FTSG sporisolation\n\nFKI_SKI Spor_sikring (ved elektrificerede strækning)",null,null,"Fagarbejdslederen","At arbejdet udføres i henhold til gældende normer og regler\n\nDet tekniske ansvar for arbejdet på arbejdsstedet\n\nSelvstændigt bedømme om jernbaneanlægget opfylder kravene i gældende normer og regler og kan idriftsættes efter indgreb"]
[null,"Sikring","FST","FST",null,null,"Sikringstekniker","FST Grundkursus\n\nFST Fejlretning\n\nFKI_SKI Spor_sikring (ved elektrificerede strækning)",null,null,"Fagarbejdslederen","At arbejdet udføres i henhold til gældende normer og regler\n\nDet tekniske ansvar for arbejdet på arbejdsstedet\n\nSelvstændigt bedømme om jernbaneanlægget opfylder kravene i gældende normer og regler og kan idriftsættes efter indgreb"]
[null,"Sikring","Stationssikringsanlæg_varslingsanlæg","1954_varsl",null,null,"Sikringstekniker","FKI_SKI Spor_sikring (ved elektrificerede strækning)",null,null,"Fagarbejdslederen","At arbejdet udføres i henhold til gældende normer og regler\n\nDet tekniske ansvar for arbejdet på arbejdsstedet\n\nSelvstændigt bedømme om jernbaneanlægget opfylder kravene i gældende normer og regler og kan idriftsættes efter indgreb"]
[null,"Sikring","Linieblokanlæg","1954b_linie",null,null,"Sikringstekniker","FKI_SKI Spor_sikring (ved elektrificerede strækning)",null,null,"Fagarbejdslederen","At arbejdet udføres i henhold til gældende normer og regler\n\nDet tekniske ansvar for arbejdet på arbejdsstedet\n\nSelvstændigt bedømme om jernbaneanlægget opfylder kravene i gældende normer og regler og kan idriftsættes efter indgreb"]
[null,"Sikring","Sporskiftedrev","1957_spsk",null,null,"Sikringstekniker","FKI_SKI Spor_sikring (ved elektrificerede strækning)",null,null,"Fagarbejdslederen","At arbejdet udføres i henhold til gældende normer og regler\n\nDet tekniske ansvar for arbejdet på arbejdsstedet\n\nSelvstændigt bedømme om jernbaneanlægget opfylder kravene i gældende normer og regler og kan idriftsættes efter indgreb"]
[null,"Sikring","Sporskiftedrev","1979_spsk",null,null,"Sikringstekniker","FKI_SKI Spor_sikring (ved elektrificerede strækning)",null,null,"Fagarbejdslederen","At arbejdet udføres i henhold til gældende normer og regler\n\nDet tekniske ansvar for arbejdet på arbejdsstedet\n\nSelvstændigt bedømme om jernbaneanlægget opfylder kravene i gældende normer og regler og kan idriftsættes efter indgreb"]
[null,"Sikring","Sporskiftedrev","1987_spsk",null,null,"Sikringstekniker","FKI_SKI Spor_sikring (ved elektrificerede strækning)",null,null,"Fagarbejdslederen","At arbejdet udføres i henhold til gældende normer og regler\n\nDet tekniske ansvar for arbejdet på arbejdsstedet\n\nSelvstændigt bedømme om jernbaneanlægget opfylder kravene i gældende normer og regler og kan idriftsættes efter indgreb"]
[null,"Sikring","Sporskiftedrev","2005_spsk",null,null,"Sikringstekniker","FKI_SKI Spor_sikring (ved elektrificerede strækning)",null,null,"Fagarbejdslederen","At arbejdet udføres i henhold til gældende normer og regler\n\nDet tekniske ansvar for arbejdet på arbejdsstedet\n\nSelvstændigt bedømme om jernbaneanlægget opfylder kravene i gældende normer og regler og kan idriftsættes efter indgreb"]
[null,"Sikring","Centraldel","Centraldel",null,null,"Sikringstekniker","FKI_SKI Spor_sikring (ved elektrificerede strækning)",null,null,"Fagarbejdslederen","At arbejdet udføres i henhold til gældende normer og regler\n\nDet tekniske ansvar for arbejdet på arbejdsstedet\n\nSelvstændigt bedømme om jernbaneanlægget opfylder kravene i gældende normer og regler og kan idriftsættes efter indgreb"]
[null,"Sikring","Togdetektering","DC sporisolationer",null,null,"Sikringstekniker","FKI_SKI Spor_sikring (ved elektrificerede strækning)",null,null,"Fagarbejdslederen","At arbejdet udføres i henhold til gældende normer og regler\n\nDet tekniske ansvar for arbejdet på arbejdsstedet\n\nSelvstændigt bedømme om jernbaneanlægget opfylder kravene i gældende normer og regler og kan idriftsættes efter indgreb"]
[null,"Sikring","Fast_ mærke","Fast mærke",null,null,"Sikringstekniker","FKI_SKI Spor_sikring (ved elektrificerede strækning)",null,null,"Fagarbejdslederen","At arbejdet udføres i henhold til gældende normer og regler\n\nDet tekniske ansvar for arbejdet på arbejdsstedet\n\nSelvstændigt bedømme om jernbaneanlægget opfylder kravene i gældende normer og regler og kan idriftsættes efter indgreb"]
[null,"Sikring","Hytter_skabe","Hytter skabe",null,null,"Sikringstekniker","FKI_SKI Spor_sikring (ved elektrificerede strækning)",null,null,"Fagarbejdslederen","At arbejdet udføres i henhold til gældende normer og regler\n\nDet tekniske ansvar for arbejdet på arbejdsstedet\n\nSelvstændigt bedømme om jernbaneanlægget opfylder kravene i gældende normer og regler og kan idriftsættes efter indgreb"]
[null,"Sikring","STL_Overvågning","STL overvågning",null,null,"Sikringstekniker","FKI_SKI Spor_sikring (ved elektrificerede strækning)",null,null,"Fagarbejdslederen","At arbejdet udføres i henhold til gældende normer og regler\n\nDet tekniske ansvar for arbejdet på arbejdsstedet\n\nSelvstændigt bedømme om jernbaneanlægget opfylder kravene i gældende normer og regler og kan idriftsættes efter indgreb"]
[null,"Forst","Bekæmpelse af planten Kæmpe Bjørneklo iht. Lovkrav",null,"Sporsprøjtning af sporets overbygning\n\nKemisk behandling af uønsket plantevækst i sporets overbygning",null,"Anlægsgartner med sprøjtecertifikat \n\nMaskinefører\n\n\n","FKI/SKI Spor_sikring (ved Elektrificerede strækninger)",null,null,"Fagarbejdslederen","At arbejdet udføres i henhold til gældende normer og regler\n\nDet tekniske ansvar for arbejdet på arbejdsstedet\n\nSelvstændigt bedømme om jernbaneanlægget opfylder kravene i gældende normer og regler og kan idriftsættes efter indgreb"]
[null,"Sikring","Jordfejlmelder","Jordfejlmelder",null,null,"Sikringstekniker","Fejl og Jordmelder\n\nFKI_SKI Spor_sikring (ved elektrificerede strækning)",null,null,"Fagarbejdslederen","At arbejdet udføres i henhold til gældende normer og regler\n\nDet tekniske ansvar for arbejdet på arbejdsstedet\n\nSelvstændigt bedømme om jernbaneanlægget opfylder kravene i gældende normer og regler og kan idriftsættes efter indgreb"]
[null,"Stærkstrøm","Elevator","Elevator",null,"Særlige krav fra Arbejdstilsynet\n\nMaskindirektivet \n\nBek 629 Om anvendelse og opstilling af elevatorer m.v ","El faglig uddannelse","L-AUS; Pas på Banen; Elevator 1 og  2 (TEC)","Kendskab til PLC styring samt frekvensomformer samt dokumentation for fejlfinding på denne typeanlæg","2 års erfaring; H1 og H2, hvis der mindre end 10 års erfaring","Fagarbejdslederen","At arbejdet udføres i henhold til gældende normer og regler\n\nDet tekniske ansvar for arbejdet på arbejdsstedet\n\nSelvstændigt bedømme om jernbaneanlægget opfylder kravene i gældende normer og regler og kan idriftsættes efter indgreb"]
[null,"Stærkstrøm","Rulletrappe","Rulletrappe",null,"Særlige krav fra Arbejdstilsynet\n\nMaskindirektivet \n\nBek 629 Om anvendelse og opstilling af elevatorer m.v ","El faglig uddannelse","L-AUS; Pas på Banen; Elevator 1 og  2 (TEC)","Kendskab til PLC styring samt frekvensomformer samt dokumentation for fejlfinding på denne typeanlæg","2 års erfaring; H1 og H2, hvis der mindre end 10 års erfaring","Fagarbejdslederen","At arbejdet udføres i henhold til gældende normer og regler\n\nDet tekniske ansvar for arbejdet på arbejdsstedet\n\nSelvstændigt bedømme om jernbaneanlægget opfylder kravene i gældende normer og regler og kan idriftsættes efter indgreb"]
[null,"Sikring","Fjernstyringsunderst","DCTC",null,null,"Sikringstekniker","DC Fjernstyring\n\nFKI_SKI Spor_sikring (ved elektrificerede strækning)","Samt dokumentation for fejlfinding på denne salgs anlæg.  ","H1 og H2 hvis der ikke er ti års erfaring","Fagarbejdslederen","At arbejdet udføres i henhold til gældende normer og regler\n\nDet tekniske ansvar for arbejdet på arbejdsstedet\n\nSelvstændigt bedømme om jernbaneanlægget opfylder kravene i gældende normer og regler og kan idriftsættes efter indgreb"]
[null,"Sikring","Overkørselsanlæg","Bues 2000",null,null,"Sikringstekniker","Bues 2000\n\nAdvarselsanlæg type PLC\n\nFKI_SKI Spor_Sikring (ved elektrificeret strækning)",null,null,"Fagarbejdslederen","At arbejdet udføres i henhold til gældende normer og regler\n\nDet tekniske ansvar for arbejdet på arbejdsstedet\n\nSelvstændigt bedømme om jernbaneanlægget opfylder kravene i gældende normer og regler og kan idriftsættes efter indgreb"]
[null,"Forst","Befæstede - Interne stier, perroner, veje, pladser",null,"Renhold, vedligehold og mindre anlægsopgaver",null,"Anlægsgartner med sprøjtecertifikat","Brolægning - foreskrifter og regler",null,"Erfaring med vedligehold og mindre anlægsopgaver.","Fagarbejdslederen","At arbejdet udføres i henhold til gældende normer og regler\n\nDet tekniske ansvar for arbejdet på arbejdsstedet\n\nSelvstændigt bedømme om jernbaneanlægget opfylder kravene i gældende normer og regler og kan idriftsættes efter indgreb"]
[null,"Sikring","Linieblokanlæg","1991_linie",null,null,"Sikringstekniker","Automatisk Liniblok 1991\n\nFKI_SKI Spor_sikring (ved elektrificerede strækning)",null,null,"Fagarbejdslederen","At arbejdet udføres i henhold til gældende normer og regler\n\nDet tekniske ansvar for arbejdet på arbejdsstedet\n\nSelvstændigt bedømme om jernbaneanlægget opfylder kravene i gældende normer og regler og kan idriftsættes efter indgreb"]
[null,"Sikring","Linieblokanlæg","1982_linie",null,null,"Sikringstekniker","Automatisk Liniblok 1982\n\nFKI_SKI Spor_sikring (ved elektrificerede strækning)",null,null,"Fagarbejdslederen","At arbejdet udføres i henhold til gældende normer og regler\n\nDet tekniske ansvar for arbejdet på arbejdsstedet\n\nSelvstændigt bedømme om jernbaneanlægget opfylder kravene i gældende normer og regler og kan idriftsættes efter indgreb"]
[null,"Sikring","Linieblokanlæg","1969_linie",null,null,"Sikringstekniker","Automatisk Liniblok 1969\n\nFKI_SKI Spor_sikring (ved elektrificerede strækning)",null,null,"Fagarbejdslederen","At arbejdet udføres i henhold til gældende normer og regler\n\nDet tekniske ansvar for arbejdet på arbejdsstedet\n\nSelvstændigt bedømme om jernbaneanlægget opfylder kravene i gældende normer og regler og kan idriftsættes efter indgreb"]
[null,"Sikring","Linieblokanlæg","1967_linie",null,null,"Sikringstekniker","Automatisk Liniblok 1967\n\nFKI_SKI Spor_sikring (ved elektrificerede strækning)",null,null,"Fagarbejdslederen","At arbejdet udføres i henhold til gældende normer og regler\n\nDet tekniske ansvar for arbejdet på arbejdsstedet\n\nSelvstændigt bedømme om jernbaneanlægget opfylder kravene i gældende normer og regler og kan idriftsættes efter indgreb"]
[null,"Sikring","Linieblokanlæg","1957_linie",null,null,"Sikringstekniker","Automatisk Liniblok 1957\n\nFKI_SKI Spor_sikring (ved elektrificerede strækning)",null,null,"Fagarbejdslederen","At arbejdet udføres i henhold til gældende normer og regler\n\nDet tekniske ansvar for arbejdet på arbejdsstedet\n\nSelvstændigt bedømme om jernbaneanlægget opfylder kravene i gældende normer og regler og kan idriftsættes efter indgreb"]
[null,"Sikring","Linieblokanlæg","1977_linie",null,null,"Sikringstekniker","Automatisk Liniblok 1954B\n\nFKI_SKI Spor_sikring (ved elektrificerede strækning)",null,null,"Fagarbejdslederen","At arbejdet udføres i henhold til gældende normer og regler\n\nDet tekniske ansvar for arbejdet på arbejdsstedet\n\nSelvstændigt bedømme om jernbaneanlægget opfylder kravene i gældende normer og regler og kan idriftsættes efter indgreb"]
[null,"Sikring","Linieblokanlæg","1951_linie",null,null,"Sikringstekniker","Automatisk Liniblok 1951\n\nFKI_SKI Spor_sikring (ved elektrificerede strækning)",null,null,"Fagarbejdslederen","At arbejdet udføres i henhold til gældende normer og regler\n\nDet tekniske ansvar for arbejdet på arbejdsstedet\n\nSelvstændigt bedømme om jernbaneanlægget opfylder kravene i gældende normer og regler og kan idriftsættes efter indgreb"]
[null,"Sikring","ATC_anlæg","ATC-Anlæg",null,null,"Sikringstekniker","ATC grundkursus\n\nFKI_SKI Spor_sikring (ved elektrificerede strækning)",null,null,"Fagarbejdslederen","At arbejdet udføres i henhold til gældende normer og regler\n\nDet tekniske ansvar for arbejdet på arbejdsstedet\n\nSelvstændigt bedømme om jernbaneanlægget opfylder kravene i gældende normer og regler og kan idriftsættes efter indgreb"]
[null,"Kørestrøm","Køreledningsanlæg",null,null,null,"Driftleder:\nElektroingeniør med stærkstrøm som speciale\nAlternativt ingeniør, elinstallatør eller maskinmester der kan dokumentere 1 års praktisk erfaring med elforsyningsanlæg.\n\nArbejdsleder:\nElektrikker eller anden el-faglig baggrund\n\nHoldleder:\nElektrikker eller anden el-faglig baggrund\n\nHoldleder arbejdsjording:\nElektrikker eller anden el-faglig baggrund\n\nKørestrømstekniker:\nElektrikker eller anden el-faglig baggrund\n\nØvrig arbejdshold:\nElektrikker eller anden el-faglig baggrund\n\n","Arbejdsleder:\nKØK, 1, KØK 2, KØK 3, KØK 4 \nFKI/SKI Kørestrøm\n\nHoldleder:\nKØK 1, KØK 2, KØK 3\nFKI/SKI Kørestrøm\n\nHoldleder arbejdsjording:\nFKI/SKI Kørestrøm\n\nKørestrømstekniker:\nKØK 1, KØK 2\nFKI/SKI Kørestrøm\n\nØvrig arbejdshold:\nKØK 1 (tilmeldt), KØK 2 (tilmeldt)\nFKI/SKI Kørestrøm\n",null,null,"Den beskrevede funktion jf. stærkstrømsbekendtgørelsen.\n\nAlle roller skalvære tilstede i forhold til opgaveudføresel ligeledes jf. Stæstrømsbekendtgørelsen","Ansvar følger funktionen jf. stærkstrømsbekendtgørelsen"]
[null,"Kørestrøm","Omformerstation",null,null,null,"Driftleder:\nElektroingeniør med stærkstrøm som speciale\nAlternativt ingeniør, elinstallatør eller maskinmester der kan dokumentere 1 års praktisk erfaring med elforsyningsanlæg.\n\nArbejdsleder:\nElektrikker eller anden el-faglig baggrund\n\nHoldleder:\nElektrikker eller anden el-faglig baggrund\n\nKørestrømstekniker:\nElektrikker eller anden el-faglig baggrund\n\nØvrig arbejdshold:\nElektrikker eller anden el-faglig baggrund\n\n","Arbejdsleder:\nKØK, 1 \nFKI/SKI Kørestrøm\n\nHoldleder:\nKØK 1\nFKI/SKI Kørestrøm\n\nKørestrømstekniker:\nKØK 1\nFKI/SKI Kørestrøm\n\nØvrig arbejdshold:\nKØK 1 (tilmeldt)\nFKI/SKI Kørestrøm\n"]
[null,"Kørestrøm","Fordelingsstation",null,null,null,"Driftleder:\nElektroingeniør med stærkstrøm som speciale\nAlternativt ingeniør, elinstallatør eller maskinmester der kan dokumentere 1 års praktisk erfaring med elforsyningsanlæg.\n\nArbejdsleder:\nElektrikker eller anden el-faglig baggrund\n\nHoldleder:\nElektrikker eller anden el-faglig baggrund\n\nKørestrømstekniker:\nElektrikker eller anden el-faglig baggrund\n\nØvrig arbejdshold:\nElektrikker eller anden el-faglig baggrund\n\n","Arbejdsleder:\nKØK, 1 \nFKI/SKI Kørestrøm\n\nHoldleder:\nKØK 1\nFKI/SKI Kørestrøm\n\nKørestrømstekniker:\nKØK 1\nFKI/SKI Kørestrøm\n\nØvrig arbejdshold:\nKØK 1 (tilmeldt)\nFKI/SKI Kørestrøm\n"]
[null,"Broer & bygninger","Broer_og_støttekonstruktioner","Vedligehold (bro)",null,null,"Entreprenørens byggeleder: Ingeniør med speciale i bærende konstruktioner og / eller broer.\n\nEntreprenørens mandskab.\n- Betonarbejder: Specialarbejder eller struktør\n- Smedearbejder: Faguddannet smed\n- Malerarbejder: Faguddannet bygning-/skibsmaler eller specialarbejder afhæningt af arbejdets karakter.","Alle medarbejdere: VEJ-EU: \"Vejen som arbejdsplads\" såfremt der arbejdes ved eller på offentlig vej.",null,"Entreprenørens byggeleder: Erfaring med arbejder på jernbanebroer.\n\nEntreprenørens mandskab: Specialarbejdere skal have erfaring med de typer arbejde som de udfører."]
[null,"Broer & bygninger","Store_broer","Vedligehold (stor bro)",null,null,"Entreprenørens byggeleder: Ingeniør med speciale i bærende konstruktioner og / eller broer.\n\nEntreprenørens mandskab.\n- Betonarbejder: Specialarbejder eller struktør\n- Smedearbejder: Faguddannet smed\n- Malerarbejder: Faguddannet bygning-/skibsmaler eller specialarbejder afhæningt af arbejdets karakter.","Alle medarbejdere: VEJ-EU: \"Vejen som arbejdsplads\" såfremt der arbejdes ved eller på offentlig vej.",null,"Entreprenørens byggeleder: Erfaring med arbejder på jernbanebroer.\n\nEntreprenørens mandskab: Specialarbejdere skal have erfaring med de typer arbejde som de udfører."]
[null,"Sikring","Akseltæller","Honeywell",null,null,"Sikringstekniker","Akseltæller type Honeywell\n\nFKI_SKI Spor_sikring (ved elektrificerede strækning)",null,null,"Fagarbejdslederen","At arbejdet udføres i henhold til gældende normer og regler\n\nDet tekniske ansvar for arbejdet på arbejdsstedet\n\nSelvstændigt bedømme om jernbaneanlægget opfylder kravene i gældende normer og regler og kan idriftsættes efter indgreb"]
[null,"Sikring","Akseltæller","Alcatel",null,null,"Sikringstekniker","Akseltæller type Alcatel\n\nFKI_SKI Spor_sikring (ved elektrificerede strækning)",null,null,"Fagarbejdslederen","At arbejdet udføres i henhold til gældende normer og regler\n\nDet tekniske ansvar for arbejdet på arbejdsstedet\n\nSelvstændigt bedømme om jernbaneanlægget opfylder kravene i gældende normer og regler og kan idriftsættes efter indgreb"]
[null,"Broer & bygninger","Klap_Bro","Periodisk eftersyn - Sikringsteknisk (klap)",null,"Uddannelsesbevis, kursusbevis","Sikringstekniker","Advarselsanlæg\nOverkørselsanlæg 1/2 og 1/1 bomme\nFejlretning overkørselsanlæg",null,"Erfaring med lignende og helst aktuelt anlæg. Er det sidste ikke tilfældet skal BDK brofoged overvåge arbejdet."]
[null,"Sikring","Overkørselsanlæg","Relæ",null,null,"Sikringstekniker","Advarselsanlæg\n\nOverkørselsanlæg 1/2 og 1/1 bomme\n\nFejlretning overkørselsanlæg (kun krav ved fejlretning)\n\nFKI_SKI Spor_Sikring (ved elektrificeret strækning)",null,null,"Fagarbejdslederen","At arbejdet udføres i henhold til gældende normer og regler\n\nDet tekniske ansvar for arbejdet på arbejdsstedet\n\nSelvstændigt bedømme om jernbaneanlægget opfylder kravene i gældende normer og regler og kan idriftsættes efter indgreb"]
[null,"Sikring","Togdetektering","77 HZ sporisolationer",null,null,"Sikringstekniker","77 Hz sporisolation\n\nFKI_SKI Spor_sikring (ved elektrificerede strækning)",null,null,"Fagarbejdslederen","At arbejdet udføres i henhold til gældende normer og regler\n\nDet tekniske ansvar for arbejdet på arbejdsstedet\n\nSelvstændigt bedømme om jernbaneanlægget opfylder kravene i gældende normer og regler og kan idriftsættes efter indgreb"]
[null,"Sikring","Togdetektering","10-100 KHz. Sporisolation",null,null,"Sikringstekniker","10/100 Hz sporisolation\n\nFKI_SKI Spor_sikring (ved elektrificerede strækning)",null,null,"Fagarbejdslederen","At arbejdet udføres i henhold til gældende normer og regler\n\nDet tekniske ansvar for arbejdet på arbejdsstedet\n\nSelvstændigt bedømme om jernbaneanlægget opfylder kravene i gældende normer og regler og kan idriftsættes efter indgreb"]
[null,"Stærkstrøm","Køle_Ventilationsanlæg_Vedligeholdelsestype_1_2","Anlæg med fyldning fra 50 kg (fyldning > 50 kg) Vedlg. 1/2",null,"Uddannelsesbevis, kursusbevis","El faglig uddannelse","L-AUS; Pas på Banen; FKI/SKI ved elektrificerede strækninger","Certificeret montør jævnfør Arbejdstilsynets bekendtgørelse nr. 100 [2] bilag 7.\n\nVed anlæg med fyldning fra 50 kg (fyldning ≥ 50 kg) og med kølemiddelgruppe 2 kræves B-certifikat (mellemcertifikat).",null,"Fagarbejdslederen","At arbejdet udføres i henhold til gældende normer og regler\n\nDet tekniske ansvar for arbejdet på arbejdsstedet\n\nSelvstændigt bedømme om jernbaneanlægget opfylder kravene i gældende normer og regler og kan idriftsættes efter indgreb"]
[null,"Stærkstrøm","Køle_Ventilationsanlæg_Vedligeholdelsestype_3","Anlæg med fyldning fra 50 kg (fyldning > 50 kg) Vedlg. 3",null,"Uddannelsesbevis, kursusbevis","El faglig uddannelse","L-AUS; Pas på Banen; FKI/SKI ved elektrificerede strækninger",null,"Vedligeholdelse type 3 af køleanlæg skal udføres af en sagkyndig person, der har den nødvendige faglige indsigt i forhold til opgaven.\n \nDen sagkyndige skal endvidere have kendskab til gældende love, bekendtgørelser og forskrifter, som er relevante for arbejdet. \n\nDen sagkyndige persons faglige indsigt i ovenstående kan være opnået ved deltagelse i kurser med det relevante indhold eller ved sidemandsoplæring hos anden sagkyndig. ","Fagarbejdslederen","At arbejdet udføres i henhold til gældende normer og regler\n\nDet tekniske ansvar for arbejdet på arbejdsstedet\n\nSelvstændigt bedømme om jernbaneanlægget opfylder kravene i gældende normer og regler og kan idriftsættes efter indgreb"]
[null,"Stærkstrøm","Køle_Ventilationsanlæg_Vedligeholdelsestype_3","Anlæg med fyldning mindre end 50 kg (fyldning < 50 kg) Vedlg. 3",null,"Uddannelsesbevis, kursusbevis","El faglig uddannelse","L-AUS; Pas på Banen; FKI/SKI ved elektrificerede strækninger",null,"Vedligeholdelse type 3 af køleanlæg skal udføres af en sagkyndig person, der har den nødvendige faglige indsigt i forhold til opgaven.\n \nDen sagkyndige skal endvidere have kendskab til gældende love, bekendtgørelser og forskrifter, som er relevante for arbejdet. \n\nDen sagkyndige persons faglige indsigt i ovenstående kan være opnået ved deltagelse i kurser med det relevante indhold eller ved sidemandsoplæring hos anden sagkyndig. ","Fagarbejdslederen","At arbejdet udføres i henhold til gældende normer og regler\n\nDet tekniske ansvar for arbejdet på arbejdsstedet\n\nSelvstændigt bedømme om jernbaneanlægget opfylder kravene i gældende normer og regler og kan idriftsættes efter indgreb"]
[null,"Stærkstrøm","Køle_Ventilationsanlæg_Vedligeholdelsestype_1_2","Anlæg med fyldning mindre end 50 kg (fyldning < 50 kg) Vedlg.1/2",null,"Uddannelsesbevis, kursusbevis","El faglig uddannelse","L-AUS; Pas på Banen; FKI/SKI ved elektrificerede strækninger","Certificeret montør jævnfør Arbejdstilsynets bekendtgørelse nr. 100 [2] bilag 7.\n\nA-certifikat (grundcertifikat). ",null,"Fagarbejdslederen","At arbejdet udføres i henhold til gældende normer og regler\n\nDet tekniske ansvar for arbejdet på arbejdsstedet\n\nSelvstændigt bedømme om jernbaneanlægget opfylder kravene i gældende normer og regler og kan idriftsættes efter indgreb"]
[null,"Broer & bygninger","Sporets_underbygning","Dæmningsgennemgang",null,null,"Bygge og anlægsteknisk uddannelse\n\n",null,null,"Teoretisk og praktisk indsigt i de arbejdsgange,der er knyttet til opgaven"]
[null,"Broer & bygninger","Sporets_underbygning","Dæmningsinspektion",null,null,"Bygge og anlægsteknisk uddannelse\n\n",null,null,"Teoretisk og praktisk indsigt i de arbejdsgange,der er knyttet til opgaven"]
[null,"Spor","Spor","Efterbehandling af data i forbindelse med krabbemåling",null,"Normkendskab (BN1-38)\n\nViden om hastighedsprofil",null,null,null,"Normkendskab (BN1-38)\n\nViden om hastighedsprofil","Fagarbejdslederen","At arbejdet udføres i henhold til gældende normer og regler\n\nDet tekniske ansvar for arbejdet på arbejdsstedet\n\nSelvstændigt bedømme om jernbaneanlægget opfylder kravene i gældende normer og regler og kan idriftsættes efter indgreb"]
[null,"Stærkstrøm","Generatoranlæg","Eftersyn og vedligeholdelse af bly-syrebatterier til sikrings- og fjernstyringsanlæg samt generatoranlæg",null,"Normkendskab (BN2-94 og Sporregler 1987)","El faglig uddannelse","L-AUS; Pas på Banen; FKI/SKI ved elektrificerede strækninger",null,"Vedligeholdelsen skal udføres af en sagkyndig person, der har den nødvendige faglige kompetence i forhold til opgaven.","Fagarbejdslederen","At arbejdet udføres i henhold til gældende normer og regler\n\nDet tekniske ansvar for arbejdet på arbejdsstedet\n\nSelvstændigt bedømme om jernbaneanlægget opfylder kravene i gældende normer og regler og kan idriftsættes efter indgreb"]
[null,"Stærkstrøm","Generatoranlæg","Generatoranlæg",null,"El autorisation\n \nFunktion:\nMånedligt eftersyn og afprøvning af generatoranlæg skal udføres af en sagkyndig person, der har den nødvendige faglige indsigt i forhold til opgaven. \n\nDen sagkyndige persons faglige indsigt i ovenstående, kan være opnået ved deltagelse i kurser med det relevante indhold eller sidemandsoplæring hos anden sagkyndig.\n","El faglig uddannelse","L-AUS; Pas på Banen; FKI/SKI ved elektrificerede strækninger",null,null,"Fagarbejdslederen","At arbejdet udføres i henhold til gældende normer og regler\n\nDet tekniske ansvar for arbejdet på arbejdsstedet\n\nSelvstændigt bedømme om jernbaneanlægget opfylder kravenei gældende normer og regler og kan idriftsættes efter indgreb"]
[null,"Stærkstrøm","Fremmednetstik til tog, der holder på depotspor","El-installationer",null,"El autorisation; Teknisk meddelelse 37=(TM37); Bek 1082; DS/HD 60364; Kendskab ti BPU-områder ved elektrificerede strækninger","El faglig uddannelse","L-AUS; Pas på Banen; FKI/SKI ved elektrificerede strækninger; Ny type fremmednetstik kræver særlig komponentkendskab Type 9300/9800",null,"2 års erfaring med lignende anlægselement","Fagarbejdslederen","At arbejdet udføres i henhold til gældende normer og regler\n\nDet tekniske ansvar for arbejdet på arbejdsstedet\n\nSelvstændigt bedømme om jernbaneanlægget opfylder kravene i gældende normer og regler og kan idriftsættes efter indgreb"]
[null,"Stærkstrøm","Alm_El-installationer (kontor/bolig) ","Alm El-installationer (kontor/bolig) ",null,"El autorisation","El faglig uddannelse",null,null,"2 års erfaring med lignende anlægselementer","Fagarbejdslederen","At arbejdet udføres i henhold til gældende normer og regler\n\nDet tekniske ansvar for arbejdet på arbejdsstedet\n\nSelvstændigt bedømme om jernbaneanlægget opfylder kravene i gældende normer og regler og kan idriftsættes efter indgreb"]
[null,"Broer & bygninger","Sporets_underbygning","Geoteknisk risikovurdering",null,null,"Bygge og anlægsteknisk uddannelse\n\n",null,null,"Teoretisk og praktisk indsigt i de arbejdsgange,der er knyttet til opgaven"]
[null,"Stærkstrøm","Nød- og panikbelysning","Installation",null,"El autorisation","El faglig uddannelse","L-AUS; Pas på Banen; FKI/SKI ved elektrificerede strækninger",null,"2 års erfaring med lignende anlægselementer","Fagarbejdslederen","At arbejdet udføres i henhold til gældende normer og regler\n\nDet tekniske ansvar for arbejdet på arbejdsstedet\n\nSelvstændigt bedømme om jernbaneanlægget opfylder kravene i gældende normer og regler og kan i driftsættes efter indgreb"]
[null,"Stærkstrøm","Perronbelysning","El-installationer",null,"El autorisation; Teknisk meddelelse 37=(TM37); Bek 1082; DS/HD 60364; DS/HD 60364-7-714 udvendig belysning; Kendskab ti BPU-områder ved elektrificerede strækninger","El faglig uddannelse","L-AUS; Pas på Banen; FKI/SKI ved elektrificerede strækninger","Der vil blive påkrævet jernbanesikkerhedsplan i langt de fleste tilfælde af denne type arbejde i eller nærhed af sporet. \nEfter forholdene kan det evt. klares med en særlig instruktion / vagtpost.\n","2 års erfaring",null,"At arbejdet udføres i henhold til gældende normer og regler\n\nDet tekniske ansvar for arbejdet på arbejdsstedet\n\nSelvstændigt bedømme om jernbaneanlægget opfylder kravene i gældende normer og regler og kan i driftsættes efter indgreb"]
[null,"Stærkstrøm","Rumslukning","Installation, Kontrol, Serviceeftersyn, Inspektion",null,"Godkendt i henhold til DBI Retningslinie 001, godkendelse af instalationsfirmaer fra Dansk Brand  og Sikringsteknisk Institut (DBI)\n\nInspektionsvirksomheden skal være akkrediteret til at foretage inspektion i overensstemmelse med DS/EN ISO/IEC 17020, Generelle kriterier for forskellige typer af organer, der foretager inspektion.\n\n",null,null,"DBI Retningslinie 002, Automatiske Brandslukningsanlæg - certificering af personer og DBI foreskrift 253 fra Dansk Brand og Sikringsteknisk Institut (DBI) ",null,"Fagarbejdslederen","At arbejdet udføres i henhold til gældende normer og regler\n\nDet tekniske ansvar for arbejdet på arbejdsstedet\n\nSelvstændigt bedømme om jernbaneanlægget opfylder kravene i gældende normer og regler og kan idriftsættes efter indgreb"]
[null,"Stærkstrøm","Terrænbelysning - depotspor","El-Installationer",null,"El autorisation; Teknisk meddelelse 37=(TM37); Bek 1082; DS/HD 60364; Kendskab ti BPU-områder ved elektrificerede strækninger","El faglig ; Der hvor armaturer hænger over kørestrøm skal arbejdet udføres sammen med kørestrøms personale.","L-AUS; Pas på Banen; FKI/SKI ved elektrificerede strækninger","Der vil blive påkrævet jernbanesikkerhedsplan i langt de fleste tilfælde af denne type arbejde i eller nærhed af sporet. ","2 års erfaring med lignende anlægselement","Fagarbejdslederen","At arbejdet udføres i henhold til gældende normer og regler\n\nDet tekniske ansvar for arbejdet på arbejdsstedet\n\nSelvstændigt bedømme om jernbaneanlægget opfylder kravene i gældende normer og regler og kan idriftsættes efter indgreb"]
[null,"Spor","Spor","Landmåling inkl. projektering af spor  geometri",null,"Normkendskab (BN2-94 og Sporregler 1987)",null,null,null,"Normkendskab (BN2-94 og Sporregler 1987)","Fagarbejdslederen","At arbejdet udføres i henhold til gældende normer og regler\n\nDet tekniske ansvar for arbejdet på arbejdsstedet\n\nSelvstændigt bedømme om jernbaneanlægget opfylder kravene i gældende normer og regler og kan idriftsættes efter indgreb"]
[null,"Broer & bygninger","Drejeskive","Periodisk eftersyn - Elektrisk (drej)",null,null,"Faglært elektriker",null,null,"Erfaring fra arbejde med lignende anlæg"]
[null,"Broer & bygninger","Drejeskive","Periodisk eftersyn - Mekanisk (drej)",null,null,"Faglært smed",null,null,"Erfaring fra arbejde med lignende anlæg"]
[null,"Broer & bygninger","Klap_Bro","Periodisk eftersyn - Mekanisk (klap)",null,null,"Faglært smed",null,null,"Erfaring med lignende og helst aktuelt anlæg. Er det sidste ikke tilfældet skal BDK brofoged overvåge arbejdet."]
[null,"Broer & bygninger","Sporets_underbygning","Planlæg vedligehold",null,null,"Bygge og anlægsteknisk uddannelse\n\n",null,null,"Teoretisk og praktisk indsigt i de arbejdsgange,der er knyttet til opgaven"]
[null,"Broer & bygninger","Sporets_underbygning","Projektopfølgning og fageftersyn",null,null,"Bygge og anlægsteknisk uddannelse\n\n",null,null,"Teoretisk og praktisk indsigt i de arbejdsgange,der er knyttet til opgaven"]
[null,"Broer & bygninger","Broer_og_støttekonstruktioner","Projektopfølgning og fagtilsyn (bro)",null,null,"Ingeniør med speciale i bærende konstruktioner og / eller broer samt evt. geoteknik.",null,null,"Erfaring med fagtilsyn ved brovedligehold. Erfaring med arbejdsmiljø og jernbanesikkerhedsarbejde"]
[null,"Broer & bygninger","Perron","Projektopfølgning og fagtilsyn (perron)",null,null,"Ingeniør med speciale i bærende konstruktioner og / eller broer samt evt. geoteknik.",null,null,"Erfaring med fagtilsyn ved brovedligehold. Erfaring med arbejdsmiljø og jernbanesikkerhedsarbejde"]
[null,"Broer & bygninger","Store_broer","Projektopfølgning og fagtilsyn (stor bro)",null,null,"Ingeniør med speciale i bærende konstruktioner og / eller broer samt evt. geoteknik.",null,null,"Erfaring med fagtilsyn ved brovedligehold. Erfaring med arbejdsmiljø og jernbanesikkerhedsarbejde"]
[null,"Stærkstrøm","Pumpe","Pumpe",null,"El autorisation; Bekendtgørelsen om kloakarbejde; Særlige krav fra Arbejdstilsynet; Maskindirektivet","El faglig uddannelse","L-AUS; Pas på Banen; FKI/SKI ved elektrificerede strækninger",null,"1 års erfaring med disse anlægstyper og erfaring med fejlfinding på denne type anlæg","Fagarbejdslederen","At arbejdet udføres i henhold til gældende normer og regler\n\nDet tekniske ansvar for arbejdet på arbejdsstedet\n\nSelvstændigt bedømme om jernbaneanlægget opfylder kravene i gældende normer og regler og kan idriftsættes efter indgreb"]
[null,"Stærkstrøm","Pumpeanlæg","Pumpeanlæg",null,"Bekendtgørelsen om kloakarbejde; Særlige krav fra Arbejdstilsynet; Maskindirektivet","VVS faglig uddannelse","L-AUS; Pas på Banen; ",null,"1 års erfaring med disse anlægstyper og erfaring med fejlfinding på denne type anlæg","Fagarbejdslederen","At arbejdet udføres i henhold til gældende normer og regler\n\nDet tekniske ansvar for arbejdet på arbejdsstedet\n\nSelvstændigt bedømme om jernbaneanlægget opfylder kravene i gældende normer og regler og kan idriftsættes efter indgreb"]
[null,"Broer & bygninger","Broer_og_støttekonstruktioner","Rutineeftersyn (bro)",null,"AT krav",null,null,null,"PLC styringer "]
[null,"Broer & bygninger","Perron","Rutineeftersyn (perron)",null,"Maskindirektiviet ",null,null,null,"Godt kendskab til vedligehold af perroner. \n\nErfaring med stålarbejde, elarbejde, betonarbejde og overfladebehandling"]
[null,"Broer & bygninger","Store_broer","Rutineeftersyn (stor bro)",null,null,"Bygge og anlægsteknisk uddannelse\n",null,null,"Godt kendskab til brovedligehold jf. pkt. 4.3 og bilag L1 i vejregel \"Eftersyn af bygningværker\". \n\nErfaring med stålarbejde, elarbejde, betonarbejde og overfladebehandling"]
[null,"Stærkstrøm","Spskvarme_EL","Spskvarme EL",null,"El autorisation; Teknisk meddelelse 37=(TM37); Bek 1082; DS/HD 60364; Banenorm BN1-179-1; Kendskab til BPU-områder ved elektrificerede strækninger","El faglig uddannelse","L-AUS; Pas på Banen; FKI/SKI ved elektrificerede strækninger",null,"2 års erfaring","Fagarbejdslederen","At arbejdet udføres i henhold til gældende normer og regler\n\nDet tekniske ansvar for arbejdet på arbejdsstedet\n\nSelvstændigt bedømme om jernbaneanlægget opfylder kravene i gældende normer og regler og kan idriftsættes efter indgreb"]
[null,"Stærkstrøm","Spskvarme_GAS","Spskvarme GAS",null,"VVS autorisation","VVS faglig uddannelse","Pas på Banen",null,null,"Fagarbejdslederen","At arbejdet udføres i henhold til gældende normer og regler\n\nDet tekniske ansvar for arbejdet på arbejdsstedet\n\nSelvstændigt bedømme om jernbaneanlægget opfylder kravenei gældende normer og regler og kan idriftsættes efter indgreb"]
[null,"Stærkstrøm","Togforvarme","Togforvarme",null,"El autorisation ;Teknisk meddelelse 37;Bekendtgørelse 1082;\nKendskab til BPU områder ved elektrificerede strækninger\nHvor der er kørestrøm bør \n\n\n\nBekendtgørelse 1608 Funktion: Driftsansvarlig godkendt af Sikkerhedstyrelsen\nElektroingeniør med stærkstrøm som speciale\nAlternativt ingeniør, elinstallatør eller maskinmester der kan dokumentere 1 års praktisk erfaring med elforsyningsanlæg.\n\nFunktion: Arbejdsleder\nElektrikker eller anden el-faglig baggrund\n \nFunktion: Holdleder\nElektrikker eller anden el-faglig baggrund\n\nFunktion: Koblingsleder\n\nFunktion: Højspændingstekniker\nElektrikker eller anden el-faglig baggrund\n\nFunktion: Øvrige arbejdsholdsdeltagere\nElektrikker eller anden el-faglig baggrund\n","El faglig uddannelse","L-AUS; Pas på Banen; FKI/SKI ved elektrificerede strækninger",null,null,"Fagarbejdslederen","At arbejdet udføres i henhold til gældende normer og regler\n\nDet tekniske ansvar for arbejdet på arbejdsstedet\n\nSelvstændigt bedømme om jernbaneanlægget opfylder kravenei gældende normer og regler og kan idriftsættes efter indgreb"]
[null,"Stærkstrøm","Transformerstation","Transformerstation",null,"El autorisation;Teknisk meddelelse 37 ; Bekendtgørelse 1082; \nBekendtgørelse 1608;\nKendskab til BPU områder ved elektrificerede strækninger; Funktion: Driftsansvarlig godkendt af Sikkerhedsstyrelsen\nElektroingeniør med stærkstrøm som speciale\nAlternativt ingeniør, elinstallatør eller maskinmester der kan dokumentere 1 års praktisk erfaring med elforsyningsanlæg.\n\nFunktion: Arbejdsleder\nElektrikker eller anden el-faglig baggrund\n\nFunktion: Holdleder\nElektrikker eller anden el-faglig baggrund\n\nFunktion: Kørestrømstekniker\nElektrikker eller anden el-faglig baggrund\n\nFunktion: Øvrige arbejdsholdsdeltagere\nElektrikker eller anden el-faglig baggrund\n\n","El faglig uddannelse","L-AUS; Pas på Banen; FKI/SKI ved elektrificerede strækninger",null,null,"Fagarbejdslederen","At arbejdet udføres i henhold til gældende normer og regler\n\nDet tekniske ansvar for arbejdet på arbejdsstedet\n\nSelvstændigt bedømme om jernbaneanlægget opfylder kravenei gældende normer og regler og kan idriftsættes efter indgreb"]
[null,"Broer & bygninger","Sporets_underbygning","Udfør vedligehold",null,null,"Bygge og anlægsteknisk uddannelse\n\n",null,null,"Teoretisk og praktisk indsigt i de arbejdsgange,der er knyttet til opgaven"]
[null,"Stærkstrøm","Varsling\n","Varsling\n",null,"Godkendt i henhold til DBI Retningslinie 001, godkendelse af instalationsfirmaer fra Dansk Brand  og Sikringsteknisk Institut (DBI)\n\n","El faglig uddannelse","L-AUS; Pas på Banen; FKI/SKI ved elektrificerede strækninger","DBI Retningslinie 002, Automatiske Brandslukningsanlæg - certificering af personer og DBI Retningslinie 024 fra Dansk Brand og Sikringsteknisk Institut (DBI) ",null,"Fagarbejdslederen","At arbejdet udføres i henhold til gældende normer og regler\n\nDet tekniske ansvar for arbejdet på arbejdsstedet\n\nSelvstændigt bedømme om jernbaneanlægget opfylder kravenei gældende normer og regler og kan idriftsættes efter indgreb"]
[null,"Broer & bygninger","Perron","Vedligehold (perron)",null,null,"Entreprenørens byggeleder: Ingeniør med speciale i bygge- eller anlægsarbejder.\n\nEntreprenørens mandskab:\n- Belægningsarbejder: Faguuddannet brolægger eller specialarbejder.\n- Perronforkanter: Struktør eller specialarbejder\n\n\n",null,null,"Entreprenørens byggeleder: Erfaring med arbejder på hvor der indgår krav til jernbanesikkerhed.\n\nEntreprenørens mandskab: Specialarbejdere skal have erfaring med de typer arbejde, som de udfører."]
[null,"Stærkstrøm","Håndildslukkere","Vedligeholdelse",null,"DS 2320 certificeret eller godkendt af Arbejdstilsynet",null,null,null,null,"Fagarbejdslederen","At arbejdet udføres i henhold til gældende normer og regler\n\nDet tekniske ansvar for arbejdet på arbejdsstedet\n\nSelvstændigt bedømme om jernbaneanlægget opfylder kravene i gældende normer og regler og kan idriftsættes efter indgreb"]
[null,"Stærkstrøm","UPS_anlæg","UPS anlæg",null,"El autorisation; Teknisk meddelelse 37=(TM37); Bek 1082; DS/HD 60364; Kendskab ti BPU-områder ved elektrificerede strækninger","El faglig uddannelse","L-AUS; Pas på Banen; FKI/SKI ved elektrificerede strækninger",null,"2 års erfaring med lignende anlægselement","Fagarbejdslederen","At arbejdet udføres i henhold til gældende normer og regler\n\nDet tekniske ansvar for arbejdet på arbejdsstedet\n\nSelvstændigt bedømme om jernbaneanlægget opfylder kravene i gældende normer og regler og kan idriftsættes efter indgreb"]
[null,"Stærkstrøm","Vital_strømforsyning","Vital strømforsyning",null,"El autorisation; Teknisk meddelelse 37=(TM37); Bek 1082; DS/HD 60364; Kendskab ti BPU-områder ved elektrificerede strækninger","El faglig uddannelse","L-AUS; Pas på Banen; FKI/SKI ved elektrificerede strækninger","Det kan være vanskeligt at afgøre om der er tale om en vital installation. Men installationer til for eksempel vores kommandoposter – Trafiktårne er at betragte som vitale installationer. ","5 års erfaring med lignende anlægselement","Fagarbejdslederen","At arbejdet udføres i henhold til gældende normer og regler\n\nDet tekniske ansvar for arbejdet på arbejdsstedet\n\nSelvstændigt bedømme om jernbaneanlægget opfylder kravene i gældende normer og regler og kan idriftsættes efter indgreb"]
[null,"Forst","Bevoksede intensivt - Grønne urbane anlæg og bede",null,"Renhold, vedligehold og pleje",null,"Anlægsgartner med sprøjtecertifikat",null,null,"Erfaring med vedligehold og mindre anlægsopgaver.","Fagarbejdslederen","At arbejdet udføres i henhold til gældende normer og regler\n\nDet tekniske ansvar for arbejdet på arbejdsstedet\n\nSelvstændigt bedømme om jernbaneanlægget opfylder kravene i gældende normer og regler og kan idriftsættes efter indgreb"]
[null,"Forst","Sporsprøjtning",null,"Kemisk og manuel bekæmpelse af uønskede plantearter",null,"Anlægsgartner med sprøjtecertifikat",null,null,"Erfaring med håndtering af sprøjtemidler og kemikalier.","Fagarbejdslederen","At arbejdet udføres i henhold til gældende normer og regler\n\nDet tekniske ansvar for arbejdet på arbejdsstedet\n\nSelvstændigt bedømme om jernbaneanlægget opfylder kravene i gældende normer og regler og kan idriftsættes efter indgreb"]
[null,"Sikring, Alstom","ETCS","ETCS",null,"Uddannelsesbevis, kursusbevis;   Inkluderer udannelse i følgende anlægselementer: \n - ETCS","Sikringstekniker","\n\nFKI_SKI Spor_sikring (ved elektrificerede strækning); OR sikkerhedskursus\n",null,null,"Fagarbejdslederen","At arbejdet udføres i henhold til gældende normer og regler\n\nDet tekniske ansvar for arbejdet på arbejdsstedet\n\nSelvstændigt bedømme om jernbaneanlægget opfylder kravene i gældende normer og regler og kan idriftsættes efter indgreb"]
[null,"Sikring, Alstom","Sikringsanlæg","Sikringsanlæg udvidet, Fjernbane Øst",null,"Uddannelsesbevis, kursusbevis; Inkluderer uddannelse i følgende anlægselementer:   \n - Batteri/akkumulator\n - Kabelanlæg (skal også bruger slidsning - separat kursus\n - Komponent\n - Ladeensretter\n - Signal, varslingsanlæg, akseltællere, baliser, personalovergange Inkluderer uddannelse i følgende anlægselementer: \n - ETCS","Sikringstekniker","\n\n\n\nFKI_SKI Spor_sikring (ved elektrificerede strækning); OR sikkerhedskursus",null,null,"Fagarbejdslederen","At arbejdet udføres i henhold til gældende normer og regler\n\nDet tekniske ansvar for arbejdet på arbejdsstedet\n\nSelvstændigt bedømme om jernbaneanlægget opfylder kravene i gældende normer og regler og kan idriftsættes efter indgreb"]
[null,"Sikring, Alstom","Udvendigt udstyr","Udvendigt udstyr, udvidet Fjernbane Øst",null,"Uddannelsesbevis, kursusbevis;   Inkluderer uddannelse i følgende anlægselementer:\n - Baliser\n - Kabelanlæg (skal også bruger slidsning - separat kursus\n - akseltællere\n - varslingsanlæg\n - Signal ","Sikringstekniker","\n\nFKI_SKI Spor_sikring (ved elektrificerede strækning); OR sikkerhedskursus",null,null,"Fagarbejdslederen","At arbejdet udføres i henhold til gældende normer og regler\n\nDet tekniske ansvar for arbejdet på arbejdsstedet\n\nSelvstændigt bedømme om jernbaneanlægget opfylder kravene i gældende normer og regler og kan idriftsættes efter indgreb"]
[null,"Sikring, Alstom","TMS","TMS udvidet Fjernbane Øst",null,"Uddannelsesbevis, kursusbevis;   Inkluderer uddannelse i følgende anlægselementer:\n - TMS ","Sikringstekniker","\n\nFKI_SKI Spor_sikring (ved elektrificerede strækning); OR sikkerhedskursus",null,null,"Fagarbejdslederen","At arbejdet udføres i henhold til gældende normer og regler\n\nDet tekniske ansvar for arbejdet på arbejdsstedet\n\nSelvstændigt bedømme om jernbaneanlægget opfylder kravene i gældende normer og regler og kan idriftsættes efter indgreb"]
[null,"Sikring, Alstom","Strømforsyning og div.","Strømforsyning og div. udvidet fjernbane Øst",null,"Uddannelsesbevis, kursusbevis;   Inkluderer uddannelse i følgende anlægselementer:\n - Strømforsyning;                                         - Batteri/Akkumulator","Sikringstekniker","FKI_SKI Spor_sikring (ved elektrificerede strækning); OR sikkerhedskursus",null,null,"Fagarbejdslederen","At arbejdet udføres i henhold til gældende normer og regler\n\nDet tekniske ansvar for arbejdet på arbejdsstedet\n\nSelvstændigt bedømme om jernbaneanlægget opfylder kravene i gældende normer og regler og kan idriftsættes efter indgreb"]
[null,"Sikring, Alstom","Overkørsler","Vedligehold af overkørsler inkl. COS LX",null,"Uddannelsesbevis, kursusbevis;  Inkluderer uddannelse i følgende anlægselement:                                           - Signal\n- Betjeningskasse\n- Kabelanlæg (skal også bruge splidsning - separat kursus)\n- Komponent\n- Ladeensretter   ","Sikringstekniker","FKI_SKI Spor_sikring (ved elektrificerede strækning); OR sikkerhedskursus",null,null,"Fagarbejdslederen","At arbejdet udføres i henhold til gældende normer og regler\n\nDet tekniske ansvar for arbejdet på arbejdsstedet\n\nSelvstændigt bedømme om jernbaneanlægget opfylder kravene i gældende normer og regler og kan idriftsættes efter indgreb"]
[null,"Sikring, Alstom","Vedligehold","Vedligehold udvidet Fjernbane Øst",null,"Uddannelsesbevis, kursusbevis; Inkluderer uddannelse i følgende anlægselementer:\n - Batteri/akkumulator\n - Kabelanlæg (skal også bruger slidsning - separat kursus\n - Komponent\n - Ladeensretter\n - Signal, varslingsanlæg, akseltællere, baliser, personalovergange ","Sikringstekniker","\n\nFKI_SKI Spor_sikring (ved elektrificerede strækning); OR sikkerhedskursus",null,null,"Fagarbejdslederen","At arbejdet udføres i henhold til gældende normer og regler\n\nDet tekniske ansvar for arbejdet på arbejdsstedet\n\nSelvstændigt bedømme om jernbaneanlægget opfylder kravene i gældende normer og regler og kan idriftsættes efter indgreb"]
[null,"Sikring, Alstom","Sporskiftedrev","BMS P80 inkl. COS PM, BMS P80 med afløbssko  ",null,"Uddannelsesbevis, kursusbevis; Inkluderer uddannelse i følgende anlægselement: \n - sporskiftedrev type BMS P80 inkl. COS PM, BMS P80 med afløbssko ","Sikringstekniker","FKI_SKI Spor_sikring (ved elektrificerede strækning); OR sikkerhedskursus",null,null,"Fagarbejdslederen","At arbejdet udføres i henhold til gældende normer og regler\n\nDet tekniske ansvar for arbejdet på arbejdsstedet\n\nSelvstændigt bedømme om jernbaneanlægget opfylder kravene i gældende normer og regler og kan idriftsættes efter indgreb"]
[null,"Sikring, Alstom","Sporskiftedrev","BSM MET (højhastighed) BSM MET Frog",null,"Uddannelsesbevis, kursusbevis; Inkluderer uddannelse i følgende anlægselement: \n - sporskiftedrev type MET (højhastighed), og Met Frog","Sikringstekniker","FKI_SKI Spor_sikring (ved elektrificerede strækning); OR sikkerhedskursus",null,null,"Fagarbejdslederen","At arbejdet udføres i henhold til gældende normer og regler\n\nDet tekniske ansvar for arbejdet på arbejdsstedet\n\nSelvstændigt bedømme om jernbaneanlægget opfylder kravene i gældende normer og regler og kan idriftsættes efter indgreb"]
[null,"Sikring, Siemens","Akseltællere","Akseltællere",null,"Uddannelsesbevis, kursusbevis; Inkluderer uddannelse i følgende anlægselementer: \n - Akseltællere","Sikringstekniker","Vedligehold af akseltællere\n\nFKI_SKI Spor_sikring (ved elektrificerede strækning); OR sikkerhedskursus\n",null,null,"Fagarbejdslederen","At arbejdet udføres i henhold til gældende normer og regler\n\nDet tekniske ansvar for arbejdet på arbejdsstedet\n\nSelvstændigt bedømme om jernbaneanlægget opfylder kravene i gældende normer og regler og kan idriftsættes efter indgreb"]
[null,"Sikring, Siemens","Baliser","Baliser",null,"Uddannelsesbevis, kursusbevis; Inkluderer uddannelse i følgende anlægselementer: \n- Baliser","Sikringstekniker","\n\nVedligehold af baliser\n\nFKI_SKI Spor_sikring (ved elektrificerede strækning); OR sikkerhedskursus",null,null,"Fagarbejdslederen","At arbejdet udføres i henhold til gældende normer og regler\n\nDet tekniske ansvar for arbejdet på arbejdsstedet\n\nSelvstændigt bedømme om jernbaneanlægget opfylder kravene i gældende normer og regler og kan idriftsættes efter indgreb"]
[null,"Sikring, Siemens","Signaler","Signaler",null,"Uddannelsesbevis, kursusbevis; Inkluderer uddannelse i følgende anlægselementer: \n- Signaler","Sikringstekniker","Vedligehold af signaler\n\nFKI_SKI Spor_sikring (ved elektrificerede strækning); OR sikkerhedskursus",null,null,"Fagarbejdslederen","At arbejdet udføres i henhold til gældende normer og regler\n\nDet tekniske ansvar for arbejdet på arbejdsstedet\n\nSelvstændigt bedømme om jernbaneanlægget opfylder kravene i gældende normer og regler og kan idriftsættes efter indgreb"]
[null,"Sikring, Siemens","CBTC strækningsenheder","Vedligehold af CBTC strækningsenheder",null,"Uddannelsesbevis, kursusbevis; Inkluderer uddannelse i følgende anlægselementer:\n -Vedligehold af CBTC strækningselementer","Sikringstekniker","Vedligehold af CBTC strækningsenheder\n\nFKI_SKI Spor_sikring (ved elektrificerede strækning); OR sikkerhedskursus",null,null,"Fagarbejdslederen","At arbejdet udføres i henhold til gældende normer og regler\n\nDet tekniske ansvar for arbejdet på arbejdsstedet\n\nSelvstændigt bedømme om jernbaneanlægget opfylder kravene i gældende normer og regler og kan idriftsættes efter indgreb"]
[null,"Sikring, Siemens","DC-RCS AP'er (Acces Points)","Vedligehold af DC-RCS AP'er (Acces Points)",null,"Uddannelsesbevis, kursusbevis","Sikringstekniker","Vedligehold af DC-RCS AP'er (Acces Points)                                              FKI_SKI Spor_sikring (ved elektrificerede strækning); OR sikkerhedskursus",null,null,"Fagarbejdslederen","At arbejdet udføres i henhold til gældende normer og regler\n\nDet tekniske ansvar for arbejdet på arbejdsstedet\n\nSelvstændigt bedømme om jernbaneanlægget opfylder kravene i gældende normer og regler og kan idriftsættes efter indgreb"]
[null,"Sikring, Siemens","Varslingsanlæg","Vedligehold af varslingsanlæg",null,"Uddannelsesbevis, kursusbevis;       Inkluderer uddannelse i følgende anlægselement: \n - Vedligehold af DC-RCS AP'er (Access Points)","Sikringstekniker","Vedligehold af varslingsanlæg             FKI_SKI Spor_sikring (ved elektrificerede strækning); OR sikkerhedskursus",null,null,"Fagarbejdslederen","At arbejdet udføres i henhold til gældende normer og regler\n\nDet tekniske ansvar for arbejdet på arbejdsstedet\n\nSelvstændigt bedømme om jernbaneanlægget opfylder kravene i gældende normer og regler og kan idriftsættes efter indgreb"]
[null,"Sikring, Siemens","Personaleovergange","Vedligehold af personaleovergange",null,"Uddannelsesbevis, kursusbevis;  Inkluderer uddannelse i følgende anlægselement: \n - Vedligehold af personaleovergange","Sikringstekniker","Vedligehold af personaleovergange; \n\nFKI_SKI Spor_sikring (ved elektrificerede strækning); OR sikkerhedskursus",null,null,"Fagarbejdslederen","At arbejdet udføres i henhold til gældende normer og regler\n\nDet tekniske ansvar for arbejdet på arbejdsstedet\n\nSelvstændigt bedømme om jernbaneanlægget opfylder kravene i gældende normer og regler og kan idriftsættes efter indgreb"]
[null,"Sikring, Siemens","Strømforsyning","Vedligehold af strømforsyning",null,"Uddannelsesbevis, kursusbevis; Inkluderer uddannelse i følgende anlægselement: \n - Vedligehold af strømforsyning","Sikringstekniker","Vedligehold af strømforsyning;  FKI_SKI Spor_sikring (ved elektrificerede strækning); OR sikkerhedskursus; OR sikkerhedskursus",null,null,"Fagarbejdslederen","At arbejdet udføres i henhold til gældende normer og regler\n\nDet tekniske ansvar for arbejdet på arbejdsstedet\n\nSelvstændigt bedømme om jernbaneanlægget opfylder kravene i gældende normer og regler og kan idriftsættes efter indgreb"]
[null,"Sikring, Siemens","Sporskiftedrev","BMS ILS 915 og BMS ILS 915 med afløbssko",null,"Uddannelsesbevis, kursusbevis; Inkluderer uddannelse i følgende anlægselement: \n - Sporskiftedrev type BMS ILS 915 og BMS 915 med afløbssko","Sikringstekniker","FKI_SKI Spor_sikring (ved elektrificerede strækning); OR sikkerhedskursus",null,null,"Fagarbejdslederen","At arbejdet udføres i henhold til gældende normer og regler\n\nDet tekniske ansvar for arbejdet på arbejdsstedet\n\nSelvstændigt bedømme om jernbaneanlægget opfylder kravene i gældende normer og regler og kan idriftsættes efter indgreb"]
[null,"Sikring, Thales","Baliser","Vedligehold af baliser",null,"Uddannelsesbevis, kursusbevis;     Inkluderer udannelse i følgende anlægselementer: \n - baliser","Sikringstekniker","Vedligehold af baliser\n\nFKI_SKI Spor_sikring (ved elektrificerede strækning); OR sikkerhedskursus\n",null,null,"Fagarbejdslederen","At arbejdet udføres i henhold til gældende normer og regler\n\nDet tekniske ansvar for arbejdet på arbejdsstedet\n\nSelvstændigt bedømme om jernbaneanlægget opfylder kravene i gældende normer og regler og kan idriftsættes efter indgreb"]
[null,"Sikring, Thales","Teknikhytter","Vedligehold af teknikhytter",null,"Uddannelsesbevis, kursusbevis; Inkluderer uddannelse i følgende anlægselementer: \n- teknikhytter","Sikringstekniker","\n\nVedligehold af teknikhytter\n\nFKI_SKI Spor_sikring (ved elektrificerede strækning); OR sikkerhedskursus",null,null,"Fagarbejdslederen","At arbejdet udføres i henhold til gældende normer og regler\n\nDet tekniske ansvar for arbejdet på arbejdsstedet\n\nSelvstændigt bedømme om jernbaneanlægget opfylder kravene i gældende normer og regler og kan idriftsættes efter indgreb"]
[null,"Sikring, Thales","Strømforsyninger","Vedligehold af strømforsyninger",null,"Uddannelsesbevis, kursusbevis; Inkluderer uddannelse i følgende anlægselementer: \n- strømforsyninger","Sikringstekniker","Vedligehold af strømforsyninger\n\nFKI_SKI Spor_sikring (ved elektrificerede strækning); OR sikkerhedskursus",null,null,"Fagarbejdslederen","At arbejdet udføres i henhold til gældende normer og regler\n\nDet tekniske ansvar for arbejdet på arbejdsstedet\n\nSelvstændigt bedømme om jernbaneanlægget opfylder kravene i gældende normer og regler og kan idriftsættes efter indgreb"]
[null,"Sikring, Thales","Akseltællere","Vedligehold af akseltællere",null,"Uddannelsesbevis, kursusbevis; Inkluderer uddannelse i følgende anlægselementer:\n -akseltællere","Sikringstekniker","Vedligehold af akseltællere\n\nFKI_SKI Spor_sikring (ved elektrificerede strækning); OR sikkerhedskursus",null,null,"Fagarbejdslederen","At arbejdet udføres i henhold til gældende normer og regler\n\nDet tekniske ansvar for arbejdet på arbejdsstedet\n\nSelvstændigt bedømme om jernbaneanlægget opfylder kravene i gældende normer og regler og kan idriftsættes efter indgreb"]
[null,"Sikring, Thales","Teknikskabe","Vedligehold af teknikskabe",null,"Uddannelsesbevis, kursusbevis; Inkluderer uddannelse i følgende anlægselement: \n - teknikskabe","Sikringstekniker","Vedligehold af teknikskabe                                              FKI_SKI Spor_sikring (ved elektrificerede strækning); OR sikkerhedskursus",null,null,"Fagarbejdslederen","At arbejdet udføres i henhold til gældende normer og regler\n\nDet tekniske ansvar for arbejdet på arbejdsstedet\n\nSelvstændigt bedømme om jernbaneanlægget opfylder kravene i gældende normer og regler og kan idriftsættes efter indgreb"]
[null,"Sikring, Thales","Overkørsler","Vedligehold af overkørsler",null,"Uddannelsesbevis, kursusbevis; Inkluderer uddannelse i følgende anlægselement:    - Signal\n- Betjeningskasse\n- Kabelanlæg (skal også bruge splidsning - separat kursus)\n- Komponent\n- LadeensretterIndkluderer uddannelse i følgende anlægselement: ","Sikringstekniker","Vedligehold af overkørsler  FKI_SKI Spor_sikring (ved elektrificerede strækning); OR sikkerhedskursus",null,null,"Fagarbejdslederen","At arbejdet udføres i henhold til gældende normer og regler\n\nDet tekniske ansvar for arbejdet på arbejdsstedet\n\nSelvstændigt bedømme om jernbaneanlægget opfylder kravene i gældende normer og regler og kan idriftsættes efter indgreb"]
[null,"Sikring, Thales","Varslingsanlæg","Vedligehold af varslingsanlæg",null,"Uddannelsesbevis, kursusbevis; Inkluderer uddannelse i følgende anlægselement: \n - varslingsanlæg","Sikringstekniker","Vedligehold af varslingsanlæg\n\nFKI_SKI Spor_sikring (ved elektrificerede strækning); OR sikkerhedskursus",null,null,"Fagarbejdslederen","At arbejdet udføres i henhold til gældende normer og regler\n\nDet tekniske ansvar for arbejdet på arbejdsstedet\n\nSelvstændigt bedømme om jernbaneanlægget opfylder kravene i gældende normer og regler og kan idriftsættes efter indgreb"]
[null,"Sikring, Thales","Personaleovergange","Vedligehold af overgange",null,"Uddannelsesbevis, kursusbevis; Inkluderer uddannelse i følgende anlægselement: \n - personaleovergange","Sikringstekniker","Vedligehold af personaleovergange: FKI_SKI Spor_sikring (ved elektrificerede strækning); OR sikkerhedskursus",null,null,"Fagarbejdslederen","At arbejdet udføres i henhold til gældende normer og regler\n\nDet tekniske ansvar for arbejdet på arbejdsstedet\n\nSelvstændigt bedømme om jernbaneanlægget opfylder kravene i gældende normer og regler og kan idriftsættes efter indgreb"]
[null,"Sikring, Thales","RBC","Vedligehold af RBC",null,"Uddannelsesbevis, kursusbevis; Inkluderer uddannelse i følgende anlægselement: \n - RBC","Sikringstekniker","Vedligehold af RBC: FKI_SKI Spor_sikring (ved elektrificerede strækning); OR sikkerhedskursus",null,null,"Fagarbejdslederen","At arbejdet udføres i henhold til gældende normer og regler\n\nDet tekniske ansvar for arbejdet på arbejdsstedet\n\nSelvstændigt bedømme om jernbaneanlægget opfylder kravene i gældende normer og regler og kan idriftsættes efter indgreb"]
[null,"Sikring, Thales","Sikringsanlæg","Vedligehold af sikringsanlæg",null,"Uddannelsesbevis, kursusbevis; Inkluderer uddannelse i følgende anlægselement: \n - sikringsanlæg","Sikringstekniker","Vedligehold af sikringsanlæg: FKL_SKI Spor_sikring (ved elektrificerede strækninger); OR sikkerhedskursus",null,null,"Fagarbejdslederen","At arbejdet udføres i henhold til gældende normer og regler\n\nDet tekniske ansvar for arbejdet på arbejdsstedet\n\nSelvstændigt bedømme om jernbaneanlægget opfylder kravene i gældende normer og regler og kan idriftsættes efter indgreb"]
[null,"Sikring, Thales","Datalogger","Vedligehold af datalogger",null,"Uddannelsesbevis, kursusbevis; Inkluderer uddannelse i følgende anlægselement: \n - datalogger","Sikringstekniker","Vedligehold af datalogger: FKL_SKI Spor_sikring (ved elektrificerede strækninger); OR sikkerhedskursus",null,null,"Fagarbejdslederen","At arbejdet udføres i henhold til gældende normer og regler\n\nDet tekniske ansvar for arbejdet på arbejdsstedet\n\nSelvstændigt bedømme om jernbaneanlægget opfylder kravene i gældende normer og regler og kan idriftsættes efter indgreb"]
[null,"Sikring, Thales","Sposkiftedrev","BMS L710H ",null,"Uddannelsesbevis, kursusbevis; Inkluderer uddannelse i følgende anlægselement: \n - sporskiftedrev type BMS L710H","Sikringstekniker","FKI_SKI Spor_sikring (ved elektrificerede strækning); OR sikkerhedskursus",null,null,"Fagarbejdslederen","At arbejdet udføres i henhold til gældende normer og regler\n\nDet tekniske ansvar for arbejdet på arbejdsstedet\n\nSelvstændigt bedømme om jernbaneanlægget opfylder kravene i gældende normer og regler og kan idriftsættes efter indgreb"]
[null,"Sikring, Thales","Sporskiftedrev","BMS LH826H inkl. betjeningslås og BMS L826H med afløbssko",null,"Uddannelsesbevis, kursusbevis; Inkluderer uddannelse i følgende anlægselement: \n - sporskiftedrev type BMS L826H inkl. betjeningslås og BMS L826H med afløbssko   ","Sikringstekniker","FKI_SKI Spor_sikring (ved elektrificerede strækning); OR sikkerhedskursus",null,null,"Fagarbejdslederen","At arbejdet udføres i henhold til gældende normer og regler\n\nDet tekniske ansvar for arbejdet på arbejdsstedet\n\nSelvstændigt bedømme om jernbaneanlægget opfylder kravene i gældende normer og regler og kan idriftsættes efter indgreb"]

{"sheet":"Versionshistorik","index":7,"n_rows":5,"n_cols":4,"rows_kept":5,"cut":false,"hidden":true,"merged":[]}
[]
["Index","Oprettet/Redigeret af","Ændringsbeskrivelse","Dato"]
[2,"MMIR","Funktionalitet til øvrige krav er fjernet fra arket. Det skal undersøges om øvrige krav har tilhørsforhol til kompentencekravkataloget","2019-09-12"]
["2.01","NEBG","Nyt Kompetencekravkatalog opdateret i samarbejde med fagansvarlige. Klar til BaneDK's hjemmeside","2019-10-11"]
["2.02","NEBG","Version, hvor pdf.fil genereringsfejl er rettet af Michael (MMIR)","2019-10-22"]